Workbook

Sheet Calculation
B2: TCMB
B3: Disbursement period (months) | C3: 12
B4: Repayment period (years) | C4: 5
B5: Cover ratio | C5: 0.95
B6: Buyer Credit Rating | C6: AAA
B7: CIRR base rate | C7: 0
B9: Name Specific instruments
B10: Bond | C10: 180
B11: CDS | C11: 130
B12: Syn. loan | C12: 50
I14: Minimum pricing
B15: Calculation results | C15: TCMB BAP | D15: Bond | E15: CDS | F15: Syn. loan | G15: MAP | I15: =+INDEX(C15:G15,MATCH(I17,C17:G17,0)) -> TCMB BAP
B16: ="Spread at PR: "&ROUND(por($C$3,$C$4),2)&" years" -> Spread at PR: 3,25 years | C16: =+TCMBspread($C$3,$C$4,$C$6) -> 15 | D16: =+IF(ISNUMBER(C10),C10,"") -> 180 | E16: =+IF(ISNUMBER(C11),C11,"") -> 130 | F16: =+IF(ISNUMBER(C12),C12,"") -> 50 | G16: =+IF(TCMBspread($C$3,$C$4,$C$6,"MAP")<15,15,TCMBspread($C$3,$C$4,$C$6,"MAP")) -> 15 | I16: =+MAX(G16,MIN(C16:F16)) -> 15
B17: Cover adjusted spread | C17: =+ROUND(C16*C5,0) -> 14 | D17: =+IF(ISNUMBER(C10),ROUND(C10*$C$5,0),"") -> 171 | E17: =+IF(ISNUMBER(C11),ROUND(C11*$C$5,0),"") -> 124 | F17: =+IF(ISNUMBER(C12),ROUND(C12*$C$5,0),"") -> 48 | G17: =+ROUND(G16*C5,0) -> 14 | I17: =+MAX(G17,MIN(C17:F17)) -> 14
B18: Unfinanced upfront premium rate | C18: =+DMAR($C$3,$C$4,$C$16,$C$5,$C$7) -> 0.004531684874 | D18: =+IF(ISNUMBER(C10),DMAR($C$3,$C$4,C$10,$C$5,$C$7),"") -> 0.05298381403 | E18: =+IF(ISNUMBER(C11),DMAR($C$3,$C$4,C$11,$C$5,$C$7),"") -> 0.03892846924 | F18: =+IF(ISNUMBER(C12),DMAR($C$3,$C$4,C$12,$C$5,$C$7),"") -> 0.01539226565 | G18: =+DMAR($C$3,$C$4,$G$16,$C$5,$C$7) -> 0.004531684874 | I18: =+MAX(G18,MIN(C18:F18)) -> 0.004531684874
B19: Financed upfront premium rate | C19: =+C18/(1-C18) -> 0.004552314529 | D19: =+IF(ISNUMBER(D18),D18/(1-D18),"") -> 0.05594816098 | E19: =+IF(ISNUMBER(E18),E18/(1-E18),"") -> 0.0405052777 | F19: =+IF(ISNUMBER(F18),F18/(1-F18),"") -> 0.01563289127 | G19: =+G18/(1-G18) -> 0.004552314529 | I19: =+MAX(G19,MIN(C19:F19)) -> 0.004552314529

Sheet Spread matrices
B5: TCMB W: 1993 - 2018 | I5: TCMB L: 2018 | P5: TCMB BAP: 2018 | W5: Minimum Actuarial Premium: 2018
C6: 6M | D6: 2Y | E6: 5Y | F6: 10Y | G6: 20Y | J6: 6M | K6: 2Y | L6: 5Y | M6: 10Y | N6: 20Y | Q6: 6M | R6: 2Y | S6: 5Y | T6: 10Y | U6: 20Y | X6: 6M | Y6: 2Y | Z6: 5Y | AA6: 10Y | AB6: 20Y
B7: CC1 | C7: 15.04957562 | D7: 16.0633669 | E7: 21.59652263 | F7: 37.0160157 | G7: 66.98198511 | I7: CC1 | J7: 15 | K7: 15.78861111 | L7: 30.61545139 | M7: 55.46486111 | N7: 73.29819444 | P7: CC1 | Q7: 15 | R7: 15 | S7: 21.4837934 | T7: 37.63590972 | U7: 49.22757639 | W7: CC1 | X7: 4.525 | Y7: 4.525 | Z7: 4.525 | AA7: 4.525 | AB7: 4.525
B8: AAA | C8: 15 | D8: 15 | E8: 15.61195513 | F8: 22.81370384 | G8: 46.06546212 | I8: AAA | J8: 15 | K8: 15 | L8: 15 | M8: 17.57666667 | N8: 17.57666667 | P8: AAA | Q8: 15 | R8: 15 | S8: 15 | T8: 15 | U8: 15 | W8: AAA | X8: 4.525 | Y8: 4.525 | Z8: 4.525 | AA8: 4.525 | AB8: 4.525
B9: AA+ | C9: 15 | D9: 15.1237653 | E9: 17.66928759 | F9: 32.59657805 | G9: 60.98852989 | I9: AA+ | J9: 15 | K9: 15 | L9: 26.41458333 | M9: 46.785 | N9: 60.36 | P9: AA+ | Q9: 15 | R9: 15 | S9: 18.75322917 | T9: 31.994 | U9: 40.81775 | W9: AA+ | X9: 4.525 | Y9: 4.525 | Z9: 4.525 | AA9: 4.525 | AB9: 4.525
B10: AA | C10: 15 | D10: 15.24753059 | E10: 22.64102839 | F10: 42.37945226 | G10: 75.91159766 | I10: AA | J10: 15 | K10: 15 | L10: 37.82916667 | M10: 75.99333333 | N10: 103.1433333 | P10: AA | Q10: 15 | R10: 15 | S10: 26.17270833 | T10: 50.97941667 | U10: 68.62691667 | W10: AA | X10: 4.525 | Y10: 4.525 | Z10: 4.525 | AA10: 4.525 | AB10: 4.525
B11: AA- | C11: 15.1983025 | D11: 18.88217171 | E11: 30.46381942 | F11: 50.27432865 | G11: 84.96235078 | I11: AA- | J11: 15 | K11: 18.15444444 | L11: 43.21805556 | M11: 81.50444444 | N11: 112.1127778 | P11: AA- | Q11: 15 | R11: 15 | S11: 29.67548611 | T11: 54.56163889 | U11: 74.45705556 | W11: AA- | X11: 4.525 | Y11: 4.525 | Z11: 4.525 | AA11: 4.525 | AB11: 4.525
B12: CC2 | C12: 27.4868834 | D12: 33.68202698 | E12: 48.69661814 | F12: 68.55055741 | G12: 105.5115465 | I12: CC2 | J12: 16.23097222 | K12: 26.47481481 | L12: 56.49861111 | M12: 96.42574074 | N12: 133.3794444 | P12: CC2 | Q12: 15 | R12: 19.98189352 | S12: 39.49736111 | T12: 65.44999537 | U12: 89.46990278 | W12: CC2 | X12: 7.923611111 | Y12: 7.923611111 | Z12: 7.923611111 | AA12: 7.923611111 | AB12: 7.923611111
B13: A+ | C13: 20.14664486 | D13: 24.94786225 | E13: 38.28661046 | F13: 58.16920505 | G13: 94.0131039 | I13: A+ | J13: 15 | K13: 21.30888889 | L13: 48.60694444 | M13: 87.01555556 | N13: 121.0822222 | P13: A+ | Q13: 15 | R13: 16.07473611 | S13: 33.81847222 | T13: 58.78406944 | U13: 80.92740278 | W13: A+ | X13: 6.354166667 | Y13: 6.354166667 | Z13: 6.354166667 | AA13: 6.354166667 | AB13: 6.354166667
B14: A | C14: 25.09498723 | D14: 31.01355279 | E14: 46.10940149 | F14: 66.06408144 | G14: 103.063857 | I14: A | J14: 15 | K14: 24.46333333 | L14: 53.99583333 | M14: 92.52666667 | N14: 130.0516667 | P14: A | Q14: 15 | R14: 18.94908333 | S14: 38.14520833 | T14: 63.19025 | U14: 87.5815 | W14: A | X14: 8.708333333 | Y14: 8.708333333 | Z14: 8.708333333 | AA14: 8.708333333 | AB14: 8.708333333
B15: A- | C15: 37.2190181 | D15: 45.08466589 | E15: 61.69384247 | F15: 81.41838575 | G15: 119.4576787 | I15: A- | J15: 18.69291667 | K15: 33.65222222 | L15: 66.89305556 | M15: 109.735 | N15: 149.0044444 | P15: A- | Q15: 15.1983125 | R15: 24.92186111 | S15: 46.52840278 | T15: 74.37566667 | U15: 99.90080556 | W15: A- | X15: 8.708333333 | Y15: 8.708333333 | Z15: 8.708333333 | AA15: 8.708333333 | AB15: 8.708333333
B16: CC3 | C16: 67.71323892 | D16: 80.54088837 | E16: 100.4651388 | F16: 122.666295 | G16: 160.7837372 | I16: CC3 | J16: 34.25425926 | K16: 61.04759259 | L16: 106.0189815 | M16: 159.1711111 | N16: 204.1248148 | P16: CC3 | Q16: 29.41401852 | R16: 46.82968519 | S16: 76.06108796 | T16: 110.6099722 | U16: 139.8298796 | W16: CC3 | X16: 20.425 | Y16: 20.425 | Z16: 20.425 | AA16: 20.425 | AB16: 20.425
B17: BBB+ | C17: 52.05160786 | D17: 62.38275173 | E17: 79.40372269 | F17: 99.09921939 | G17: 137.2661677 | I17: BBB+ | J17: 22.38583333 | K17: 42.84111111 | L17: 79.79027778 | M17: 126.9433333 | N17: 167.9572222 | P17: BBB+ | Q17: 18.76975 | R17: 32.06568056 | S17: 56.08263889 | T17: 86.732125 | U17: 113.3911528 | W17: BBB+ | X17: 12.05416667 | Y17: 12.05416667 | Z17: 12.05416667 | AA17: 12.05416667 | AB17: 12.05416667
B18: BBB | C18: 64.14307794 | D18: 75.71987166 | E18: 93.867727 | F18: 115.4845941 | G18: 154.2735269 | I18: BBB | J18: 26.07875 | K18: 52.03 | L18: 92.6875 | M18: 144.1516667 | N18: 186.91 | P18: BBB | Q18: 23.3518125 | R18: 40.220125 | S18: 66.6475 | T18: 100.0992083 | U18: 127.892125 | W18: BBB | X18: 18.2875 | Y18: 18.2875 | Z18: 18.2875 | AA18: 18.2875 | AB18: 18.2875
B19: BBB- | C19: 86.94503095 | D19: 103.5200417 | E19: 128.1239666 | F19: 153.4150716 | G19: 190.811517 | I19: BBB- | J19: 54.29819444 | K19: 88.27166667 | L19: 145.5791667 | M19: 206.4183333 | N19: 257.5072222 | P19: BBB- | Q19: 46.12049306 | R19: 68.20325 | S19: 105.453125 | T19: 144.9985833 | U19: 178.2063611 | W19: BBB- | X19: 30.93333333 | Y19: 30.93333333 | Z19: 30.93333333 | AA19: 30.93333333 | AB19: 30.93333333
B20: CC4 | C20: 165.3010414 | D20: 190.0178847 | E20: 223.0056972 | F20: 257.4616285 | G20: 293.8422178 | I20: CC4 | J20: 96.62736111 | K20: 142.6341667 | L20: 224.9166667 | M20: 299.8183333 | N20: 363.4030556 | P20: CC4 | Q20: 86.46559722 | R20: 116.3700208 | S20: 169.8536458 | T20: 218.5397292 | U20: 259.8697986 | W20: CC4 | X20: 67.59375 | Y20: 67.59375 | Z20: 67.59375 | AA20: 67.59375 | AB20: 67.59375
B21: BB+ | C21: 139.1823713 | D21: 161.1852704 | E21: 191.3784537 | F21: 222.7794429 | G21: 259.4986509 | I21: BB+ | J21: 82.51763889 | K21: 124.5133333 | L21: 198.4708333 | M21: 268.685 | N21: 328.1044444 | P21: BB+ | Q21: 74.36813194 | R21: 101.6653333 | S21: 149.7377083 | T21: 195.3769167 | U21: 233.9995556 | W21: BB+ | X21: 59.23333333 | Y21: 59.23333333 | Z21: 59.23333333 | AA21: 59.23333333 | AB21: 59.23333333
B22: BB | C22: 191.4197116 | D22: 218.850499 | E22: 254.6329408 | F22: 292.1438142 | G22: 328.1857847 | I22: BB | J22: 110.7370833 | K22: 160.755 | L22: 251.3625 | M22: 330.9516667 | N22: 398.7016667 | P22: BB | Q22: 98.5630625 | R22: 131.0747083 | S22: 189.9695833 | T22: 241.7025417 | U22: 285.7400417 | W22: BB | X22: 75.95416667 | Y22: 75.95416667 | Z22: 75.95416667 | AA22: 75.95416667 | AB22: 75.95416667
B23: CC5 | C23: 280.4754366 | D23: 320.1469201 | E23: 366.1329946 | F23: 397.9669955 | G23: 434.1887637 | I23: CC5 | J23: 146.5981944 | K23: 213.0744444 | L23: 309.0013889 | M23: 398.9030556 | N23: 492.8683333 | P23: CC5 | Q23: 187.7791667 | R23: 204.2210972 | S23: 266.5736111 | T23: 325.0096944 | U23: 386.087125 | W23: CC5 | X23: 187.7791667 | Y23: 187.7791667 | Z23: 187.7791667 | AA23: 187.7791667 | AB23: 187.7791667
B24: BB- | C24: 225.2700531 | D24: 257.6266602 | E24: 297.7551046 | F24: 332.3918793 | G24: 368.9654138 | I24: BB- | J24: 125.0815278 | K24: 181.6827778 | L24: 274.4180556 | M24: 358.1322222 | N24: 436.3683333 | P24: BB- | Q24: 122.7736181 | R24: 159.5644306 | S24: 219.8423611 | T24: 274.2565694 | U24: 325.1100417 | W24: BB- | X24: 118.4875 | Y24: 118.4875 | Z24: 118.4875 | AA24: 118.4875 | AB24: 118.4875
B25: B+ | C25: 259.1203946 | D25: 296.4028215 | E25: 340.8772684 | F25: 372.6399444 | G25: 409.7450428 | I25: B+ | J25: 139.4259722 | K25: 202.6105556 | L25: 297.4736111 | M25: 385.3127778 | N25: 474.035 | P25: B+ | Q25: 163.9541667 | R25: 189.0808194 | S25: 250.7418056 | T25: 307.8372639 | U25: 365.5067083 | W25: B+ | X25: 163.9541667 | Y25: 163.9541667 | Z25: 163.9541667 | AA25: 163.9541667 | AB25: 163.9541667
B26: B | C26: 292.9707361 | D26: 335.1789827 | E26: 383.9994321 | F26: 412.8880096 | G26: 450.5246718 | I26: B | J26: 153.7704167 | K26: 223.5383333 | L26: 320.5291667 | M26: 412.4933333 | N26: 511.7016667 | P26: B | Q26: 209.8083333 | R26: 218.7328333 | S26: 281.776875 | T26: 341.5535833 | U26: 406.039 | W26: B | X26: 209.8083333 | Y26: 209.8083333 | Z26: 209.8083333 | AA26: 209.8083333 | AB26: 209.8083333
B27: B- | C27: 344.5405628 | D27: 391.3792159 | E27: 441.9001734 | F27: 473.9481488 | G27: 507.5199264 | I27: B- | J27: 168.1148611 | K27: 244.4661111 | L27: 343.5847222 | M27: 439.6738889 | N27: 549.3683333 | P27: B- | Q27: 258.8666667 | R27: 258.8666667 | S27: 313.9334028 | T27: 376.3913611 | U27: 447.69275 | W27: B- | X27: 258.8666667 | Y27: 258.8666667 | Z27: 258.8666667 | AA27: 258.8666667 | AB27: 258.8666667
B28: Swap | C28: 3.028253609 | D28: 3.355540544 | E28: 4.000468576 | F28: 4.547312402 | G28: 4.85088884 | I28: Swap | J28: 2.530795833 | K28: 2.756783333 | L28: 2.856041667 | M28: 2.938816667 | N28: 3.0064
B30: TCMB W: 1993 - 2017 | I30: TCMB L: 2017 | P30: TCMB BAP: 2017 | W30: Minimum Actuarial Premium: 2017
C31: 6M | D31: 2Y | E31: 5Y | F31: 10Y | G31: 20Y | J31: 6M | K31: 2Y | L31: 5Y | M31: 10Y | N31: 20Y | Q31: 6M | R31: 2Y | S31: 5Y | T31: 10Y | U31: 20Y | X31: 6M | Y31: 2Y | Z31: 5Y | AA31: 10Y | AB31: 20Y
B32: CC1 | C32: 15.05155865 | D32: 16.07435713 | E32: 21.23576548 | F32: 36.27806188 | G32: 66.72933674 | I32: CC1 | J32: 15 | K32: 15.584375 | L32: 29.53256944 | M32: 66.74298611 | N32: 94.71520833 | P32: CC1 | Q32: 15 | R32: 15 | S32: 20.79596181 | T32: 44.98273264 | U32: 63.16467708 | W32: CC1 | X32: 4.570833333 | Y32: 4.570833333 | Z32: 4.570833333 | AA32: 4.570833333 | AB32: 4.570833333
B33: AAA | C33: 15 | D33: 15 | E33: 15.63643333 | F33: 23.02318533 | G33: 47.20501394 | I33: AAA | J33: 15 | K33: 15 | L33: 15.39333333 | M33: 39.80583333 | N33: 39.80583333 | P33: AAA | Q33: 15 | R33: 15 | S33: 15 | T33: 27.47358333 | U33: 27.47358333 | W33: AAA | X33: 4.570833333 | Y33: 4.570833333 | Z33: 4.570833333 | AA33: 4.570833333 | AB33: 4.570833333
B34: AA+ | C34: 15 | D34: 15.12871591 | E34: 17.31947576 | F34: 32.02904117 | G34: 61.01367109 | I34: AA+ | J34: 15 | K34: 15 | L34: 25.5475 | M34: 60.44333333 | N34: 82.165 | P34: AA+ | Q34: 15 | R34: 15 | S34: 18.20566667 | T34: 40.88795833 | U34: 55.00704167 | W34: AA+ | X34: 4.570833333 | Y34: 4.570833333 | Z34: 4.570833333 | AA34: 4.570833333 | AB34: 4.570833333
B35: AA | C35: 15 | D35: 15.25743182 | E35: 22.03350286 | F35: 41.03489701 | G35: 74.82232823 | I35: AA | J35: 15 | K35: 15 | L35: 35.70166667 | M35: 81.08083333 | N35: 124.5241667 | P35: AA | Q35: 15 | R35: 15 | S35: 24.805875 | T35: 54.30233333 | U35: 82.5405 | W35: AA | X35: 4.570833333 | Y35: 4.570833333 | Z35: 4.570833333 | AA35: 4.570833333 | AB35: 4.570833333
B36: AA- | C36: 15.2062346 | D36: 18.9112808 | E36: 29.95364998 | F36: 49.02512402 | G36: 83.8763337 | I36: AA- | J36: 15 | K36: 17.3375 | L36: 41.48777778 | M36: 85.64194444 | N36: 132.3658333 | P36: AA- | Q36: 15 | R36: 15 | S36: 28.56684722 | T36: 57.26705556 | U36: 87.63758333 | W36: AA- | X36: 4.570833333 | Y36: 4.570833333 | Z36: 4.570833333 | AA36: 4.570833333 | AB36: 4.570833333
B37: CC2 | C37: 27.93711984 | D37: 33.97031546 | E37: 48.38453842 | F37: 67.43555008 | G37: 104.3968306 | I37: CC2 | J37: 15.58305556 | K37: 24.17407407 | L37: 55.06092593 | M37: 98.4687963 | N37: 151.4575 | P37: CC2 | Q37: 15 | R37: 18.6118287 | S37: 38.68828241 | T37: 66.90339815 | U37: 101.3460556 | W37: CC2 | X37: 8.281944444 | Y37: 8.281944444 | Z37: 8.281944444 | AA37: 8.281944444 | AB37: 8.281944444
B38: A+ | C38: 20.35251066 | D38: 25.09342119 | E38: 37.8737971 | F38: 57.01535103 | G38: 92.93033916 | I38: A+ | J38: 15 | K38: 19.675 | L38: 47.27388889 | M38: 90.20305556 | N38: 140.2075 | P38: A+ | Q38: 15 | R38: 15.094375 | S38: 33.03365278 | T38: 60.93761111 | U38: 93.4405 | W38: A+ | X38: 6.5875 | Y38: 6.5875 | Z38: 6.5875 | AA38: 6.5875 | AB38: 6.5875
B39: A | C39: 25.49878671 | D39: 31.27556157 | E39: 45.79394421 | F39: 65.00557803 | G39: 101.9843446 | I39: A | J39: 15 | K39: 22.0125 | L39: 53.06 | M39: 94.76416667 | N39: 148.0491667 | P39: A | Q39: 15 | R39: 17.50333333 | S39: 37.68420833 | T39: 64.79191667 | U39: 99.42716667 | W39: A | X39: 9.129166667 | Y39: 9.129166667 | Z39: 9.129166667 | AA39: 9.129166667 | AB39: 9.129166667
B40: A- | C40: 37.96006216 | D40: 45.54196363 | E40: 61.48587394 | F40: 80.28572118 | G40: 118.2758081 | I40: A- | J40: 16.74916667 | K40: 30.83472222 | L40: 64.84888889 | M40: 110.4391667 | N40: 166.1158333 | P40: A- | Q40: 15 | R40: 23.23777778 | S40: 45.34698611 | T40: 74.98066667 | U40: 111.1705 | W40: A- | X40: 9.129166667 | Y40: 9.129166667 | Z40: 9.129166667 | AA40: 9.129166667 | AB40: 9.129166667
B41: CC3 | C41: 69.05159811 | D41: 81.3206202 | E41: 100.2429851 | F41: 121.2061024 | G41: 159.0500941 | I41: CC3 | J41: 25.50148148 | K41: 54.81157407 | L41: 99.31555556 | M41: 155.7012037 | N41: 218.8223148 | P41: CC3 | Q41: 24.2117963 | R41: 43.26335648 | S41: 72.19094444 | T41: 108.8416157 | U41: 149.870338 | W41: CC3 | X41: 21.81666667 | Y41: 21.81666667 | Z41: 21.81666667 | AA41: 21.81666667 | AB41: 21.81666667
B42: BBB+ | C42: 53.23823884 | D42: 63.16441735 | E42: 79.38826049 | F42: 97.98545484 | G42: 136.0385255 | I42: BBB+ | J42: 18.49833333 | K42: 39.65694444 | L42: 76.63777778 | M42: 126.1141667 | N42: 184.1825 | P42: BBB+ | Q42: 16.501 | R42: 30.25409722 | S42: 54.29163889 | T42: 86.45129167 | U42: 124.1957083 | W42: BBB+ | X42: 12.79166667 | Y42: 12.79166667 | Z42: 12.79166667 | AA42: 12.79166667 | AB42: 12.79166667
B43: BBB | C43: 65.66565106 | D43: 76.66746652 | E43: 93.91493608 | F43: 114.3379112 | G43: 152.9680679 | I43: BBB | J43: 20.2475 | K43: 48.47916667 | L43: 88.42666667 | M43: 141.7891667 | N43: 202.2491667 | P43: BBB | Q43: 19.915875 | R43: 38.26645833 | S43: 64.23233333 | T43: 98.91795833 | U43: 138.2169583 | W43: BBB | X43: 19.3 | Y43: 19.3 | Z43: 19.3 | AA43: 19.3 | AB43: 19.3
B44: BBB- | C44: 88.25090442 | D44: 104.1299767 | E44: 127.4257586 | F44: 151.2949411 | G44: 188.1436888 | I44: BBB- | J44: 37.75861111 | K44: 76.29861111 | L44: 132.8822222 | M44: 199.2002778 | N44: 270.0352778 | P44: BBB- | Q44: 36.21851389 | R44: 61.26951389 | S44: 98.04886111 | T44: 141.1555972 | U44: 187.1983472 | W44: BBB- | X44: 33.35833333 | Y44: 33.35833333 | Z44: 33.35833333 | AA44: 33.35833333 | AB44: 33.35833333
B45: CC4 | C45: 168.0479886 | D45: 191.9132334 | E45: 222.9292585 | F45: 255.7673603 | G45: 291.0597843 | I45: CC4 | J45: 64.02527778 | K45: 118.0277778 | L45: 199.5655556 | M45: 285.3169444 | N45: 371.7144444 | P45: CC4 | Q45: 70.825 | R45: 101.5068056 | S45: 154.5063611 | T45: 210.2447639 | U45: 266.4031389 | W45: CC4 | X45: 70.825 | Y45: 70.825 | Z45: 70.825 | AA45: 70.825 | AB45: 70.825
B46: BB+ | C46: 141.4489606 | D46: 162.6521479 | E46: 191.0947585 | F46: 220.9432206 | G46: 256.7544191 | I46: BB+ | J46: 55.26972222 | K46: 104.1180556 | L46: 177.3377778 | M46: 256.6113889 | N46: 337.8213889 | P46: BB+ | Q46: 61.91666667 | R46: 89.34756944 | S46: 136.9403889 | T46: 188.4682361 | U46: 241.2547361 | W46: BB+ | X46: 61.91666667 | Y46: 61.91666667 | Z46: 61.91666667 | AA46: 61.91666667 | AB46: 61.91666667
B47: BB | C47: 194.6470167 | D47: 221.174319 | E47: 254.7637584 | F47: 290.5915001 | G47: 325.3651494 | I47: BB | J47: 72.78083333 | K47: 131.9375 | L47: 221.7933333 | M47: 314.0225 | N47: 405.6075 | P47: BB | Q47: 79.73333333 | R47: 113.6660417 | S47: 172.0723333 | T47: 232.0212917 | U47: 291.5515417 | W47: BB | X47: 79.73333333 | Y47: 79.73333333 | Z47: 79.73333333 | AA47: 79.73333333 | AB47: 79.73333333
B48: CC5 | C48: 285.8305263 | D48: 324.4298191 | E48: 368.4182589 | F48: 397.9295531 | G48: 431.8415809 | I48: CC5 | J48: 83.82944444 | K48: 180.8888889 | L48: 287.6683333 | M48: 374.3975 | N48: 477.545 | P48: CC5 | Q48: 191.5145833 | R48: 191.5145833 | S48: 254.0145208 | T48: 310.3884792 | U48: 377.4343542 | W48: CC5 | X48: 191.5145833 | Y48: 191.5145833 | Z48: 191.5145833 | AA48: 191.5145833 | AB48: 191.5145833
B49: BB- | C49: 229.2775941 | D49: 260.6644155 | E49: 298.6885865 | F49: 331.3622656 | G49: 366.269297 | I49: BB- | J49: 77.20027778 | K49: 151.5180556 | L49: 248.1433333 | M49: 338.1725 | N49: 434.3825 | P49: BB- | Q49: 120.2833333 | R49: 140.5859028 | S49: 203.3923333 | T49: 261.9112917 | U49: 324.4477917 | W49: BB- | X49: 120.2833333 | Y49: 120.2833333 | Z49: 120.2833333 | AA49: 120.2833333 | AB49: 120.2833333
B50: B+ | C50: 263.9081715 | D50: 300.1545121 | E50: 342.6134146 | F50: 372.1330311 | G50: 407.1734445 | I50: B+ | J50: 81.61972222 | K50: 171.0986111 | L50: 274.4933333 | M50: 362.3225 | N50: 463.1575 | P50: B+ | Q50: 168.0291667 | R50: 170.0243056 | S50: 237.230875 | T50: 294.3198333 | U50: 359.8625833 | W50: B+ | X50: 168.0291667 | Y50: 168.0291667 | Z50: 168.0291667 | AA50: 168.0291667 | AB50: 168.0291667
B51: B | C51: 298.5387489 | D51: 339.6446086 | E51: 386.5382428 | F51: 412.9037966 | G51: 448.077592 | I51: B | J51: 86.03916667 | K51: 190.6791667 | L51: 300.8433333 | M51: 386.4725 | N51: 491.9325 | P51: B | Q51: 214.8833333 | R51: 214.8833333 | S51: 270.7573333 | T51: 326.4162917 | U51: 394.9652917 | W51: B | X51: 214.8833333 | Y51: 214.8833333 | Z51: 214.8833333 | AA51: 214.8833333 | AB51: 214.8833333
B52: B- | C52: 351.5975908 | D52: 397.2557401 | E52: 445.8327915 | F52: 475.3191191 | G52: 505.8459901 | I52: B- | J52: 90.45861111 | K52: 210.2597222 | L52: 327.1933333 | M52: 410.6225 | N52: 520.7075 | P52: B- | Q52: 262.8625 | R52: 262.8625 | S52: 304.6775417 | T52: 358.9065 | U52: 430.46175 | W52: B- | X52: 262.8625 | Y52: 262.8625 | Z52: 262.8625 | AA52: 262.8625 | AB52: 262.8625
B53: Swap | C53: 3.04815192 | D53: 3.379490832 | E53: 4.046245653 | F53: 4.611652231 | G53: 4.924668394 | I53: Swap | J53: 1.494441667 | K53: 1.680541667 | L53: 2.000983333 | M53: 2.297191667 | N53: 2.517341667
B55: TCMB W: 1993 - 2016 | I55: TCMB L: 2016 | P55: TCMB BAP: 2016
C56: 6M | D56: 2Y | E56: 5Y | F56: 10Y | G56: 20Y | J56: 6M | K56: 2Y | L56: 5Y | M56: 10Y | N56: 20Y | Q56: 6M | R56: 2Y | S56: 5Y | T56: 10Y | U56: 20Y
B57: CC1 | C57: 15.05370693 | D57: 16.09477305 | E57: 20.89006532 | F57: 35.00869004 | G57: 65.56325876 | I57: CC1 | J57: 15 | K57: 18.99270833 | L57: 49.50743056 | M57: 86.091875 | N57: 123.3515972 | P57: CC1 | Q57: 15 | R57: 15 | S57: 33.79201736 | T57: 57.57190625 | U57: 81.79072569
B58: AAA | C58: 15 | D58: 15 | E58: 15.6465625 | F58: 22.32390833 | G58: 47.51331313 | I58: AAA | J58: 15 | K58: 15 | L58: 30.5175 | M58: 49.84916667 | N58: 49.84916667 | P58: AAA | Q58: 15 | R58: 15 | S58: 21.437625 | T58: 34.00320833 | U58: 34.00320833
B59: AA+ | C59: 15 | D59: 15.13407907 | E59: 16.97664141 | F59: 30.84511233 | G59: 60.13236571 | I59: AA+ | J59: 15 | K59: 16.81916667 | L59: 44.32166667 | M59: 77.68666667 | N59: 106.7916667 | P59: AA+ | Q59: 15 | R59: 15 | S59: 30.41033333 | T59: 52.09758333 | U59: 71.01583333
B60: AA | C60: 15 | D60: 15.26815814 | E60: 21.46399603 | F60: 39.36631633 | G60: 72.7514183 | I60: AA | J60: 15 | K60: 18.63833333 | L60: 58.12583333 | M60: 105.5241667 | N60: 163.7341667 | P60: AA | Q60: 15 | R60: 15 | S60: 39.40491667 | T60: 70.21383333 | U60: 108.0503333
B61: AA- | C61: 15.2148277 | D61: 18.976855 | E61: 29.47306132 | F61: 47.49942317 | G61: 81.85593788 | I61: AA- | J61: 15 | K61: 25.51333333 | L61: 65.06472222 | M61: 111.3075 | N61: 173.0313889 | P61: AA- | Q61: 15 | R61: 18.20679167 | S61: 43.91519444 | T61: 73.973 | U61: 114.0935278
B62: CC2 | C62: 28.45187252 | D62: 34.37849219 | E62: 48.1063556 | F62: 66.14249815 | G62: 102.4359694 | I62: CC2 | J62: 15.73090741 | K62: 41.78925926 | L62: 82.5887963 | M62: 127.4825 | N62: 195.4184259 | P62: CC2 | Q62: 15 | R62: 30.25322685 | S62: 56.77292593 | T62: 85.95383333 | U62: 130.1121852
B63: A+ | C63: 20.57553193 | D63: 25.31918873 | E63: 37.48212661 | F63: 55.63253 | G63: 90.96045746 | I63: A+ | J63: 15 | K63: 32.38833333 | L63: 72.00361111 | M63: 117.0908333 | N63: 182.3286111 | P63: A+ | Q63: 15 | R63: 23.486375 | S63: 49.23630556 | T63: 78.543 | U63: 120.9475556
B64: A | C64: 25.93623616 | D64: 31.66152247 | E64: 45.49119189 | F64: 63.76563684 | G64: 100.064977 | I64: A | J64: 15 | K64: 39.26333333 | L64: 78.9425 | M64: 122.8741667 | N64: 191.6258333 | P64: A | Q64: 15 | R64: 28.9395 | S64: 54.73095833 | T64: 83.28654167 | U64: 127.975125
B65: A- | C65: 38.84384947 | D65: 46.15476536 | E65: 61.34574832 | F65: 79.02932762 | G65: 116.2824737 | I65: A- | J65: 17.19272222 | K65: 53.71611111 | L65: 96.82027778 | M65: 142.4825 | N65: 212.3008333 | P65: A- | Q65: 15 | R65: 38.33380556 | S65: 66.35151389 | T65: 96.03195833 | U65: 141.413875
B66: CC3 | C66: 70.8661863 | D66: 82.42516379 | E66: 100.281628 | F66: 119.7688065 | G66: 156.5595849 | I66: CC3 | J66: 29.01855556 | K66: 91.59944444 | L66: 147.5434259 | M66: 201.3121296 | N66: 274.6091667 | P66: CC3 | Q66: 27.11817222 | R66: 67.79575 | S66: 104.159338 | T66: 139.1089954 | U66: 186.7520694
B67: BBB+ | C67: 54.6857349 | D67: 64.14389539 | E67: 79.50286393 | F67: 96.81342518 | G67: 134.0325266 | I67: BBB+ | J67: 19.38544444 | K67: 68.16888889 | L67: 114.6980556 | M67: 162.0908333 | N67: 232.9758333 | P67: BBB+ | Q67: 17.47866389 | R67: 49.18790278 | S67: 79.43186111 | T67: 110.2371667 | U67: 156.3124167
B68: BBB | C68: 67.55807402 | D68: 77.84197902 | E68: 94.14361397 | F68: 113.1941089 | G68: 150.9146888 | I68: BBB | J68: 21.57816667 | K68: 82.62166667 | L68: 132.5758333 | M68: 181.6991667 | N68: 253.6508333 | P68: BBB | Q68: 21.32768333 | R68: 61.00595833 | S68: 93.47616667 | T68: 125.4063333 | U68: 172.1749167
B69: BBB- | C69: 90.35474997 | D69: 105.289617 | E69: 127.198406 | F69: 149.2988854 | G69: 184.7315392 | I69: BBB- | J69: 46.09205556 | K69: 124.0077778 | L69: 195.3563889 | M69: 260.1463889 | N69: 337.2008333 | P69: BBB- | Q69: 42.54816944 | R69: 93.19338889 | S69: 139.5699861 | T69: 181.6834861 | U69: 231.768875
B70: CC4 | C70: 172.3822682 | D70: 194.9917941 | E70: 223.9027461 | F70: 254.5361277 | G70: 287.6991734 | I70: CC4 | J70: 82.86288889 | K70: 186.0869444 | L70: 289.5272222 | M70: 377.8172222 | N70: 462.5258333 | P70: CC4 | Q70: 78.02910694 | R70: 145.1247431 | S70: 212.3609236 | T70: 269.7494236 | U70: 324.8100208
B71: BB+ | C71: 145.0397622 | D71: 165.0910684 | E71: 191.667966 | F71: 219.4570469 | G71: 253.3766287 | I71: BB+ | J71: 70.60594444 | K71: 165.3938889 | L71: 258.1369444 | M71: 338.5936111 | N71: 420.7508333 | P71: BB+ | Q71: 64.63636389 | R71: 126.2485278 | S71: 186.5315139 | T71: 238.8283472 | U71: 292.2305417
B72: BB | C72: 199.7247743 | D72: 224.8925198 | E72: 256.1375261 | F72: 289.6152084 | G72: 322.0217182 | I72: BB | J72: 95.11983333 | K72: 206.78 | L72: 320.9175 | M72: 417.0408333 | N72: 504.3008333 | P72: BB | Q72: 91.42185 | R72: 164.0009583 | S72: 238.1903333 | T72: 300.6705 | U72: 357.3895
B73: CC5 | C73: 294.2472381 | D73: 330.4106912 | E73: 371.7828391 | F73: 398.9100553 | G73: 429.9372718 | I73: CC5 | J73: 162.8976111 | K73: 295.5994444 | L73: 398.3758333 | M73: 471.1936111 | N73: 552.5786111 | P73: CC5 | Q73: 197.6104167 | R73: 261.3032847 | S73: 328.1079375 | T73: 375.4394931 | U73: 428.3397431
B74: BB- | C74: 235.6141489 | D74: 265.2121805 | E74: 300.7946387 | F74: 331.0785058 | G74: 363.4312468 | I74: BB- | J74: 122.2309444 | K74: 242.3077778 | L74: 351.9008333 | M74: 438.7019444 | N74: 523.6119444 | P74: BB- | Q74: 122.3916667 | R74: 200.3371389 | S74: 271.572625 | T74: 327.9933472 | U74: 383.1848472
B75: B+ | C75: 271.5035235 | D75: 305.5318413 | E75: 345.4517514 | F75: 372.5418032 | G75: 404.8407755 | I75: B+ | J75: 149.3420556 | K75: 277.8355556 | L75: 382.8841667 | M75: 460.3630556 | N75: 542.9230556 | P75: B+ | Q75: 174.9333333 | R75: 241.8197778 | S75: 310.101375 | T75: 360.4626528 | U75: 414.1266528
B76: B | C76: 307.3928981 | D76: 345.851502 | E76: 390.108864 | F76: 414.0051007 | G76: 446.2503042 | I76: B | J76: 176.4531667 | K76: 313.3633333 | L76: 413.8675 | M76: 482.0241667 | N76: 562.2341667 | P76: B | Q76: 229.3541667 | R76: 283.960125 | S76: 349.2878333 | T76: 393.5896667 | U76: 445.7261667
B77: B- | C77: 362.4783817 | D77: 405.0472409 | E77: 450.7761022 | F77: 478.0148116 | G77: 505.2267605 | I77: B- | J77: 203.5642778 | K77: 348.8911111 | L77: 444.8508333 | M77: 503.6852778 | N77: 581.5452778 | P77: B- | Q77: 263.7625 | R77: 319.0960972 | S77: 381.4699167 | T77: 419.7123056 | U77: 470.3213056
B78: Swap | C78: 3.112889848 | D78: 3.450280381 | E78: 4.131464916 | F78: 4.708088088 | G78: 5.024973674 | I78: Swap | J78: 1.077135 | K78: 0.99945 | L78: 1.312991667 | M78: 1.691091667 | N78: 2.008075
B80: TCMB W: 1993 - 2015 | I80: TCMB L: 2015
C81: 6M | D81: 2Y | E81: 5Y | F81: 10Y | G81: 20Y | J81: 6M | K81: 2Y | L81: 5Y | M81: 10Y | N81: 20Y
B82: CC1 | C82: 15.05604201 | D82: 15.96877587 | E82: 19.64583205 | F82: 32.787682 | G82: 63.0507223 | I82: CC1 | J82: 15 | K82: 18.2578125 | L82: 38.5 | M82: 65.86347222 | N82: 100.5016667
B83: AAA | C83: 15 | D83: 15 | E83: 15 | F83: 21.12715797 | G83: 47.41175428 | I83: AAA | J83: 15 | K83: 15 | L83: 15 | M83: 21.10166667 | N83: 21.10166667
B84: AA+ | C84: 15 | D84: 15.06081439 | E84: 15.78772727 | F84: 28.80852301 | G84: 58.10370046 | I84: AA+ | J84: 15 | K84: 16.33791667 | L84: 32.33 | M84: 55.06833333 | N84: 82.84833333
B85: AA | C85: 15 | D85: 15.12162879 | E85: 19.87000311 | F85: 36.48988806 | G85: 68.79564663 | I85: AA | J85: 15 | K85: 17.67583333 | L85: 49.66 | M85: 89.035 | N85: 144.595
B86: AA- | C86: 15.22416804 | D86: 18.69266029 | E86: 27.9255978 | F86: 44.72515896 | G86: 77.89178784 | I86: AA- | J86: 15 | K86: 24.0175 | L86: 57.01 | M86: 98.24888889 | N86: 153.4616667
B87: CC2 | C87: 29.00495796 | D87: 34.05628492 | E87: 46.60711905 | F87: 63.47554155 | G87: 98.39325391 | I87: CC2 | J87: 19.39074074 | K87: 39.4887963 | L87: 75.01833333 | M87: 120.1794444 | N87: 175.5931481
B88: A+ | C88: 20.81794636 | D88: 25.01183462 | E88: 35.9811925 | F88: 52.96042986 | G88: 86.98792904 | I88: A+ | J88: 15 | K88: 30.35916667 | L88: 64.36 | M88: 107.4627778 | N88: 162.3283333
B89: A | C89: 26.41172469 | D89: 31.33100895 | E89: 44.03678719 | F89: 61.19570076 | G89: 96.08407025 | I89: A | J89: 15 | K89: 36.70083333 | L89: 71.71 | M89: 116.6766667 | N89: 171.195
B90: A- | C90: 39.78520283 | D90: 45.8260112 | E90: 59.80337747 | F90: 76.27049404 | G90: 112.1077624 | I90: A- | J90: 28.17222222 | K90: 51.40638889 | L90: 88.985 | M90: 136.3988889 | N90: 193.2561111
B91: CC3 | C91: 72.6856485 | D91: 82.02628202 | E91: 98.22676717 | F91: 116.2234446 | G91: 151.4269944 | I91: CC3 | J91: 58.44444444 | K91: 90.1712037 | L91: 139.122963 | M91: 192.5766667 | N91: 253.5681481
B92: BBB+ | C92: 56.22053014 | D92: 63.96889567 | E92: 77.97263821 | F92: 93.975277 | G92: 129.7306437 | I92: BBB+ | J92: 41.34444444 | K92: 66.11194444 | L92: 106.26 | M92: 156.1211111 | N92: 215.3172222
B93: BBB | C93: 69.55720043 | D93: 77.63416651 | E93: 92.47264792 | F93: 110.2156281 | G93: 146.4478999 | I93: BBB | J93: 54.51666667 | K93: 80.8175 | L93: 123.535 | M93: 175.8433333 | N93: 237.3783333
B94: BBB- | C94: 92.27921494 | D94: 104.4757839 | E94: 124.2350154 | F94: 144.4794287 | G94: 178.1024395 | I94: BBB- | J94: 79.47222222 | K94: 123.5841667 | L94: 187.5738889 | M94: 245.7655556 | N94: 308.0088889
B95: CC4 | C95: 176.2744152 | D95: 195.3789615 | E95: 221.049508 | F95: 249.1760801 | G95: 280.0980143 | I95: CC4 | J95: 116.9055556 | K95: 187.7341667 | L95: 283.6322222 | M95: 350.6488889 | N95: 413.9547222
B96: BB+ | C96: 148.2760151 | D96: 165.0779023 | E96: 188.7780105 | F96: 214.2771963 | G96: 246.0994894 | I96: BB+ | J96: 104.4277778 | K96: 166.3508333 | L96: 251.6127778 | M96: 315.6877778 | N96: 378.6394444
B97: BB | C97: 204.2728153 | D97: 225.6800207 | E97: 253.3210055 | F97: 284.0749638 | G97: 314.0965393 | I97: BB | J97: 129.3833333 | K97: 209.1175 | L97: 315.6516667 | M97: 385.61 | N97: 449.27
B98: CC5 | C98: 299.9580914 | D98: 331.9242237 | E98: 370.6266219 | F98: 395.767292 | G98: 424.6050396 | I98: CC5 | J98: 172.5916667 | K98: 281.8536111 | L98: 389.8947222 | M98: 447.3947222 | N98: 528.0894444
B99: BB- | C99: 240.5438535 | D99: 266.2080241 | E99: 298.5726303 | F99: 326.3992259 | G99: 356.4668687 | I99: BB- | J99: 146.6666667 | K99: 238.2119444 | L99: 345.3488889 | M99: 410.3238889 | N99: 480.7977778
B100: B+ | C100: 276.8148917 | D100: 306.7360276 | E100: 343.8242551 | F100: 368.7234879 | G100: 398.8371981 | I100: B+ | J100: 163.95 | K100: 267.3063889 | L100: 375.0461111 | M100: 435.0377778 | N100: 512.3255556
B101: B | C101: 313.0859299 | D101: 347.2640311 | E101: 389.0758798 | F101: 411.04775 | G101: 441.2075275 | I101: B | J101: 181.2333333 | K101: 296.4008333 | L101: 404.7433333 | M101: 459.7516667 | N101: 543.8533333
B102: B- | C102: 369.3876905 | D102: 407.4888117 | E102: 451.0337226 | F102: 476.8987044 | G102: 501.9085641 | I102: B- | J102: 198.5166667 | K102: 325.4952778 | L102: 434.4405556 | M102: 484.4655556 | N102: 575.3811111
B103: Swap | C103: 3.201400928 | D103: 3.556838223 | E103: 4.254007231 | F103: 4.839261846 | G103: 5.156143182 | I103: Swap | J103: 0.5026666667 | K103: 0.875575 | L103: 1.5849 | M103: 2.132483333 | N103: 2.47855
B105: TCMB W: 1993 - 2014 | I105: TCMB L: 2014
C106: 6M | D106: 2Y | E106: 5Y | F106: 10Y | G106: 20Y | J106: 6M | K106: 2Y | L106: 5Y | M106: 10Y | N106: 20Y
B107: CC1 | C107: 15.05871068 | D107: 15.85977412 | E107: 18.74801452 | F107: 31.21264437 | G107: 61.267344 | I107: CC1 | J107: 15 | K107: 17.01666667 | L107: 19.91788194 | M107: 39.59756944 | N107: 64.9671875
B108: AAA | C108: 15 | D108: 15 | E108: 15 | F108: 21.12837184 | G108: 48.6646156 | I108: AAA | J108: 15 | K108: 15 | L108: 15 | M108: 15 | N108: 15
B109: AA+ | C109: 15 | D109: 15 | E109: 15 | F109: 27.55805586 | G109: 56.9253846 | I109: AA+ | J109: 15 | K109: 15.7 | L109: 17.62541667 | M109: 32.73083333 | N109: 53.32208333
B110: AA | C110: 15 | D110: 15 | E110: 18.45143183 | F110: 33.98773987 | G110: 65.18615361 | I110: AA | J110: 15 | K110: 16.4 | L110: 20.25083333 | M110: 50.46166667 | N110: 91.64416667
B111: AA- | C111: 15.23484271 | D111: 18.43909649 | E111: 26.54062627 | F111: 42.17640991 | G111: 74.29322218 | I111: AA- | J111: 15 | K111: 20.96666667 | L111: 26.79527778 | M111: 60.19777778 | N111: 99.9025
B112: CC2 | C112: 29.46277783 | D112: 33.79759391 | E112: 45.25420409 | F112: 60.7753557 | G112: 94.71706847 | I112: CC2 | J112: 17.37074074 | K112: 32.22685185 | L112: 42.19342593 | M112: 81.64777778 | N112: 120.1015741
B113: A+ | C113: 21.09499143 | D113: 24.75719976 | E113: 34.62982071 | F113: 50.36507996 | G113: 83.40029074 | I113: A+ | J113: 15 | K113: 25.53333333 | L113: 33.33972222 | M113: 69.93388889 | N113: 108.1608333
B114: A | C114: 26.95514015 | D114: 31.07530303 | E114: 42.71901515 | F114: 58.55375 | G114: 92.50735931 | I114: A | J114: 15 | K114: 30.1 | L114: 39.88416667 | M114: 79.67 | N114: 116.4191667
B115: A- | C115: 40.33820191 | D115: 45.56027893 | E115: 58.4137764 | F115: 73.40723714 | G115: 108.2435554 | I115: A- | J115: 22.11222222 | K115: 41.04722222 | L115: 53.35638889 | M115: 95.33944444 | N115: 135.7247222
B116: CC3 | C116: 73.36380108 | D116: 81.6384286 | E116: 96.27932928 | F116: 112.5875769 | G116: 146.5631299 | I116: CC3 | J116: 42.31962963 | K116: 72.19722222 | L116: 94.37490741 | M116: 139.3033333 | N116: 188.4830556
B117: BBB+ | C117: 56.92891517 | D117: 63.86684573 | E117: 76.62562098 | F117: 91.01595156 | G117: 125.6550923 | I117: BBB+ | J117: 29.22444444 | K117: 51.99444444 | L117: 66.82861111 | M117: 111.0088889 | N117: 155.0302778
B118: BBB | C118: 70.27341632 | D118: 77.4825792 | E118: 90.99348829 | F118: 107.0904993 | G118: 142.1178793 | I118: BBB | J118: 36.33666667 | K118: 62.94166667 | L118: 80.30083333 | M118: 126.6783333 | N118: 174.3358333
B119: BBB- | C119: 92.88907174 | D119: 103.5658609 | E119: 121.2188786 | F119: 139.6562798 | G119: 171.9164181 | I119: BBB- | J119: 61.39777778 | K119: 101.6555556 | L119: 135.9952778 | M119: 180.2227778 | N119: 236.0830556
B120: CC4 | C120: 179.1015037 | D120: 195.7429993 | E120: 218.0693787 | F120: 244.3440416 | G120: 273.7238854 | I120: CC4 | J120: 98.98944444 | K120: 159.7263889 | L120: 219.5369444 | M120: 260.5394444 | N120: 328.7038889
B121: BB+ | C121: 150.3640264 | D121: 165.0172865 | E121: 185.7858787 | F121: 209.448121 | G121: 239.7880629 | I121: BB+ | J121: 86.45888889 | K121: 140.3694444 | L121: 191.6897222 | M121: 233.7672222 | N121: 297.8302778
B122: BB | C122: 207.8389811 | D122: 226.4687121 | E122: 250.3528788 | F122: 279.2399621 | G122: 307.6597078 | I122: BB | J122: 111.52 | K122: 179.0833333 | L122: 247.3841667 | M122: 287.3116667 | N122: 359.5775
B123: CC5 | C123: 306.0231593 | D123: 334.3085385 | E123: 369.7090934 | F123: 393.308843 | G123: 419.6772108 | I123: CC5 | J123: 125.2908333 | K123: 222.5486111 | L123: 323.3702778 | M123: 336.2144444 | N123: 418.1677778
B124: BB- | C124: 245.0141957 | D124: 267.5411708 | E124: 296.3451894 | F124: 322.4028134 | G124: 350.5463492 | I124: BB- | J124: 117.0283333 | K124: 196.4694444 | L124: 277.7786111 | M124: 306.8727778 | N124: 383.0136111
B125: B+ | C125: 282.1894104 | D125: 308.6136295 | E125: 342.3375 | F125: 365.5656646 | G125: 393.4329906 | I125: B+ | J125: 122.5366667 | K125: 213.8555556 | L125: 308.1730556 | M125: 326.4338889 | N125: 406.4497222
B126: B | C126: 319.364625 | D126: 349.6860882 | E126: 388.3298106 | F126: 408.7285158 | G126: 436.319632 | I126: B | J126: 128.045 | K126: 231.2416667 | L126: 338.5675 | M126: 345.995 | N126: 429.8858333
B127: B- | C127: 377.524406 | D127: 411.3932657 | E127: 451.8238734 | F127: 476.5383781 | G127: 498.4098714 | I127: B- | J127: 133.5533333 | K127: 248.6277778 | L127: 368.9619444 | M127: 365.5561111 | N127: 453.3219444
B128: Swap | C128: 3.329912083 | D128: 3.684517424 | E128: 4.381107576 | F128: 4.968156061 | G128: 5.283647619 | I128: Swap | J128: 0.33155 | K128: 0.6366666667 | L128: 1.735991667 | M128: 2.605133333 | N128: 3.138141667
B130: TCMB W: 1993 - 2013, prototype | I130: TCMB L: 2013
C131: 6M | D131: 2Y | E131: 5Y | F131: 10Y | G131: 20Y | J131: 6M | K131: 2Y | L131: 5Y | M131: 10Y | N131: 20Y
B132: CC1 | C132: 7.476441961 | D132: 9.633050278 | E132: 16.62389997 | F132: 30.81336222 | G132: 61.09116097 | I132: CC1 | J132: 15 | K132: 23.63645833 | L132: 39.92805556 | M132: 61.79118056 | N132: 88.30923611
B133: AAA | C133: 1.418776995 | D133: 1.5584124 | E133: 8.278987213 | F133: 21.42019907 | G133: 50.26769253 | I133: AAA | J133: 15 | K133: 15 | L133: 35.7725 | M133: 61.14916667 | N133: 61.14916667
B134: AA+ | C134: 4.134142887 | D134: 6.7378217 | E134: 13.32236663 | F134: 27.31173312 | G134: 57.09697038 | I134: AA+ | J134: 15 | K134: 20.8075 | L134: 37.58083333 | M134: 59.43666667 | N134: 79.91333333
B135: AA | C135: 9.10682227 | D135: 11.917231 | E135: 18.36574604 | F135: 33.20326717 | G135: 63.92624823 | I135: AA | J135: 15 | K135: 26.615 | L135: 39.38916667 | M135: 57.72416667 | N135: 98.6775
B136: AA- | C136: 15.24602569 | D136: 18.31873601 | E136: 26.52850001 | F136: 41.31824954 | G136: 73.07373276 | I136: AA- | J136: 15 | K136: 32.12333333 | L136: 46.96972222 | M136: 68.85472222 | N136: 113.4969444
B137: CC2 | C137: 30.03858912 | D137: 33.87239115 | E137: 45.39995543 | F137: 59.78143084 | G137: 93.50828249 | I137: CC2 | J137: 17.5369899 | K137: 45.28158249 | L137: 65.24093434 | M137: 93.63696128 | N137: 144.621271
B138: A+ | C138: 21.38522912 | D138: 24.72024102 | E138: 34.69125397 | F138: 49.43323191 | G138: 82.22121729 | I138: A+ | J138: 15 | K138: 37.63166667 | L138: 54.55027778 | M138: 79.98527778 | N138: 128.3163889
B139: A | C139: 27.52443254 | D139: 31.12174603 | E139: 42.85400794 | F139: 57.54821429 | G139: 91.36870181 | I139: A | J139: 15 | K139: 43.14 | L139: 62.13083333 | M139: 91.11583333 | N139: 143.1358333
B140: A- | C140: 41.2061057 | D140: 45.77518639 | E140: 58.65460438 | F140: 72.36284632 | G140: 106.9349284 | I140: A- | J140: 22.6109697 | K140: 55.07308081 | L140: 79.04169192 | M140: 109.8097727 | N140: 162.4115909
B141: CC3 | C141: 74.84209496 | D141: 82.08800986 | E141: 96.37001603 | F141: 111.315398 | G141: 144.566943 | I141: CC3 | J141: 44.54507744 | K141: 86.32459596 | L141: 122.03117 | M141: 156.9239141 | N141: 213.9977862
B142: BBB+ | C142: 58.24817569 | D142: 64.43219817 | E142: 77.09214526 | F142: 90.06390693 | G142: 124.256274 | I142: BBB+ | J142: 30.22193939 | K142: 67.00616162 | L142: 95.95255051 | M142: 128.5037121 | N142: 181.6873485
B143: BBB | C143: 71.88945202 | D143: 78.17500361 | E143: 91.50266234 | F143: 106.1577453 | G143: 140.583691 | I143: BBB | J143: 37.83290909 | K143: 78.93924242 | L143: 112.8634091 | M143: 147.1976515 | N143: 200.9631061
B144: BBB- | C144: 94.38865717 | D144: 103.6568278 | E144: 120.5152405 | F144: 137.7245418 | G144: 168.8608639 | I144: BBB- | J144: 65.58038384 | K144: 113.0283838 | L144: 157.2775505 | M144: 195.0703788 | N144: 259.342904
B145: CC4 | C145: 182.9163637 | D145: 197.458076 | E145: 217.9994946 | F145: 243.5728319 | G145: 271.10579 | I145: CC4 | J145: 107.201596 | K145: 164.162096 | L145: 223.8987626 | M145: 266.8794697 | N145: 346.912601
B146: BB+ | C146: 153.4071282 | D146: 166.1909933 | E146: 185.5047433 | F146: 208.2900685 | G146: 237.0241479 | I146: BB+ | J146: 93.32785859 | K146: 147.1175253 | L146: 201.6916919 | M146: 242.9431061 | N146: 317.722702
B147: BB | C147: 212.4255992 | D147: 228.7251587 | E147: 250.494246 | F147: 278.8555952 | G147: 305.187432 | I147: BB | J147: 121.0753333 | K147: 181.2066667 | L147: 246.1058333 | M147: 290.8158333 | N147: 376.1025
B148: CC5 | C148: 314.6294605 | D148: 339.6304398 | E148: 371.9157036 | F148: 396.0276239 | G148: 419.7490886 | I148: CC5 | J148: 159.5826592 | K148: 225.5492655 | L148: 323.1778782 | M148: 362.1867438 | N148: 426.1291789
B149: BB- | C149: 251.1087606 | D149: 270.9255387 | E149: 297.2293122 | F149: 323.1423389 | G149: 349.0002891 | I149: BB- | J149: 132.2642222 | K149: 194.3511111 | L149: 272.4697222 | M149: 315.1463889 | N149: 390.0317929
B150: B+ | C150: 289.791922 | D150: 313.1259187 | E150: 343.9643783 | F150: 367.4290825 | G150: 392.8131463 | I150: B+ | J150: 143.4531111 | K150: 207.4955556 | L150: 298.8336111 | M150: 339.4769444 | N150: 403.9610859
B151: B | C151: 328.4750833 | D151: 355.3262987 | E151: 390.6994444 | F151: 411.7158261 | G151: 436.6260034 | I151: B | J151: 154.642 | K151: 220.64 | L151: 325.1975 | M151: 363.8075 | N151: 417.8903788
B152: B- | C152: 389.1420761 | D152: 419.1440033 | E152: 455.7696796 | F152: 481.823248 | G152: 500.5569155 | I152: B- | J152: 207.9713034 | K152: 279.7103955 | L152: 396.2106795 | M152: 430.316142 | N152: 492.6334579
B153: Swap | C153: 3.47269123 | D153: 3.829653175 | E153: 4.507065476 | F153: 5.080680952 | G153: 5.385814569 | I153: Swap | J153: 0.40258 | K153: 0.4455166667 | L153: 1.344275 | M153: 2.500841667 | N153: 3.233641667

Sheet Calculation_unlocked (hidden)
B2: TCMB
B3: Disbursement period (months) | C3: 12
B4: Repayment period (years) | C4: 5
B5: Cover ratio | C5: 0.95
B6: Buyer Credit Rating | C6: CC5
B7: CIRR base rate | C7: 0
B8: Benchmark Curve | C8: BAP
B9: Discounting method | C9: DMAR
B11: Name Specific instruments
B12: Bond | C12: 180
B13: CDS | C13: 100
B14: Syn. loan | C14: 20
I16: Minimum pricing
B17: Calculation results | C17: =+"TCMB "&C8 -> TCMB BAP | D17: Bond | E17: CDS | F17: Syn. loan | G17: MAP | I17: =+INDEX(C17:G17,MATCH(I19,C19:G19,0)) -> MAP
B18: ="Spread at PR: "&ROUND(por($C$3,$C$4),2)&" years" -> Spread at PR: 3,25 years | C18: =+TCMBspread($C$3,$C$4,$C$6,$C$8) -> 218 | D18: =+IF(ISNUMBER(C12),C12,"") -> 180 | E18: =+IF(ISNUMBER(C13),C13,"") -> 100 | F18: =+IF(ISNUMBER(C14),C14,"") -> 20 | G18: =+IF(TCMBspread($C$3,$C$4,$C$6,"MAP")<15,15,TCMBspread($C$3,$C$4,$C$6,"MAP")) -> 192 | I18: =+MAX(G18,MIN(C18:F18)) -> 192
B19: Cover adjusted spread | C19: =+ROUND(C18*C5,0) -> 207 | D19: =+IF(ISNUMBER(C12),ROUND(C12*$C$5,0),"") -> 171 | E19: =+IF(ISNUMBER(C13),ROUND(C13*$C$5,0),"") -> 95 | F19: =+IF(ISNUMBER(C14),ROUND(C14*$C$5,0),"") -> 19 | G19: =+ROUND(G18*C5,0) -> 182 | I19: =+MAX(G19,MIN(C19:F19)) -> 182
B20: Unfinanced upfront premium rate | C20: =+IF($C$9="DMAR",DMAR($C$3,$C$4,$C$18,$C$5,$C$7),BRCS($C$3,$C$4,$C$18,$C$5,$C$7)) -> 0.06350641763 | D20: =+IF(ISNUMBER(C12),IF($C$9="DMAR",DMAR($C$3,$C$4,C$12,$C$5,$C$7),BRCS($C$3,$C$4,C$12,$C$5,$C$7)),"") -> 0.05298381403 | E20: =+IF(ISNUMBER(C13),IF($C$9="DMAR",DMAR($C$3,$C$4,C$13,$C$5,$C$7),BRCS($C$3,$C$4,C$13,$C$5,$C$7)),"") -> 0.0300615165 | F20: =+IF(ISNUMBER(C14),IF($C$9="DMAR",DMAR($C$3,$C$4,C$14,$C$5,$C$7),BRCS($C$3,$C$4,C$14,$C$5,$C$7)),"") -> 0.006141894319 | G20: =+IF($C$9="DMAR",DMAR($C$3,$C$4,$G$18,$C$5,$C$7),BRCS($C$3,$C$4,$G$18,$C$5,$C$7)) -> 0.05621571915 | I20: =+MAX(G20,MIN(C20:F20)) -> 0.05621571915
B21: Financed upfront premium rate | C21: =+C20/(1-C20) -> 0.06781297686 | D21: =+IF(ISNUMBER(D20),D20/(1-D20),"") -> 0.05594816098 | E21: =+IF(ISNUMBER(E20),E20/(1-E20),"") -> 0.03099321969 | F21: =+IF(ISNUMBER(F20),F20/(1-F20),"") -> 0.006179850306 | G21: =+G20/(1-G20) -> 0.05956416132 | I21: =+MAX(G21,MIN(C21:F21)) -> 0.05956416132

Sheet model options (hidden)
B2: TCMB model
B3: 1. minimum premium | D3: 15 | E3: bps
B4: 2. B- extrapolation | D4: Linear | F4: Linear | G4: Exponential
B6: Actuarial Premium model
B7: 1. include Fitch | D7: Yes
B8: 2. actuarial floor | D8: Yes
B9: 3. LGD | D9: 0.5
B10: 4. Admin loading | D10: 0.25
B11: 5. Reference method | D11: 5
B12: 6. minimum premium | D12: 15 | E12: bps
B13: 7. Blending weight for L | D13: 0.65

Sheet Spread matrices_unlocked (hidden)
B5: =+"TCMB W: 1993 - "&YEAR(BBG!B3) -> TCMB W: 1993 - 2018 | I5: =+"TCMB L: "&YEAR(BBG!B3) -> TCMB L: 2018 | P5: =+"TCMB BAP: "&YEAR(BBG!B3) -> TCMB BAP: 2018 | W5: =+"Minimum Actuarial Premium: "&YEAR(BBG!B3) -> Minimum Actuarial Premium: 2018
C6: 6M | D6: 2Y | E6: 5Y | F6: 10Y | G6: 20Y | J6: 6M | K6: 2Y | L6: 5Y | M6: 10Y | N6: 20Y | Q6: 6M | R6: 2Y | S6: 5Y | T6: 10Y | U6: 20Y | X6: 6M | Y6: 2Y | Z6: 5Y | AA6: 10Y | AB6: 20Y
B7: CC1 | C7: =+AVERAGE(C8:C11) -> 15.04957562 | D7: =+AVERAGE(D8:D11) -> 16.0633669 | E7: =+AVERAGE(E8:E11) -> 21.59652263 | F7: =+AVERAGE(F8:F11) -> 37.0160157 | G7: =+AVERAGE(G8:G11) -> 66.98198511 | I7: CC1 | J7: =+AVERAGE(J8:J11) -> 15 | K7: =+AVERAGE(K8:K11) -> 15.78861111 | L7: 30.61545139 | M7: 55.46486111 | N7: 73.29819444 | P7: CC1 | Q7: =+MAX('model options'!$D$12,$X7,J7*'model options'!$D$13+'Spread matrices_unlocked'!X7*(1-'model options'!$D$13)) -> 15 | R7: =+MAX('model options'!$D$12,$X7,K7*'model options'!$D$13+'Spread matrices_unlocked'!Y7*(1-'model options'!$D$13)) -> 15 | S7: =+MAX('model options'!$D$12,$X7,L7*'model options'!$D$13+'Spread matrices_unlocked'!Z7*(1-'model options'!$D$13)) -> 21.4837934 | T7: =+MAX('model options'!$D$12,$X7,M7*'model options'!$D$13+'Spread matrices_unlocked'!AA7*(1-'model options'!$D$13)) -> 37.63590972 | U7: =+MAX('model options'!$D$12,$X7,N7*'model options'!$D$13+'Spread matrices_unlocked'!AB7*(1-'model options'!$D$13)) -> 49.22757639 | W7: CC1 | X7: =+AVERAGE(X8:X11) -> 4.525 | Y7: =+X7 -> 4.525 | Z7: =+Y7 -> 4.525 | AA7: 4.525 | AB7: 4.525
B8: AAA | C8: =+MAX(BBG!$G$2,((2017-1993+1)*C33+J8)/(2018-1993+1)) -> 15 | D8: =+MAX(BBG!$G$2,((2017-1993+1)*D33+K8)/(2018-1993+1)) -> 15 | E8: =+MAX(BBG!$G$2,((2017-1993+1)*E33+L8)/(2018-1993+1)) -> 15.61195513 | F8: =+MAX(BBG!$G$2,((2017-1993+1)*F33+M8)/(2018-1993+1)) -> 22.81370384 | G8: =+MAX(BBG!$G$2,((2017-1993+1)*G33+N8)/(2018-1993+1)) -> 46.06546212 | I8: AAA | J8: =+BBG!G12 -> 15 | K8: =+BBG!H12 -> 15 | L8: =+BBG!I12 -> 15 | M8: =+BBG!J12 -> 17.57666667 | N8: =+BBG!K12 -> 17.57666667 | P8: AAA | Q8: =+MAX('model options'!$D$12,$X8,J8*'model options'!$D$13+'Spread matrices_unlocked'!X8*(1-'model options'!$D$13)) -> 15 | R8: =+MAX('model options'!$D$12,$X8,K8*'model options'!$D$13+'Spread matrices_unlocked'!Y8*(1-'model options'!$D$13)) -> 15 | S8: =+MAX('model options'!$D$12,$X8,L8*'model options'!$D$13+'Spread matrices_unlocked'!Z8*(1-'model options'!$D$13)) -> 15 | T8: =+MAX('model options'!$D$12,$X8,M8*'model options'!$D$13+'Spread matrices_unlocked'!AA8*(1-'model options'!$D$13)) -> 15 | U8: =+MAX('model options'!$D$12,$X8,N8*'model options'!$D$13+'Spread matrices_unlocked'!AB8*(1-'model options'!$D$13)) -> 15 | W8: AAA | X8: =+'Derivation of TCMB-BAP rates'!G6/'Derivation of TCMB-BAP rates'!$B$25*'Derivation of TCMB-BAP rates'!$B$26*(1+'Derivation of TCMB-BAP rates'!$B$27)*100 -> 4.525 | Y8: =+X8 -> 4.525 | Z8: 4.525 | AA8: 4.525 | AB8: 4.525
B9: AA+ | C9: =+MAX(BBG!$G$2,((2017-1993+1)*C34+J9)/(2018-1993+1)) -> 15 | D9: =+MAX(BBG!$G$2,((2017-1993+1)*D34+K9)/(2018-1993+1)) -> 15.1237653 | E9: =+MAX(BBG!$G$2,((2017-1993+1)*E34+L9)/(2018-1993+1)) -> 17.66928759 | F9: =+MAX(BBG!$G$2,((2017-1993+1)*F34+M9)/(2018-1993+1)) -> 32.59657805 | G9: =+MAX(BBG!$G$2,((2017-1993+1)*G34+N9)/(2018-1993+1)) -> 60.98852989 | I9: AA+ | J9: =+(J8+J10)/2 -> 15 | K9: =+(K8+K10)/2 -> 15 | L9: 26.41458333 | M9: 46.785 | N9: 60.36 | P9: AA+ | Q9: =+MAX('model options'!$D$12,$X9,J9*'model options'!$D$13+'Spread matrices_unlocked'!X9*(1-'model options'!$D$13)) -> 15 | R9: =+MAX('model options'!$D$12,$X9,K9*'model options'!$D$13+'Spread matrices_unlocked'!Y9*(1-'model options'!$D$13)) -> 15 | S9: =+MAX('model options'!$D$12,$X9,L9*'model options'!$D$13+'Spread matrices_unlocked'!Z9*(1-'model options'!$D$13)) -> 18.75322917 | T9: =+MAX('model options'!$D$12,$X9,M9*'model options'!$D$13+'Spread matrices_unlocked'!AA9*(1-'model options'!$D$13)) -> 31.994 | U9: =+MAX('model options'!$D$12,$X9,N9*'model options'!$D$13+'Spread matrices_unlocked'!AB9*(1-'model options'!$D$13)) -> 40.81775 | W9: AA+ | X9: =+'Derivation of TCMB-BAP rates'!G7/'Derivation of TCMB-BAP rates'!$B$25*'Derivation of TCMB-BAP rates'!$B$26*(1+'Derivation of TCMB-BAP rates'!$B$27)*100 -> 4.525 | Y9: =+X9 -> 4.525 | Z9: 4.525 | AA9: 4.525 | AB9: 4.525
B10: AA | C10: =+MAX(BBG!$G$2,((2017-1993+1)*C35+J10)/(2018-1993+1)) -> 15 | D10: =+MAX(BBG!$G$2,((2017-1993+1)*D35+K10)/(2018-1993+1)) -> 15.24753059 | E10: =+MAX(BBG!$G$2,((2017-1993+1)*E35+L10)/(2018-1993+1)) -> 22.64102839 | F10: =+MAX(BBG!$G$2,((2017-1993+1)*F35+M10)/(2018-1993+1)) -> 42.37945226 | G10: =+MAX(BBG!$G$2,((2017-1993+1)*G35+N10)/(2018-1993+1)) -> 75.91159766 | I10: AA | J10: =+BBG!G13 -> 15 | K10: =+BBG!H13 -> 15 | L10: =+BBG!I13 -> 37.82916667 | M10: =+BBG!J13 -> 75.99333333 | N10: =+BBG!K13 -> 103.1433333 | P10: AA | Q10: =+MAX('model options'!$D$12,$X10,J10*'model options'!$D$13+'Spread matrices_unlocked'!X10*(1-'model options'!$D$13)) -> 15 | R10: =+MAX('model options'!$D$12,$X10,K10*'model options'!$D$13+'Spread matrices_unlocked'!Y10*(1-'model options'!$D$13)) -> 15 | S10: =+MAX('model options'!$D$12,$X10,L10*'model options'!$D$13+'Spread matrices_unlocked'!Z10*(1-'model options'!$D$13)) -> 26.17270833 | T10: =+MAX('model options'!$D$12,$X10,M10*'model options'!$D$13+'Spread matrices_unlocked'!AA10*(1-'model options'!$D$13)) -> 50.97941667 | U10: =+MAX('model options'!$D$12,$X10,N10*'model options'!$D$13+'Spread matrices_unlocked'!AB10*(1-'model options'!$D$13)) -> 68.62691667 | W10: AA | X10: =+'Derivation of TCMB-BAP rates'!G8/'Derivation of TCMB-BAP rates'!$B$25*'Derivation of TCMB-BAP rates'!$B$26*(1+'Derivation of TCMB-BAP rates'!$B$27)*100 -> 4.525 | Y10: =+X10 -> 4.525 | Z10: 4.525 | AA10: 4.525 | AB10: 4.525
B11: AA- | C11: =+MAX(BBG!$G$2,((2017-1993+1)*C36+J11)/(2018-1993+1)) -> 15.1983025 | D11: =+MAX(BBG!$G$2,((2017-1993+1)*D36+K11)/(2018-1993+1)) -> 18.88217171 | E11: =+MAX(BBG!$G$2,((2017-1993+1)*E36+L11)/(2018-1993+1)) -> 30.46381942 | F11: =+MAX(BBG!$G$2,((2017-1993+1)*F36+M11)/(2018-1993+1)) -> 50.27432865 | G11: =+MAX(BBG!$G$2,((2017-1993+1)*G36+N11)/(2018-1993+1)) -> 84.96235078 | I11: AA- | J11: =+(2*J10+J14)/3 -> 15 | K11: =+(2*K10+K14)/3 -> 18.15444444 | L11: =+(2*L10+L14)/3 -> 43.21805556 | M11: 81.50444444 | N11: 112.1127778 | P11: AA- | Q11: =+MAX('model options'!$D$12,$X11,J11*'model options'!$D$13+'Spread matrices_unlocked'!X11*(1-'model options'!$D$13)) -> 15 | R11: =+MAX('model options'!$D$12,$X11,K11*'model options'!$D$13+'Spread matrices_unlocked'!Y11*(1-'model options'!$D$13)) -> 15 | S11: =+MAX('model options'!$D$12,$X11,L11*'model options'!$D$13+'Spread matrices_unlocked'!Z11*(1-'model options'!$D$13)) -> 29.67548611 | T11: =+MAX('model options'!$D$12,$X11,M11*'model options'!$D$13+'Spread matrices_unlocked'!AA11*(1-'model options'!$D$13)) -> 54.56163889 | U11: =+MAX('model options'!$D$12,$X11,N11*'model options'!$D$13+'Spread matrices_unlocked'!AB11*(1-'model options'!$D$13)) -> 74.45705556 | W11: AA- | X11: =+'Derivation of TCMB-BAP rates'!G9/'Derivation of TCMB-BAP rates'!$B$25*'Derivation of TCMB-BAP rates'!$B$26*(1+'Derivation of TCMB-BAP rates'!$B$27)*100 -> 4.525 | Y11: =+X11 -> 4.525 | Z11: 4.525 | AA11: 4.525 | AB11: 4.525
B12: CC2 | C12: =+AVERAGE(C13:C15) -> 27.4868834 | D12: =+AVERAGE(D13:D15) -> 33.68202698 | E12: =+AVERAGE(E13:E15) -> 48.69661814 | F12: =+AVERAGE(F13:F15) -> 68.55055741 | G12: =+AVERAGE(G13:G15) -> 105.5115465 | I12: CC2 | J12: =+AVERAGE(J13:J15) -> 16.23097222 | K12: =+AVERAGE(K13:K15) -> 26.47481481 | L12: 56.49861111 | M12: 96.42574074 | N12: 133.3794444 | P12: CC2 | Q12: =+MAX('model options'!$D$12,$X12,J12*'model options'!$D$13+'Spread matrices_unlocked'!X12*(1-'model options'!$D$13)) -> 15 | R12: =+MAX('model options'!$D$12,$X12,K12*'model options'!$D$13+'Spread matrices_unlocked'!Y12*(1-'model options'!$D$13)) -> 19.98189352 | S12: =+MAX('model options'!$D$12,$X12,L12*'model options'!$D$13+'Spread matrices_unlocked'!Z12*(1-'model options'!$D$13)) -> 39.49736111 | T12: =+MAX('model options'!$D$12,$X12,M12*'model options'!$D$13+'Spread matrices_unlocked'!AA12*(1-'model options'!$D$13)) -> 65.44999537 | U12: =+MAX('model options'!$D$12,$X12,N12*'model options'!$D$13+'Spread matrices_unlocked'!AB12*(1-'model options'!$D$13)) -> 89.46990278 | W12: CC2 | X12: =+AVERAGE(X13:X15) -> 7.923611111 | Y12: =+X12 -> 7.923611111 | Z12: =+Y12 -> 7.923611111 | AA12: =+Z12 -> 7.923611111 | AB12: 7.923611111
B13: A+ | C13: =+((2017-1993+1)*C38+J13)/(2018-1993+1) -> 20.14664486 | D13: =+((2017-1993+1)*D38+K13)/(2018-1993+1) -> 24.94786225 | E13: 38.28661046 | F13: 58.16920505 | G13: 94.0131039 | I13: A+ | J13: =+(J10+J14*2)/3 -> 15 | K13: =+(K10+K14*2)/3 -> 21.30888889 | L13: 48.60694444 | M13: 87.01555556 | N13: 121.0822222 | P13: A+ | Q13: =+MAX('model options'!$D$12,$X13,J13*'model options'!$D$13+'Spread matrices_unlocked'!X13*(1-'model options'!$D$13)) -> 15 | R13: =+MAX('model options'!$D$12,$X13,K13*'model options'!$D$13+'Spread matrices_unlocked'!Y13*(1-'model options'!$D$13)) -> 16.07473611 | S13: =+MAX('model options'!$D$12,$X13,L13*'model options'!$D$13+'Spread matrices_unlocked'!Z13*(1-'model options'!$D$13)) -> 33.81847222 | T13: =+MAX('model options'!$D$12,$X13,M13*'model options'!$D$13+'Spread matrices_unlocked'!AA13*(1-'model options'!$D$13)) -> 58.78406944 | U13: =+MAX('model options'!$D$12,$X13,N13*'model options'!$D$13+'Spread matrices_unlocked'!AB13*(1-'model options'!$D$13)) -> 80.92740278 | W13: A+ | X13: =+'Derivation of TCMB-BAP rates'!G10/'Derivation of TCMB-BAP rates'!$B$25*'Derivation of TCMB-BAP rates'!$B$26*(1+'Derivation of TCMB-BAP rates'!$B$27)*100 -> 6.354166667 | Y13: =+X13 -> 6.354166667 | Z13: 6.354166667 | AA13: 6.354166667 | AB13: 6.354166667
B14: A | C14: =+((2017-1993+1)*C39+J14)/(2018-1993+1) -> 25.09498723 | D14: 31.01355279 | E14: 46.10940149 | F14: 66.06408144 | G14: 103.063857 | I14: A | J14: =+BBG!G14 -> 15 | K14: =+BBG!H14 -> 24.46333333 | L14: =+BBG!I14 -> 53.99583333 | M14: =+BBG!J14 -> 92.52666667 | N14: =+BBG!K14 -> 130.0516667 | P14: A | Q14: =+MAX('model options'!$D$12,$X14,J14*'model options'!$D$13+'Spread matrices_unlocked'!X14*(1-'model options'!$D$13)) -> 15 | R14: =+MAX('model options'!$D$12,$X14,K14*'model options'!$D$13+'Spread matrices_unlocked'!Y14*(1-'model options'!$D$13)) -> 18.94908333 | S14: =+MAX('model options'!$D$12,$X14,L14*'model options'!$D$13+'Spread matrices_unlocked'!Z14*(1-'model options'!$D$13)) -> 38.14520833 | T14: =+MAX('model options'!$D$12,$X14,M14*'model options'!$D$13+'Spread matrices_unlocked'!AA14*(1-'model options'!$D$13)) -> 63.19025 | U14: =+MAX('model options'!$D$12,$X14,N14*'model options'!$D$13+'Spread matrices_unlocked'!AB14*(1-'model options'!$D$13)) -> 87.5815 | W14: A | X14: =+'Derivation of TCMB-BAP rates'!G11/'Derivation of TCMB-BAP rates'!$B$25*'Derivation of TCMB-BAP rates'!$B$26*(1+'Derivation of TCMB-BAP rates'!$B$27)*100 -> 8.708333333 | Y14: =+X14 -> 8.708333333 | Z14: 8.708333333 | AA14: 8.708333333 | AB14: 8.708333333
B15: A- | C15: =+((2017-1993+1)*C40+J15)/(2018-1993+1) -> 37.2190181 | D15: 45.08466589 | E15: 61.69384247 | F15: 81.41838575 | G15: 119.4576787 | I15: A- | J15: =+(J14*2+J18)/3 -> 18.69291667 | K15: =+(K14*2+K18)/3 -> 33.65222222 | L15: 66.89305556 | M15: 109.735 | N15: 149.0044444 | P15: A- | Q15: =+MAX('model options'!$D$12,$X15,J15*'model options'!$D$13+'Spread matrices_unlocked'!X15*(1-'model options'!$D$13)) -> 15.1983125 | R15: =+MAX('model options'!$D$12,$X15,K15*'model options'!$D$13+'Spread matrices_unlocked'!Y15*(1-'model options'!$D$13)) -> 24.92186111 | S15: =+MAX('model options'!$D$12,$X15,L15*'model options'!$D$13+'Spread matrices_unlocked'!Z15*(1-'model options'!$D$13)) -> 46.52840278 | T15: =+MAX('model options'!$D$12,$X15,M15*'model options'!$D$13+'Spread matrices_unlocked'!AA15*(1-'model options'!$D$13)) -> 74.37566667 | U15: =+MAX('model options'!$D$12,$X15,N15*'model options'!$D$13+'Spread matrices_unlocked'!AB15*(1-'model options'!$D$13)) -> 99.90080556 | W15: A- | X15: =+'Derivation of TCMB-BAP rates'!G12/'Derivation of TCMB-BAP rates'!$B$25*'Derivation of TCMB-BAP rates'!$B$26*(1+'Derivation of TCMB-BAP rates'!$B$27)*100 -> 8.708333333 | Y15: =+X15 -> 8.708333333 | Z15: 8.708333333 | AA15: 8.708333333 | AB15: 8.708333333
B16: CC3 | C16: =+AVERAGE(C17:C19) -> 67.71323892 | D16: =+AVERAGE(D17:D19) -> 80.54088837 | E16: =+AVERAGE(E17:E19) -> 100.4651388 | F16: =+AVERAGE(F17:F19) -> 122.666295 | G16: =+AVERAGE(G17:G19) -> 160.7837372 | I16: CC3 | J16: =+AVERAGE(J17:J19) -> 34.25425926 | K16: =+AVERAGE(K17:K19) -> 61.04759259 | L16: 106.0189815 | M16: 159.1711111 | N16: 204.1248148 | P16: CC3 | Q16: =+MAX('model options'!$D$12,$X16,J16*'model options'!$D$13+'Spread matrices_unlocked'!X16*(1-'model options'!$D$13)) -> 29.41401852 | R16: =+MAX('model options'!$D$12,$X16,K16*'model options'!$D$13+'Spread matrices_unlocked'!Y16*(1-'model options'!$D$13)) -> 46.82968519 | S16: =+MAX('model options'!$D$12,$X16,L16*'model options'!$D$13+'Spread matrices_unlocked'!Z16*(1-'model options'!$D$13)) -> 76.06108796 | T16: =+MAX('model options'!$D$12,$X16,M16*'model options'!$D$13+'Spread matrices_unlocked'!AA16*(1-'model options'!$D$13)) -> 110.6099722 | U16: =+MAX('model options'!$D$12,$X16,N16*'model options'!$D$13+'Spread matrices_unlocked'!AB16*(1-'model options'!$D$13)) -> 139.8298796 | W16: CC3 | X16: =+AVERAGE(X17:X19) -> 20.425 | Y16: =+X16 -> 20.425 | Z16: 20.425 | AA16: 20.425 | AB16: 20.425
B17: BBB+ | C17: =+((2017-1993+1)*C42+J17)/(2018-1993+1) -> 52.05160786 | D17: =+((2017-1993+1)*D42+K17)/(2018-1993+1) -> 62.38275173 | E17: 79.40372269 | F17: 99.09921939 | G17: 137.2661677 | I17: BBB+ | J17: =+(2*J18+J14)/3 -> 22.38583333 | K17: =+(2*K18+K14)/3 -> 42.84111111 | L17: 79.79027778 | M17: 126.9433333 | N17: 167.9572222 | P17: BBB+ | Q17: =+MAX('model options'!$D$12,$X17,J17*'model options'!$D$13+'Spread matrices_unlocked'!X17*(1-'model options'!$D$13)) -> 18.76975 | R17: =+MAX('model options'!$D$12,$X17,K17*'model options'!$D$13+'Spread matrices_unlocked'!Y17*(1-'model options'!$D$13)) -> 32.06568056 | S17: =+MAX('model options'!$D$12,$X17,L17*'model options'!$D$13+'Spread matrices_unlocked'!Z17*(1-'model options'!$D$13)) -> 56.08263889 | T17: =+MAX('model options'!$D$12,$X17,M17*'model options'!$D$13+'Spread matrices_unlocked'!AA17*(1-'model options'!$D$13)) -> 86.732125 | U17: =+MAX('model options'!$D$12,$X17,N17*'model options'!$D$13+'Spread matrices_unlocked'!AB17*(1-'model options'!$D$13)) -> 113.3911528 | W17: BBB+ | X17: =+'Derivation of TCMB-BAP rates'!G13/'Derivation of TCMB-BAP rates'!$B$25*'Derivation of TCMB-BAP rates'!$B$26*(1+'Derivation of TCMB-BAP rates'!$B$27)*100 -> 12.05416667 | Y17: =+X17 -> 12.05416667 | Z17: 12.05416667 | AA17: 12.05416667 | AB17: 12.05416667
B18: BBB | C18: =+((2017-1993+1)*C43+J18)/(2018-1993+1) -> 64.14307794 | D18: 75.71987166 | E18: 93.867727 | F18: 115.4845941 | G18: 154.2735269 | I18: BBB | J18: =+BBG!G15 -> 26.07875 | K18: =+BBG!H15 -> 52.03 | L18: =+BBG!I15 -> 92.6875 | M18: =+BBG!J15 -> 144.1516667 | N18: =+BBG!K15 -> 186.91 | P18: BBB | Q18: =+MAX('model options'!$D$12,$X18,J18*'model options'!$D$13+'Spread matrices_unlocked'!X18*(1-'model options'!$D$13)) -> 23.3518125 | R18: =+MAX('model options'!$D$12,$X18,K18*'model options'!$D$13+'Spread matrices_unlocked'!Y18*(1-'model options'!$D$13)) -> 40.220125 | S18: =+MAX('model options'!$D$12,$X18,L18*'model options'!$D$13+'Spread matrices_unlocked'!Z18*(1-'model options'!$D$13)) -> 66.6475 | T18: =+MAX('model options'!$D$12,$X18,M18*'model options'!$D$13+'Spread matrices_unlocked'!AA18*(1-'model options'!$D$13)) -> 100.0992083 | U18: =+MAX('model options'!$D$12,$X18,N18*'model options'!$D$13+'Spread matrices_unlocked'!AB18*(1-'model options'!$D$13)) -> 127.892125 | W18: BBB | X18: =+'Derivation of TCMB-BAP rates'!G14/'Derivation of TCMB-BAP rates'!$B$25*'Derivation of TCMB-BAP rates'!$B$26*(1+'Derivation of TCMB-BAP rates'!$B$27)*100 -> 18.2875 | Y18: =+X18 -> 18.2875 | Z18: 18.2875 | AA18: 18.2875 | AB18: 18.2875
B19: BBB- | C19: =+((2017-1993+1)*C44+J19)/(2018-1993+1) -> 86.94503095 | D19: 103.5200417 | E19: 128.1239666 | F19: 153.4150716 | G19: 190.811517 | I19: BBB- | J19: =+(2*J18+J22)/3 -> 54.29819444 | K19: =+(2*K18+K22)/3 -> 88.27166667 | L19: 145.5791667 | M19: =+(2*M18+M22)/3 -> 206.4183333 | N19: 257.5072222 | P19: BBB- | Q19: =+MAX('model options'!$D$12,$X19,J19*'model options'!$D$13+'Spread matrices_unlocked'!X19*(1-'model options'!$D$13)) -> 46.12049306 | R19: =+MAX('model options'!$D$12,$X19,K19*'model options'!$D$13+'Spread matrices_unlocked'!Y19*(1-'model options'!$D$13)) -> 68.20325 | S19: =+MAX('model options'!$D$12,$X19,L19*'model options'!$D$13+'Spread matrices_unlocked'!Z19*(1-'model options'!$D$13)) -> 105.453125 | T19: =+MAX('model options'!$D$12,$X19,M19*'model options'!$D$13+'Spread matrices_unlocked'!AA19*(1-'model options'!$D$13)) -> 144.9985833 | U19: =+MAX('model options'!$D$12,$X19,N19*'model options'!$D$13+'Spread matrices_unlocked'!AB19*(1-'model options'!$D$13)) -> 178.2063611 | W19: BBB- | X19: =+'Derivation of TCMB-BAP rates'!G15/'Derivation of TCMB-BAP rates'!$B$25*'Derivation of TCMB-BAP rates'!$B$26*(1+'Derivation of TCMB-BAP rates'!$B$27)*100 -> 30.93333333 | Y19: =+X19 -> 30.93333333 | Z19: 30.93333333 | AA19: 30.93333333 | AB19: 30.93333333
B20: CC4 | C20: =+AVERAGE(C21:C22) -> 165.3010414 | D20: =+AVERAGE(D21:D22) -> 190.0178847 | E20: =+AVERAGE(E21:E22) -> 223.0056972 | F20: =+AVERAGE(F21:F22) -> 257.4616285 | G20: =+AVERAGE(G21:G22) -> 293.8422178 | I20: CC4 | J20: =+AVERAGE(J21:J22) -> 96.62736111 | K20: =+AVERAGE(K21:K22) -> 142.6341667 | L20: 224.9166667 | M20: 299.8183333 | N20: 363.4030556 | P20: CC4 | Q20: =+MAX('model options'!$D$12,$X20,J20*'model options'!$D$13+'Spread matrices_unlocked'!X20*(1-'model options'!$D$13)) -> 86.46559722 | R20: =+MAX('model options'!$D$12,$X20,K20*'model options'!$D$13+'Spread matrices_unlocked'!Y20*(1-'model options'!$D$13)) -> 116.3700208 | S20: =+MAX('model options'!$D$12,$X20,L20*'model options'!$D$13+'Spread matrices_unlocked'!Z20*(1-'model options'!$D$13)) -> 169.8536458 | T20: =+MAX('model options'!$D$12,$X20,M20*'model options'!$D$13+'Spread matrices_unlocked'!AA20*(1-'model options'!$D$13)) -> 218.5397292 | U20: =+MAX('model options'!$D$12,$X20,N20*'model options'!$D$13+'Spread matrices_unlocked'!AB20*(1-'model options'!$D$13)) -> 259.8697986 | W20: CC4 | X20: =+AVERAGE(X21:X22) -> 67.59375 | Y20: =+X20 -> 67.59375 | Z20: 67.59375 | AA20: 67.59375 | AB20: 67.59375
B21: BB+ | C21: =+((2017-1993+1)*C46+J21)/(2018-1993+1) -> 139.1823713 | D21: =+((2017-1993+1)*D46+K21)/(2018-1993+1) -> 161.1852704 | E21: 191.3784537 | F21: 222.7794429 | G21: 259.4986509 | I21: BB+ | J21: =+(J18+J22*2)/3 -> 82.51763889 | K21: =+(K18+K22*2)/3 -> 124.5133333 | L21: 198.4708333 | M21: 268.685 | N21: 328.1044444 | P21: BB+ | Q21: =+MAX('model options'!$D$12,$X21,J21*'model options'!$D$13+'Spread matrices_unlocked'!X21*(1-'model options'!$D$13)) -> 74.36813194 | R21: =+MAX('model options'!$D$12,$X21,K21*'model options'!$D$13+'Spread matrices_unlocked'!Y21*(1-'model options'!$D$13)) -> 101.6653333 | S21: =+MAX('model options'!$D$12,$X21,L21*'model options'!$D$13+'Spread matrices_unlocked'!Z21*(1-'model options'!$D$13)) -> 149.7377083 | T21: =+MAX('model options'!$D$12,$X21,M21*'model options'!$D$13+'Spread matrices_unlocked'!AA21*(1-'model options'!$D$13)) -> 195.3769167 | U21: =+MAX('model options'!$D$12,$X21,N21*'model options'!$D$13+'Spread matrices_unlocked'!AB21*(1-'model options'!$D$13)) -> 233.9995556 | W21: BB+ | X21: =+'Derivation of TCMB-BAP rates'!G16/'Derivation of TCMB-BAP rates'!$B$25*'Derivation of TCMB-BAP rates'!$B$26*(1+'Derivation of TCMB-BAP rates'!$B$27)*100 -> 59.23333333 | Y21: =+X21 -> 59.23333333 | Z21: 59.23333333 | AA21: 59.23333333 | AB21: 59.23333333
B22: BB | C22: =+((2017-1993+1)*C47+J22)/(2018-1993+1) -> 191.4197116 | D22: 218.850499 | E22: 254.6329408 | F22: 292.1438142 | G22: 328.1857847 | I22: BB | J22: =+BBG!G16 -> 110.7370833 | K22: =+BBG!H16 -> 160.755 | L22: =+BBG!I16 -> 251.3625 | M22: =+BBG!J16 -> 330.9516667 | N22: =+BBG!K16 -> 398.7016667 | P22: BB | Q22: =+MAX('model options'!$D$12,$X22,J22*'model options'!$D$13+'Spread matrices_unlocked'!X22*(1-'model options'!$D$13)) -> 98.5630625 | R22: =+MAX('model options'!$D$12,$X22,K22*'model options'!$D$13+'Spread matrices_unlocked'!Y22*(1-'model options'!$D$13)) -> 131.0747083 | S22: =+MAX('model options'!$D$12,$X22,L22*'model options'!$D$13+'Spread matrices_unlocked'!Z22*(1-'model options'!$D$13)) -> 189.9695833 | T22: =+MAX('model options'!$D$12,$X22,M22*'model options'!$D$13+'Spread matrices_unlocked'!AA22*(1-'model options'!$D$13)) -> 241.7025417 | U22: =+MAX('model options'!$D$12,$X22,N22*'model options'!$D$13+'Spread matrices_unlocked'!AB22*(1-'model options'!$D$13)) -> 285.7400417 | W22: BB | X22: =+'Derivation of TCMB-BAP rates'!G17/'Derivation of TCMB-BAP rates'!$B$25*'Derivation of TCMB-BAP rates'!$B$26*(1+'Derivation of TCMB-BAP rates'!$B$27)*100 -> 75.95416667 | Y22: =+X22 -> 75.95416667 | Z22: 75.95416667 | AA22: 75.95416667 | AB22: 75.95416667
B23: CC5 | C23: =+AVERAGE(C24:C27) -> 280.4754366 | D23: =+AVERAGE(D24:D27) -> 320.1469201 | E23: =+AVERAGE(E24:E27) -> 366.1329946 | F23: =+AVERAGE(F24:F27) -> 397.9669955 | G23: =+AVERAGE(G24:G27) -> 434.1887637 | I23: CC5 | J23: =+AVERAGE(J24:J27) -> 146.5981944 | K23: =+AVERAGE(K24:K27) -> 213.0744444 | L23: 309.0013889 | M23: 398.9030556 | N23: 492.8683333 | P23: CC5 | Q23: =+MAX('model options'!$D$12,$X23,J23*'model options'!$D$13+'Spread matrices_unlocked'!X23*(1-'model options'!$D$13)) -> 187.7791667 | R23: =+MAX('model options'!$D$12,$X23,K23*'model options'!$D$13+'Spread matrices_unlocked'!Y23*(1-'model options'!$D$13)) -> 204.2210972 | S23: =+MAX('model options'!$D$12,$X23,L23*'model options'!$D$13+'Spread matrices_unlocked'!Z23*(1-'model options'!$D$13)) -> 266.5736111 | T23: =+MAX('model options'!$D$12,$X23,M23*'model options'!$D$13+'Spread matrices_unlocked'!AA23*(1-'model options'!$D$13)) -> 325.0096944 | U23: =+MAX('model options'!$D$12,$X23,N23*'model options'!$D$13+'Spread matrices_unlocked'!AB23*(1-'model options'!$D$13)) -> 386.087125 | W23: CC5 | X23: =+AVERAGE(X24:X27) -> 187.7791667 | Y23: =+X23 -> 187.7791667 | Z23: 187.7791667 | AA23: 187.7791667 | AB23: 187.7791667
B24: BB- | C24: =+((2017-1993+1)*C49+J24)/(2018-1993+1) -> 225.2700531 | D24: =+((2017-1993+1)*D49+K24)/(2018-1993+1) -> 257.6266602 | E24: 297.7551046 | F24: 332.3918793 | G24: 368.9654138 | I24: BB- | J24: =+(J22*2+J26)/3 -> 125.0815278 | K24: =+(K22*2+K26)/3 -> 181.6827778 | L24: =+(L22*2+L26)/3 -> 274.4180556 | M24: =+(M22*2+M26)/3 -> 358.1322222 | N24: 436.3683333 | P24: BB- | Q24: =+MAX('model options'!$D$12,$X24,J24*'model options'!$D$13+'Spread matrices_unlocked'!X24*(1-'model options'!$D$13)) -> 122.7736181 | R24: =+MAX('model options'!$D$12,$X24,K24*'model options'!$D$13+'Spread matrices_unlocked'!Y24*(1-'model options'!$D$13)) -> 159.5644306 | S24: =+MAX('model options'!$D$12,$X24,L24*'model options'!$D$13+'Spread matrices_unlocked'!Z24*(1-'model options'!$D$13)) -> 219.8423611 | T24: =+MAX('model options'!$D$12,$X24,M24*'model options'!$D$13+'Spread matrices_unlocked'!AA24*(1-'model options'!$D$13)) -> 274.2565694 | U24: =+MAX('model options'!$D$12,$X24,N24*'model options'!$D$13+'Spread matrices_unlocked'!AB24*(1-'model options'!$D$13)) -> 325.1100417 | W24: BB- | X24: =+'Derivation of TCMB-BAP rates'!G18/'Derivation of TCMB-BAP rates'!$B$25*'Derivation of TCMB-BAP rates'!$B$26*(1+'Derivation of TCMB-BAP rates'!$B$27)*100 -> 118.4875 | Y24: =+X24 -> 118.4875 | Z24: 118.4875 | AA24: 118.4875 | AB24: 118.4875
B25: B+ | C25: =+((2017-1993+1)*C50+J25)/(2018-1993+1) -> 259.1203946 | D25: 296.4028215 | E25: 340.8772684 | F25: 372.6399444 | G25: 409.7450428 | I25: B+ | J25: =+(J22+2*J26)/3 -> 139.4259722 | K25: =+(K22+2*K26)/3 -> 202.6105556 | L25: =+(L22+2*L26)/3 -> 297.4736111 | M25: 385.3127778 | N25: 474.035 | P25: B+ | Q25: =+MAX('model options'!$D$12,$X25,J25*'model options'!$D$13+'Spread matrices_unlocked'!X25*(1-'model options'!$D$13)) -> 163.9541667 | R25: =+MAX('model options'!$D$12,$X25,K25*'model options'!$D$13+'Spread matrices_unlocked'!Y25*(1-'model options'!$D$13)) -> 189.0808194 | S25: =+MAX('model options'!$D$12,$X25,L25*'model options'!$D$13+'Spread matrices_unlocked'!Z25*(1-'model options'!$D$13)) -> 250.7418056 | T25: =+MAX('model options'!$D$12,$X25,M25*'model options'!$D$13+'Spread matrices_unlocked'!AA25*(1-'model options'!$D$13)) -> 307.8372639 | U25: =+MAX('model options'!$D$12,$X25,N25*'model options'!$D$13+'Spread matrices_unlocked'!AB25*(1-'model options'!$D$13)) -> 365.5067083 | W25: B+ | X25: =+'Derivation of TCMB-BAP rates'!G19/'Derivation of TCMB-BAP rates'!$B$25*'Derivation of TCMB-BAP rates'!$B$26*(1+'Derivation of TCMB-BAP rates'!$B$27)*100 -> 163.9541667 | Y25: =+X25 -> 163.9541667 | Z25: 163.9541667 | AA25: 163.9541667 | AB25: 163.9541667
B26: B | C26: =+((2017-1993+1)*C51+J26)/(2018-1993+1) -> 292.9707361 | D26: 335.1789827 | E26: 383.9994321 | F26: 412.8880096 | G26: 450.5246718 | I26: B | J26: =+BBG!G17 -> 153.7704167 | K26: =+BBG!H17 -> 223.5383333 | L26: =+BBG!I17 -> 320.5291667 | M26: =+BBG!J17 -> 412.4933333 | N26: =+BBG!K17 -> 511.7016667 | P26: B | Q26: =+MAX('model options'!$D$12,$X26,J26*'model options'!$D$13+'Spread matrices_unlocked'!X26*(1-'model options'!$D$13)) -> 209.8083333 | R26: =+MAX('model options'!$D$12,$X26,K26*'model options'!$D$13+'Spread matrices_unlocked'!Y26*(1-'model options'!$D$13)) -> 218.7328333 | S26: =+MAX('model options'!$D$12,$X26,L26*'model options'!$D$13+'Spread matrices_unlocked'!Z26*(1-'model options'!$D$13)) -> 281.776875 | T26: =+MAX('model options'!$D$12,$X26,M26*'model options'!$D$13+'Spread matrices_unlocked'!AA26*(1-'model options'!$D$13)) -> 341.5535833 | U26: =+MAX('model options'!$D$12,$X26,N26*'model options'!$D$13+'Spread matrices_unlocked'!AB26*(1-'model options'!$D$13)) -> 406.039 | W26: B | X26: =+'Derivation of TCMB-BAP rates'!G20/'Derivation of TCMB-BAP rates'!$B$25*'Derivation of TCMB-BAP rates'!$B$26*(1+'Derivation of TCMB-BAP rates'!$B$27)*100 -> 209.8083333 | Y26: =+X26 -> 209.8083333 | Z26: 209.8083333 | AA26: 209.8083333 | AB26: 209.8083333
B27: B- | C27: =+((2017-1993+1)*C52+J27)/(2018-1993+1) -> 344.5405628 | D27: 391.3792159 | E27: 441.9001734 | F27: 473.9481488 | G27: 507.5199264 | I27: B- | J27: =+BBG!G18 -> 168.1148611 | K27: =+BBG!H18 -> 244.4661111 | L27: =+BBG!I18 -> 343.5847222 | M27: =+BBG!J18 -> 439.6738889 | N27: =+BBG!K18 -> 549.3683333 | P27: B- | Q27: =+MAX('model options'!$D$12,$X27,J27*'model options'!$D$13+'Spread matrices_unlocked'!X27*(1-'model options'!$D$13)) -> 258.8666667 | R27: =+MAX('model options'!$D$12,$X27,K27*'model options'!$D$13+'Spread matrices_unlocked'!Y27*(1-'model options'!$D$13)) -> 258.8666667 | S27: =+MAX('model options'!$D$12,$X27,L27*'model options'!$D$13+'Spread matrices_unlocked'!Z27*(1-'model options'!$D$13)) -> 313.9334028 | T27: =+MAX('model options'!$D$12,$X27,M27*'model options'!$D$13+'Spread matrices_unlocked'!AA27*(1-'model options'!$D$13)) -> 376.3913611 | U27: =+MAX('model options'!$D$12,$X27,N27*'model options'!$D$13+'Spread matrices_unlocked'!AB27*(1-'model options'!$D$13)) -> 447.69275 | W27: B- | X27: =+'Derivation of TCMB-BAP rates'!G21/'Derivation of TCMB-BAP rates'!$B$25*'Derivation of TCMB-BAP rates'!$B$26*(1+'Derivation of TCMB-BAP rates'!$B$27)*100 -> 258.8666667 | Y27: =+X27 -> 258.8666667 | Z27: 258.8666667 | AA27: 258.8666667 | AB27: 258.8666667
B28: Swap | C28: =+((2017-1993+1)*C53+J28)/(2018-1993+1) -> 3.028253609 | D28: =+((2017-1993+1)*D53+K28)/(2018-1993+1) -> 3.355540544 | E28: 4.000468576 | F28: 4.547312402 | G28: 4.85088884 | I28: Swap | J28: =+BBG!G5 -> 2.530795833 | K28: =+BBG!H5 -> 2.756783333 | L28: =+BBG!I5 -> 2.856041667 | M28: =+BBG!J5 -> 2.938816667 | N28: =+BBG!K5 -> 3.0064
B30: TCMB W: 1993 - 2017 | I30: TCMB L: 2017 | P30: TCMB BAP: 2017 | W30: Minimum Actuarial Premium: 2017
C31: 6M | D31: 2Y | E31: 5Y | F31: 10Y | G31: 20Y | J31: 6M | K31: 2Y | L31: 5Y | M31: 10Y | N31: 20Y | Q31: 6M | R31: 2Y | S31: 5Y | T31: 10Y | U31: 20Y | X31: 6M | Y31: 2Y | Z31: 5Y | AA31: 10Y | AB31: 20Y
B32: CC1 | C32: 15.05155865 | D32: 16.07435713 | E32: 21.23576548 | F32: 36.27806188 | G32: 66.72933674 | I32: CC1 | J32: 15 | K32: 15.584375 | L32: 29.53256944 | M32: 66.74298611 | N32: 94.71520833 | P32: CC1 | Q32: 15 | R32: 15 | S32: 20.79596181 | T32: 44.98273264 | U32: 63.16467708 | W32: CC1 | X32: 4.570833333 | Y32: 4.570833333 | Z32: 4.570833333 | AA32: 4.570833333 | AB32: 4.570833333
B33: AAA | C33: 15 | D33: 15 | E33: 15.63643333 | F33: 23.02318533 | G33: 47.20501394 | I33: AAA | J33: 15 | K33: 15 | L33: 15.39333333 | M33: 39.80583333 | N33: 39.80583333 | P33: AAA | Q33: 15 | R33: 15 | S33: 15 | T33: 27.47358333 | U33: 27.47358333 | W33: AAA | X33: 4.570833333 | Y33: 4.570833333 | Z33: 4.570833333 | AA33: 4.570833333 | AB33: 4.570833333
B34: AA+ | C34: 15 | D34: 15.12871591 | E34: 17.31947576 | F34: 32.02904117 | G34: 61.01367109 | I34: AA+ | J34: 15 | K34: 15 | L34: 25.5475 | M34: 60.44333333 | N34: 82.165 | P34: AA+ | Q34: 15 | R34: 15 | S34: 18.20566667 | T34: 40.88795833 | U34: 55.00704167 | W34: AA+ | X34: 4.570833333 | Y34: 4.570833333 | Z34: 4.570833333 | AA34: 4.570833333 | AB34: 4.570833333
B35: AA | C35: 15 | D35: 15.25743182 | E35: 22.03350286 | F35: 41.03489701 | G35: 74.82232823 | I35: AA | J35: 15 | K35: 15 | L35: 35.70166667 | M35: 81.08083333 | N35: 124.5241667 | P35: AA | Q35: 15 | R35: 15 | S35: 24.805875 | T35: 54.30233333 | U35: 82.5405 | W35: AA | X35: 4.570833333 | Y35: 4.570833333 | Z35: 4.570833333 | AA35: 4.570833333 | AB35: 4.570833333
B36: AA- | C36: 15.2062346 | D36: 18.9112808 | E36: 29.95364998 | F36: 49.02512402 | G36: 83.8763337 | I36: AA- | J36: 15 | K36: 17.3375 | L36: 41.48777778 | M36: 85.64194444 | N36: 132.3658333 | P36: AA- | Q36: 15 | R36: 15 | S36: 28.56684722 | T36: 57.26705556 | U36: 87.63758333 | W36: AA- | X36: 4.570833333 | Y36: 4.570833333 | Z36: 4.570833333 | AA36: 4.570833333 | AB36: 4.570833333
B37: CC2 | C37: 27.93711984 | D37: 33.97031546 | E37: 48.38453842 | F37: 67.43555008 | G37: 104.3968306 | I37: CC2 | J37: 15.58305556 | K37: 24.17407407 | L37: 55.06092593 | M37: 98.4687963 | N37: 151.4575 | P37: CC2 | Q37: 15 | R37: 18.6118287 | S37: 38.68828241 | T37: 66.90339815 | U37: 101.3460556 | W37: CC2 | X37: 8.281944444 | Y37: 8.281944444 | Z37: 8.281944444 | AA37: 8.281944444 | AB37: 8.281944444
B38: A+ | C38: 20.35251066 | D38: 25.09342119 | E38: 37.8737971 | F38: 57.01535103 | G38: 92.93033916 | I38: A+ | J38: 15 | K38: 19.675 | L38: 47.27388889 | M38: 90.20305556 | N38: 140.2075 | P38: A+ | Q38: 15 | R38: 15.094375 | S38: 33.03365278 | T38: 60.93761111 | U38: 93.4405 | W38: A+ | X38: 6.5875 | Y38: 6.5875 | Z38: 6.5875 | AA38: 6.5875 | AB38: 6.5875
B39: A | C39: 25.49878671 | D39: 31.27556157 | E39: 45.79394421 | F39: 65.00557803 | G39: 101.9843446 | I39: A | J39: 15 | K39: 22.0125 | L39: 53.06 | M39: 94.76416667 | N39: 148.0491667 | P39: A | Q39: 15 | R39: 17.50333333 | S39: 37.68420833 | T39: 64.79191667 | U39: 99.42716667 | W39: A | X39: 9.129166667 | Y39: 9.129166667 | Z39: 9.129166667 | AA39: 9.129166667 | AB39: 9.129166667
B40: A- | C40: 37.96006216 | D40: 45.54196363 | E40: 61.48587394 | F40: 80.28572118 | G40: 118.2758081 | I40: A- | J40: 16.74916667 | K40: 30.83472222 | L40: 64.84888889 | M40: 110.4391667 | N40: 166.1158333 | P40: A- | Q40: 15 | R40: 23.23777778 | S40: 45.34698611 | T40: 74.98066667 | U40: 111.1705 | W40: A- | X40: 9.129166667 | Y40: 9.129166667 | Z40: 9.129166667 | AA40: 9.129166667 | AB40: 9.129166667
B41: CC3 | C41: 69.05159811 | D41: 81.3206202 | E41: 100.2429851 | F41: 121.2061024 | G41: 159.0500941 | I41: CC3 | J41: 25.50148148 | K41: 54.81157407 | L41: 99.31555556 | M41: 155.7012037 | N41: 218.8223148 | P41: CC3 | Q41: 24.2117963 | R41: 43.26335648 | S41: 72.19094444 | T41: 108.8416157 | U41: 149.870338 | W41: CC3 | X41: 21.81666667 | Y41: 21.81666667 | Z41: 21.81666667 | AA41: 21.81666667 | AB41: 21.81666667
B42: BBB+ | C42: 53.23823884 | D42: 63.16441735 | E42: 79.38826049 | F42: 97.98545484 | G42: 136.0385255 | I42: BBB+ | J42: 18.49833333 | K42: 39.65694444 | L42: 76.63777778 | M42: 126.1141667 | N42: 184.1825 | P42: BBB+ | Q42: 16.501 | R42: 30.25409722 | S42: 54.29163889 | T42: 86.45129167 | U42: 124.1957083 | W42: BBB+ | X42: 12.79166667 | Y42: 12.79166667 | Z42: 12.79166667 | AA42: 12.79166667 | AB42: 12.79166667
B43: BBB | C43: 65.66565106 | D43: 76.66746652 | E43: 93.91493608 | F43: 114.3379112 | G43: 152.9680679 | I43: BBB | J43: 20.2475 | K43: 48.47916667 | L43: 88.42666667 | M43: 141.7891667 | N43: 202.2491667 | P43: BBB | Q43: 19.915875 | R43: 38.26645833 | S43: 64.23233333 | T43: 98.91795833 | U43: 138.2169583 | W43: BBB | X43: 19.3 | Y43: 19.3 | Z43: 19.3 | AA43: 19.3 | AB43: 19.3
B44: BBB- | C44: 88.25090442 | D44: 104.1299767 | E44: 127.4257586 | F44: 151.2949411 | G44: 188.1436888 | I44: BBB- | J44: 37.75861111 | K44: 76.29861111 | L44: 132.8822222 | M44: 199.2002778 | N44: 270.0352778 | P44: BBB- | Q44: 36.21851389 | R44: 61.26951389 | S44: 98.04886111 | T44: 141.1555972 | U44: 187.1983472 | W44: BBB- | X44: 33.35833333 | Y44: 33.35833333 | Z44: 33.35833333 | AA44: 33.35833333 | AB44: 33.35833333
B45: CC4 | C45: 168.0479886 | D45: 191.9132334 | E45: 222.9292585 | F45: 255.7673603 | G45: 291.0597843 | I45: CC4 | J45: 64.02527778 | K45: 118.0277778 | L45: 199.5655556 | M45: 285.3169444 | N45: 371.7144444 | P45: CC4 | Q45: 70.825 | R45: 101.5068056 | S45: 154.5063611 | T45: 210.2447639 | U45: 266.4031389 | W45: CC4 | X45: 70.825 | Y45: 70.825 | Z45: 70.825 | AA45: 70.825 | AB45: 70.825
B46: BB+ | C46: 141.4489606 | D46: 162.6521479 | E46: 191.0947585 | F46: 220.9432206 | G46: 256.7544191 | I46: BB+ | J46: 55.26972222 | K46: 104.1180556 | L46: 177.3377778 | M46: 256.6113889 | N46: 337.8213889 | P46: BB+ | Q46: 61.91666667 | R46: 89.34756944 | S46: 136.9403889 | T46: 188.4682361 | U46: 241.2547361 | W46: BB+ | X46: 61.91666667 | Y46: 61.91666667 | Z46: 61.91666667 | AA46: 61.91666667 | AB46: 61.91666667
B47: BB | C47: 194.6470167 | D47: 221.174319 | E47: 254.7637584 | F47: 290.5915001 | G47: 325.3651494 | I47: BB | J47: 72.78083333 | K47: 131.9375 | L47: 221.7933333 | M47: 314.0225 | N47: 405.6075 | P47: BB | Q47: 79.73333333 | R47: 113.6660417 | S47: 172.0723333 | T47: 232.0212917 | U47: 291.5515417 | W47: BB | X47: 79.73333333 | Y47: 79.73333333 | Z47: 79.73333333 | AA47: 79.73333333 | AB47: 79.73333333
B48: CC5 | C48: 285.8305263 | D48: 324.4298191 | E48: 368.4182589 | F48: 397.9295531 | G48: 431.8415809 | I48: CC5 | J48: 83.82944444 | K48: 180.8888889 | L48: 287.6683333 | M48: 374.3975 | N48: 477.545 | P48: CC5 | Q48: 191.5145833 | R48: 191.5145833 | S48: 254.0145208 | T48: 310.3884792 | U48: 377.4343542 | W48: CC5 | X48: 191.5145833 | Y48: 191.5145833 | Z48: 191.5145833 | AA48: 191.5145833 | AB48: 191.5145833
B49: BB- | C49: 229.2775941 | D49: 260.6644155 | E49: 298.6885865 | F49: 331.3622656 | G49: 366.269297 | I49: BB- | J49: 77.20027778 | K49: 151.5180556 | L49: 248.1433333 | M49: 338.1725 | N49: 434.3825 | P49: BB- | Q49: 120.2833333 | R49: 140.5859028 | S49: 203.3923333 | T49: 261.9112917 | U49: 324.4477917 | W49: BB- | X49: 120.2833333 | Y49: 120.2833333 | Z49: 120.2833333 | AA49: 120.2833333 | AB49: 120.2833333
B50: B+ | C50: 263.9081715 | D50: 300.1545121 | E50: 342.6134146 | F50: 372.1330311 | G50: 407.1734445 | I50: B+ | J50: 81.61972222 | K50: 171.0986111 | L50: 274.4933333 | M50: 362.3225 | N50: 463.1575 | P50: B+ | Q50: 168.0291667 | R50: 170.0243056 | S50: 237.230875 | T50: 294.3198333 | U50: 359.8625833 | W50: B+ | X50: 168.0291667 | Y50: 168.0291667 | Z50: 168.0291667 | AA50: 168.0291667 | AB50: 168.0291667
B51: B | C51: 298.5387489 | D51: 339.6446086 | E51: 386.5382428 | F51: 412.9037966 | G51: 448.077592 | I51: B | J51: 86.03916667 | K51: 190.6791667 | L51: 300.8433333 | M51: 386.4725 | N51: 491.9325 | P51: B | Q51: 214.8833333 | R51: 214.8833333 | S51: 270.7573333 | T51: 326.4162917 | U51: 394.9652917 | W51: B | X51: 214.8833333 | Y51: 214.8833333 | Z51: 214.8833333 | AA51: 214.8833333 | AB51: 214.8833333
B52: B- | C52: 351.5975908 | D52: 397.2557401 | E52: 445.8327915 | F52: 475.3191191 | G52: 505.8459901 | I52: B- | J52: 90.45861111 | K52: 210.2597222 | L52: 327.1933333 | M52: 410.6225 | N52: 520.7075 | P52: B- | Q52: 262.8625 | R52: 262.8625 | S52: 304.6775417 | T52: 358.9065 | U52: 430.46175 | W52: B- | X52: 262.8625 | Y52: 262.8625 | Z52: 262.8625 | AA52: 262.8625 | AB52: 262.8625
B53: Swap | C53: 3.04815192 | D53: 3.379490832 | E53: 4.046245653 | F53: 4.611652231 | G53: 4.924668394 | I53: Swap | J53: 1.494441667 | K53: 1.680541667 | L53: 2.000983333 | M53: 2.297191667 | N53: 2.517341667
B55: TCMB W: 1993 - 2016 | I55: TCMB L: 2016 | P55: TCMB BAP: 2016
C56: 6M | D56: 2Y | E56: 5Y | F56: 10Y | G56: 20Y | J56: 6M | K56: 2Y | L56: 5Y | M56: 10Y | N56: 20Y | Q56: 6M | R56: 2Y | S56: 5Y | T56: 10Y | U56: 20Y
B57: CC1 | C57: 15.05370693 | D57: 16.09477305 | E57: 20.89006532 | F57: 35.00869004 | G57: 65.56325876 | I57: CC1 | J57: 15 | K57: 18.99270833 | L57: 49.50743056 | M57: 86.091875 | N57: 123.3515972 | P57: CC1 | Q57: 15 | R57: 15 | S57: 33.79201736 | T57: 57.57190625 | U57: 81.79072569
B58: AAA | C58: 15 | D58: 15 | E58: 15.6465625 | F58: 22.32390833 | G58: 47.51331313 | I58: AAA | J58: 15 | K58: 15 | L58: 30.5175 | M58: 49.84916667 | N58: 49.84916667 | P58: AAA | Q58: 15 | R58: 15 | S58: 21.437625 | T58: 34.00320833 | U58: 34.00320833
B59: AA+ | C59: 15 | D59: 15.13407907 | E59: 16.97664141 | F59: 30.84511233 | G59: 60.13236571 | I59: AA+ | J59: 15 | K59: 16.81916667 | L59: 44.32166667 | M59: 77.68666667 | N59: 106.7916667 | P59: AA+ | Q59: 15 | R59: 15 | S59: 30.41033333 | T59: 52.09758333 | U59: 71.01583333
B60: AA | C60: 15 | D60: 15.26815814 | E60: 21.46399603 | F60: 39.36631633 | G60: 72.7514183 | I60: AA | J60: 15 | K60: 18.63833333 | L60: 58.12583333 | M60: 105.5241667 | N60: 163.7341667 | P60: AA | Q60: 15 | R60: 15 | S60: 39.40491667 | T60: 70.21383333 | U60: 108.0503333
B61: AA- | C61: 15.2148277 | D61: 18.976855 | E61: 29.47306132 | F61: 47.49942317 | G61: 81.85593788 | I61: AA- | J61: 15 | K61: 25.51333333 | L61: 65.06472222 | M61: 111.3075 | N61: 173.0313889 | P61: AA- | Q61: 15 | R61: 18.20679167 | S61: 43.91519444 | T61: 73.973 | U61: 114.0935278
B62: CC2 | C62: 28.45187252 | D62: 34.37849219 | E62: 48.1063556 | F62: 66.14249815 | G62: 102.4359694 | I62: CC2 | J62: 15.73090741 | K62: 41.78925926 | L62: 82.5887963 | M62: 127.4825 | N62: 195.4184259 | P62: CC2 | Q62: 15 | R62: 30.25322685 | S62: 56.77292593 | T62: 85.95383333 | U62: 130.1121852
B63: A+ | C63: 20.57553193 | D63: 25.31918873 | E63: 37.48212661 | F63: 55.63253 | G63: 90.96045746 | I63: A+ | J63: 15 | K63: 32.38833333 | L63: 72.00361111 | M63: 117.0908333 | N63: 182.3286111 | P63: A+ | Q63: 15 | R63: 23.486375 | S63: 49.23630556 | T63: 78.543 | U63: 120.9475556
B64: A | C64: 25.93623616 | D64: 31.66152247 | E64: 45.49119189 | F64: 63.76563684 | G64: 100.064977 | I64: A | J64: 15 | K64: 39.26333333 | L64: 78.9425 | M64: 122.8741667 | N64: 191.6258333 | P64: A | Q64: 15 | R64: 28.9395 | S64: 54.73095833 | T64: 83.28654167 | U64: 127.975125
B65: A- | C65: 38.84384947 | D65: 46.15476536 | E65: 61.34574832 | F65: 79.02932762 | G65: 116.2824737 | I65: A- | J65: 17.19272222 | K65: 53.71611111 | L65: 96.82027778 | M65: 142.4825 | N65: 212.3008333 | P65: A- | Q65: 15 | R65: 38.33380556 | S65: 66.35151389 | T65: 96.03195833 | U65: 141.413875
B66: CC3 | C66: 70.8661863 | D66: 82.42516379 | E66: 100.281628 | F66: 119.7688065 | G66: 156.5595849 | I66: CC3 | J66: 29.01855556 | K66: 91.59944444 | L66: 147.5434259 | M66: 201.3121296 | N66: 274.6091667 | P66: CC3 | Q66: 27.11817222 | R66: 67.79575 | S66: 104.159338 | T66: 139.1089954 | U66: 186.7520694
B67: BBB+ | C67: 54.6857349 | D67: 64.14389539 | E67: 79.50286393 | F67: 96.81342518 | G67: 134.0325266 | I67: BBB+ | J67: 19.38544444 | K67: 68.16888889 | L67: 114.6980556 | M67: 162.0908333 | N67: 232.9758333 | P67: BBB+ | Q67: 17.47866389 | R67: 49.18790278 | S67: 79.43186111 | T67: 110.2371667 | U67: 156.3124167
B68: BBB | C68: 67.55807402 | D68: 77.84197902 | E68: 94.14361397 | F68: 113.1941089 | G68: 150.9146888 | I68: BBB | J68: 21.57816667 | K68: 82.62166667 | L68: 132.5758333 | M68: 181.6991667 | N68: 253.6508333 | P68: BBB | Q68: 21.32768333 | R68: 61.00595833 | S68: 93.47616667 | T68: 125.4063333 | U68: 172.1749167
B69: BBB- | C69: 90.35474997 | D69: 105.289617 | E69: 127.198406 | F69: 149.2988854 | G69: 184.7315392 | I69: BBB- | J69: 46.09205556 | K69: 124.0077778 | L69: 195.3563889 | M69: 260.1463889 | N69: 337.2008333 | P69: BBB- | Q69: 42.54816944 | R69: 93.19338889 | S69: 139.5699861 | T69: 181.6834861 | U69: 231.768875
B70: CC4 | C70: 172.3822682 | D70: 194.9917941 | E70: 223.9027461 | F70: 254.5361277 | G70: 287.6991734 | I70: CC4 | J70: 82.86288889 | K70: 186.0869444 | L70: 289.5272222 | M70: 377.8172222 | N70: 462.5258333 | P70: CC4 | Q70: 78.02910694 | R70: 145.1247431 | S70: 212.3609236 | T70: 269.7494236 | U70: 324.8100208
B71: BB+ | C71: 145.0397622 | D71: 165.0910684 | E71: 191.667966 | F71: 219.4570469 | G71: 253.3766287 | I71: BB+ | J71: 70.60594444 | K71: 165.3938889 | L71: 258.1369444 | M71: 338.5936111 | N71: 420.7508333 | P71: BB+ | Q71: 64.63636389 | R71: 126.2485278 | S71: 186.5315139 | T71: 238.8283472 | U71: 292.2305417
B72: BB | C72: 199.7247743 | D72: 224.8925198 | E72: 256.1375261 | F72: 289.6152084 | G72: 322.0217182 | I72: BB | J72: 95.11983333 | K72: 206.78 | L72: 320.9175 | M72: 417.0408333 | N72: 504.3008333 | P72: BB | Q72: 91.42185 | R72: 164.0009583 | S72: 238.1903333 | T72: 300.6705 | U72: 357.3895
B73: CC5 | C73: 294.2472381 | D73: 330.4106912 | E73: 371.7828391 | F73: 398.9100553 | G73: 429.9372718 | I73: CC5 | J73: 162.8976111 | K73: 295.5994444 | L73: 398.3758333 | M73: 471.1936111 | N73: 552.5786111 | P73: CC5 | Q73: 197.6104167 | R73: 261.3032847 | S73: 328.1079375 | T73: 375.4394931 | U73: 428.3397431
B74: BB- | C74: 235.6141489 | D74: 265.2121805 | E74: 300.7946387 | F74: 331.0785058 | G74: 363.4312468 | I74: BB- | J74: 122.2309444 | K74: 242.3077778 | L74: 351.9008333 | M74: 438.7019444 | N74: 523.6119444 | P74: BB- | Q74: 122.3916667 | R74: 200.3371389 | S74: 271.572625 | T74: 327.9933472 | U74: 383.1848472
B75: B+ | C75: 271.5035235 | D75: 305.5318413 | E75: 345.4517514 | F75: 372.5418032 | G75: 404.8407755 | I75: B+ | J75: 149.3420556 | K75: 277.8355556 | L75: 382.8841667 | M75: 460.3630556 | N75: 542.9230556 | P75: B+ | Q75: 174.9333333 | R75: 241.8197778 | S75: 310.101375 | T75: 360.4626528 | U75: 414.1266528
B76: B | C76: 307.3928981 | D76: 345.851502 | E76: 390.108864 | F76: 414.0051007 | G76: 446.2503042 | I76: B | J76: 176.4531667 | K76: 313.3633333 | L76: 413.8675 | M76: 482.0241667 | N76: 562.2341667 | P76: B | Q76: 229.3541667 | R76: 283.960125 | S76: 349.2878333 | T76: 393.5896667 | U76: 445.7261667
B77: B- | C77: 362.4783817 | D77: 405.0472409 | E77: 450.7761022 | F77: 478.0148116 | G77: 505.2267605 | I77: B- | J77: 203.5642778 | K77: 348.8911111 | L77: 444.8508333 | M77: 503.6852778 | N77: 581.5452778 | P77: B- | Q77: 263.7625 | R77: 319.0960972 | S77: 381.4699167 | T77: 419.7123056 | U77: 470.3213056
B78: Swap | C78: 3.112889848 | D78: 3.450280381 | E78: 4.131464916 | F78: 4.708088088 | G78: 5.024973674 | I78: Swap | J78: 1.077135 | K78: 0.99945 | L78: 1.312991667 | M78: 1.691091667 | N78: 2.008075
B80: TCMB W: 1993 - 2015 | I80: TCMB L: 2015
C81: 6M | D81: 2Y | E81: 5Y | F81: 10Y | G81: 20Y | J81: 6M | K81: 2Y | L81: 5Y | M81: 10Y | N81: 20Y
B82: CC1 | C82: 15.05604201 | D82: 15.96877587 | E82: 19.64583205 | F82: 32.787682 | G82: 63.0507223 | I82: CC1 | J82: 15 | K82: 18.2578125 | L82: 38.5 | M82: 65.86347222 | N82: 100.5016667
B83: AAA | C83: 15 | D83: 15 | E83: 15 | F83: 21.12715797 | G83: 47.41175428 | I83: AAA | J83: 15 | K83: 15 | L83: 15 | M83: 21.10166667 | N83: 21.10166667
B84: AA+ | C84: 15 | D84: 15.06081439 | E84: 15.78772727 | F84: 28.80852301 | G84: 58.10370046 | I84: AA+ | J84: 15 | K84: 16.33791667 | L84: 32.33 | M84: 55.06833333 | N84: 82.84833333
B85: AA | C85: 15 | D85: 15.12162879 | E85: 19.87000311 | F85: 36.48988806 | G85: 68.79564663 | I85: AA | J85: 15 | K85: 17.67583333 | L85: 49.66 | M85: 89.035 | N85: 144.595
B86: AA- | C86: 15.22416804 | D86: 18.69266029 | E86: 27.9255978 | F86: 44.72515896 | G86: 77.89178784 | I86: AA- | J86: 15 | K86: 24.0175 | L86: 57.01 | M86: 98.24888889 | N86: 153.4616667
B87: CC2 | C87: 29.00495796 | D87: 34.05628492 | E87: 46.60711905 | F87: 63.47554155 | G87: 98.39325391 | I87: CC2 | J87: 19.39074074 | K87: 39.4887963 | L87: 75.01833333 | M87: 120.1794444 | N87: 175.5931481
B88: A+ | C88: 20.81794636 | D88: 25.01183462 | E88: 35.9811925 | F88: 52.96042986 | G88: 86.98792904 | I88: A+ | J88: 15 | K88: 30.35916667 | L88: 64.36 | M88: 107.4627778 | N88: 162.3283333
B89: A | C89: 26.41172469 | D89: 31.33100895 | E89: 44.03678719 | F89: 61.19570076 | G89: 96.08407025 | I89: A | J89: 15 | K89: 36.70083333 | L89: 71.71 | M89: 116.6766667 | N89: 171.195
B90: A- | C90: 39.78520283 | D90: 45.8260112 | E90: 59.80337747 | F90: 76.27049404 | G90: 112.1077624 | I90: A- | J90: 28.17222222 | K90: 51.40638889 | L90: 88.985 | M90: 136.3988889 | N90: 193.2561111
B91: CC3 | C91: 72.6856485 | D91: 82.02628202 | E91: 98.22676717 | F91: 116.2234446 | G91: 151.4269944 | I91: CC3 | J91: 58.44444444 | K91: 90.1712037 | L91: 139.122963 | M91: 192.5766667 | N91: 253.5681481
B92: BBB+ | C92: 56.22053014 | D92: 63.96889567 | E92: 77.97263821 | F92: 93.975277 | G92: 129.7306437 | I92: BBB+ | J92: 41.34444444 | K92: 66.11194444 | L92: 106.26 | M92: 156.1211111 | N92: 215.3172222
B93: BBB | C93: 69.55720043 | D93: 77.63416651 | E93: 92.47264792 | F93: 110.2156281 | G93: 146.4478999 | I93: BBB | J93: 54.51666667 | K93: 80.8175 | L93: 123.535 | M93: 175.8433333 | N93: 237.3783333
B94: BBB- | C94: 92.27921494 | D94: 104.4757839 | E94: 124.2350154 | F94: 144.4794287 | G94: 178.1024395 | I94: BBB- | J94: 79.47222222 | K94: 123.5841667 | L94: 187.5738889 | M94: 245.7655556 | N94: 308.0088889
B95: CC4 | C95: 176.2744152 | D95: 195.3789615 | E95: 221.049508 | F95: 249.1760801 | G95: 280.0980143 | I95: CC4 | J95: 116.9055556 | K95: 187.7341667 | L95: 283.6322222 | M95: 350.6488889 | N95: 413.9547222
B96: BB+ | C96: 148.2760151 | D96: 165.0779023 | E96: 188.7780105 | F96: 214.2771963 | G96: 246.0994894 | I96: BB+ | J96: 104.4277778 | K96: 166.3508333 | L96: 251.6127778 | M96: 315.6877778 | N96: 378.6394444
B97: BB | C97: 204.2728153 | D97: 225.6800207 | E97: 253.3210055 | F97: 284.0749638 | G97: 314.0965393 | I97: BB | J97: 129.3833333 | K97: 209.1175 | L97: 315.6516667 | M97: 385.61 | N97: 449.27
B98: CC5 | C98: 299.9580914 | D98: 331.9242237 | E98: 370.6266219 | F98: 395.767292 | G98: 424.6050396 | I98: CC5 | J98: 172.5916667 | K98: 281.8536111 | L98: 389.8947222 | M98: 447.3947222 | N98: 528.0894444
B99: BB- | C99: 240.5438535 | D99: 266.2080241 | E99: 298.5726303 | F99: 326.3992259 | G99: 356.4668687 | I99: BB- | J99: 146.6666667 | K99: 238.2119444 | L99: 345.3488889 | M99: 410.3238889 | N99: 480.7977778
B100: B+ | C100: 276.8148917 | D100: 306.7360276 | E100: 343.8242551 | F100: 368.7234879 | G100: 398.8371981 | I100: B+ | J100: 163.95 | K100: 267.3063889 | L100: 375.0461111 | M100: 435.0377778 | N100: 512.3255556
B101: B | C101: 313.0859299 | D101: 347.2640311 | E101: 389.0758798 | F101: 411.04775 | G101: 441.2075275 | I101: B | J101: 181.2333333 | K101: 296.4008333 | L101: 404.7433333 | M101: 459.7516667 | N101: 543.8533333
B102: B- | C102: 369.3876905 | D102: 407.4888117 | E102: 451.0337226 | F102: 476.8987044 | G102: 501.9085641 | I102: B- | J102: 198.5166667 | K102: 325.4952778 | L102: 434.4405556 | M102: 484.4655556 | N102: 575.3811111
B103: Swap | C103: 3.201400928 | D103: 3.556838223 | E103: 4.254007231 | F103: 4.839261846 | G103: 5.156143182 | I103: Swap | J103: 0.5026666667 | K103: 0.875575 | L103: 1.5849 | M103: 2.132483333 | N103: 2.47855
B105: TCMB W: 1993 - 2014 | I105: TCMB L: 2014
C106: 6M | D106: 2Y | E106: 5Y | F106: 10Y | G106: 20Y | J106: 6M | K106: 2Y | L106: 5Y | M106: 10Y | N106: 20Y
B107: CC1 | C107: 15.05871068 | D107: 15.85977412 | E107: 18.74801452 | F107: 31.21264437 | G107: 61.267344 | I107: CC1 | J107: 15 | K107: 17.01666667 | L107: 19.91788194 | M107: 39.59756944 | N107: 64.9671875
B108: AAA | C108: 15 | D108: 15 | E108: 15 | F108: 21.12837184 | G108: 48.6646156 | I108: AAA | J108: 15 | K108: 15 | L108: 15 | M108: 15 | N108: 15
B109: AA+ | C109: 15 | D109: 15 | E109: 15 | F109: 27.55805586 | G109: 56.9253846 | I109: AA+ | J109: 15 | K109: 15.7 | L109: 17.62541667 | M109: 32.73083333 | N109: 53.32208333
B110: AA | C110: 15 | D110: 15 | E110: 18.45143183 | F110: 33.98773987 | G110: 65.18615361 | I110: AA | J110: 15 | K110: 16.4 | L110: 20.25083333 | M110: 50.46166667 | N110: 91.64416667
B111: AA- | C111: 15.23484271 | D111: 18.43909649 | E111: 26.54062627 | F111: 42.17640991 | G111: 74.29322218 | I111: AA- | J111: 15 | K111: 20.96666667 | L111: 26.79527778 | M111: 60.19777778 | N111: 99.9025
B112: CC2 | C112: 29.46277783 | D112: 33.79759391 | E112: 45.25420409 | F112: 60.7753557 | G112: 94.71706847 | I112: CC2 | J112: 17.37074074 | K112: 32.22685185 | L112: 42.19342593 | M112: 81.64777778 | N112: 120.1015741
B113: A+ | C113: 21.09499143 | D113: 24.75719976 | E113: 34.62982071 | F113: 50.36507996 | G113: 83.40029074 | I113: A+ | J113: 15 | K113: 25.53333333 | L113: 33.33972222 | M113: 69.93388889 | N113: 108.1608333
B114: A | C114: 26.95514015 | D114: 31.07530303 | E114: 42.71901515 | F114: 58.55375 | G114: 92.50735931 | I114: A | J114: 15 | K114: 30.1 | L114: 39.88416667 | M114: 79.67 | N114: 116.4191667
B115: A- | C115: 40.33820191 | D115: 45.56027893 | E115: 58.4137764 | F115: 73.40723714 | G115: 108.2435554 | I115: A- | J115: 22.11222222 | K115: 41.04722222 | L115: 53.35638889 | M115: 95.33944444 | N115: 135.7247222
B116: CC3 | C116: 73.36380108 | D116: 81.6384286 | E116: 96.27932928 | F116: 112.5875769 | G116: 146.5631299 | I116: CC3 | J116: 42.31962963 | K116: 72.19722222 | L116: 94.37490741 | M116: 139.3033333 | N116: 188.4830556
B117: BBB+ | C117: 56.92891517 | D117: 63.86684573 | E117: 76.62562098 | F117: 91.01595156 | G117: 125.6550923 | I117: BBB+ | J117: 29.22444444 | K117: 51.99444444 | L117: 66.82861111 | M117: 111.0088889 | N117: 155.0302778
B118: BBB | C118: 70.27341632 | D118: 77.4825792 | E118: 90.99348829 | F118: 107.0904993 | G118: 142.1178793 | I118: BBB | J118: 36.33666667 | K118: 62.94166667 | L118: 80.30083333 | M118: 126.6783333 | N118: 174.3358333
B119: BBB- | C119: 92.88907174 | D119: 103.5658609 | E119: 121.2188786 | F119: 139.6562798 | G119: 171.9164181 | I119: BBB- | J119: 61.39777778 | K119: 101.6555556 | L119: 135.9952778 | M119: 180.2227778 | N119: 236.0830556
B120: CC4 | C120: 179.1015037 | D120: 195.7429993 | E120: 218.0693787 | F120: 244.3440416 | G120: 273.7238854 | I120: CC4 | J120: 98.98944444 | K120: 159.7263889 | L120: 219.5369444 | M120: 260.5394444 | N120: 328.7038889
B121: BB+ | C121: 150.3640264 | D121: 165.0172865 | E121: 185.7858787 | F121: 209.448121 | G121: 239.7880629 | I121: BB+ | J121: 86.45888889 | K121: 140.3694444 | L121: 191.6897222 | M121: 233.7672222 | N121: 297.8302778
B122: BB | C122: 207.8389811 | D122: 226.4687121 | E122: 250.3528788 | F122: 279.2399621 | G122: 307.6597078 | I122: BB | J122: 111.52 | K122: 179.0833333 | L122: 247.3841667 | M122: 287.3116667 | N122: 359.5775
B123: CC5 | C123: 306.0231593 | D123: 334.3085385 | E123: 369.7090934 | F123: 393.308843 | G123: 419.6772108 | I123: CC5 | J123: 125.2908333 | K123: 222.5486111 | L123: 323.3702778 | M123: 336.2144444 | N123: 418.1677778
B124: BB- | C124: 245.0141957 | D124: 267.5411708 | E124: 296.3451894 | F124: 322.4028134 | G124: 350.5463492 | I124: BB- | J124: 117.0283333 | K124: 196.4694444 | L124: 277.7786111 | M124: 306.8727778 | N124: 383.0136111
B125: B+ | C125: 282.1894104 | D125: 308.6136295 | E125: 342.3375 | F125: 365.5656646 | G125: 393.4329906 | I125: B+ | J125: 122.5366667 | K125: 213.8555556 | L125: 308.1730556 | M125: 326.4338889 | N125: 406.4497222
B126: B | C126: 319.364625 | D126: 349.6860882 | E126: 388.3298106 | F126: 408.7285158 | G126: 436.319632 | I126: B | J126: 128.045 | K126: 231.2416667 | L126: 338.5675 | M126: 345.995 | N126: 429.8858333
B127: B- | C127: 377.524406 | D127: 411.3932657 | E127: 451.8238734 | F127: 476.5383781 | G127: 498.4098714 | I127: B- | J127: 133.5533333 | K127: 248.6277778 | L127: 368.9619444 | M127: 365.5561111 | N127: 453.3219444
B128: Swap | C128: 3.329912083 | D128: 3.684517424 | E128: 4.381107576 | F128: 4.968156061 | G128: 5.283647619 | I128: Swap | J128: 0.33155 | K128: 0.6366666667 | L128: 1.735991667 | M128: 2.605133333 | N128: 3.138141667
B130: TCMB W: 1993 - 2013, prototype | I130: TCMB L: 2013
C131: 6M | D131: 2Y | E131: 5Y | F131: 10Y | G131: 20Y | J131: 6M | K131: 2Y | L131: 5Y | M131: 10Y | N131: 20Y
B132: CC1 | C132: 7.476441961 | D132: 9.633050278 | E132: 16.62389997 | F132: 30.81336222 | G132: 61.09116097 | I132: CC1 | J132: 15 | K132: 23.63645833 | L132: 39.92805556 | M132: 61.79118056 | N132: 88.30923611
B133: AAA | C133: 1.418776995 | D133: 1.5584124 | E133: 8.278987213 | F133: 21.42019907 | G133: 50.26769253 | I133: AAA | J133: 15 | K133: 15 | L133: 35.7725 | M133: 61.14916667 | N133: 61.14916667
B134: AA+ | C134: 4.134142887 | D134: 6.7378217 | E134: 13.32236663 | F134: 27.31173312 | G134: 57.09697038 | I134: AA+ | J134: 15 | K134: 20.8075 | L134: 37.58083333 | M134: 59.43666667 | N134: 79.91333333
B135: AA | C135: 9.10682227 | D135: 11.917231 | E135: 18.36574604 | F135: 33.20326717 | G135: 63.92624823 | I135: AA | J135: 15 | K135: 26.615 | L135: 39.38916667 | M135: 57.72416667 | N135: 98.6775
B136: AA- | C136: 15.24602569 | D136: 18.31873601 | E136: 26.52850001 | F136: 41.31824954 | G136: 73.07373276 | I136: AA- | J136: 15 | K136: 32.12333333 | L136: 46.96972222 | M136: 68.85472222 | N136: 113.4969444
B137: CC2 | C137: 30.03858912 | D137: 33.87239115 | E137: 45.39995543 | F137: 59.78143084 | G137: 93.50828249 | I137: CC2 | J137: 17.5369899 | K137: 45.28158249 | L137: 65.24093434 | M137: 93.63696128 | N137: 144.621271
B138: A+ | C138: 21.38522912 | D138: 24.72024102 | E138: 34.69125397 | F138: 49.43323191 | G138: 82.22121729 | I138: A+ | J138: 15 | K138: 37.63166667 | L138: 54.55027778 | M138: 79.98527778 | N138: 128.3163889
B139: A | C139: 27.52443254 | D139: 31.12174603 | E139: 42.85400794 | F139: 57.54821429 | G139: 91.36870181 | I139: A | J139: 15 | K139: 43.14 | L139: 62.13083333 | M139: 91.11583333 | N139: 143.1358333
B140: A- | C140: 41.2061057 | D140: 45.77518639 | E140: 58.65460438 | F140: 72.36284632 | G140: 106.9349284 | I140: A- | J140: 22.6109697 | K140: 55.07308081 | L140: 79.04169192 | M140: 109.8097727 | N140: 162.4115909
B141: CC3 | C141: 74.84209496 | D141: 82.08800986 | E141: 96.37001603 | F141: 111.315398 | G141: 144.566943 | I141: CC3 | J141: 44.54507744 | K141: 86.32459596 | L141: 122.03117 | M141: 156.9239141 | N141: 213.9977862
B142: BBB+ | C142: 58.24817569 | D142: 64.43219817 | E142: 77.09214526 | F142: 90.06390693 | G142: 124.256274 | I142: BBB+ | J142: 30.22193939 | K142: 67.00616162 | L142: 95.95255051 | M142: 128.5037121 | N142: 181.6873485
B143: BBB | C143: 71.88945202 | D143: 78.17500361 | E143: 91.50266234 | F143: 106.1577453 | G143: 140.583691 | I143: BBB | J143: 37.83290909 | K143: 78.93924242 | L143: 112.8634091 | M143: 147.1976515 | N143: 200.9631061
B144: BBB- | C144: 94.38865717 | D144: 103.6568278 | E144: 120.5152405 | F144: 137.7245418 | G144: 168.8608639 | I144: BBB- | J144: 65.58038384 | K144: 113.0283838 | L144: 157.2775505 | M144: 195.0703788 | N144: 259.342904
B145: CC4 | C145: 182.9163637 | D145: 197.458076 | E145: 217.9994946 | F145: 243.5728319 | G145: 271.10579 | I145: CC4 | J145: 107.201596 | K145: 164.162096 | L145: 223.8987626 | M145: 266.8794697 | N145: 346.912601
B146: BB+ | C146: 153.4071282 | D146: 166.1909933 | E146: 185.5047433 | F146: 208.2900685 | G146: 237.0241479 | I146: BB+ | J146: 93.32785859 | K146: 147.1175253 | L146: 201.6916919 | M146: 242.9431061 | N146: 317.722702
B147: BB | C147: 212.4255992 | D147: 228.7251587 | E147: 250.494246 | F147: 278.8555952 | G147: 305.187432 | I147: BB | J147: 121.0753333 | K147: 181.2066667 | L147: 246.1058333 | M147: 290.8158333 | N147: 376.1025
B148: CC5 | C148: 314.6294605 | D148: 339.6304398 | E148: 371.9157036 | F148: 396.0276239 | G148: 419.7490886 | I148: CC5 | J148: 159.5826592 | K148: 225.5492655 | L148: 323.1778782 | M148: 362.1867438 | N148: 426.1291789
B149: BB- | C149: 251.1087606 | D149: 270.9255387 | E149: 297.2293122 | F149: 323.1423389 | G149: 349.0002891 | I149: BB- | J149: 132.2642222 | K149: 194.3511111 | L149: 272.4697222 | M149: 315.1463889 | N149: 390.0317929
B150: B+ | C150: 289.791922 | D150: 313.1259187 | E150: 343.9643783 | F150: 367.4290825 | G150: 392.8131463 | I150: B+ | J150: 143.4531111 | K150: 207.4955556 | L150: 298.8336111 | M150: 339.4769444 | N150: 403.9610859
B151: B | C151: 328.4750833 | D151: 355.3262987 | E151: 390.6994444 | F151: 411.7158261 | G151: 436.6260034 | I151: B | J151: 154.642 | K151: 220.64 | L151: 325.1975 | M151: 363.8075 | N151: 417.8903788
B152: B- | C152: 389.1420761 | D152: 419.1440033 | E152: 455.7696796 | F152: 481.823248 | G152: 500.5569155 | I152: B- | J152: 207.9713034 | K152: 279.7103955 | L152: 396.2106795 | M152: 430.316142 | N152: 492.6334579
B153: Swap | C153: 3.47269123 | D153: 3.829653175 | E153: 4.507065476 | F153: 5.080680952 | G153: 5.385814569 | I153: Swap | J153: 0.40258 | K153: 0.4455166667 | L153: 1.344275 | M153: 2.500841667 | N153: 3.233641667

Sheet Comparison (hidden)
B2: 2018
C4: USD: Average period from 1993-jan to 2018-dec | I4: USD: Average period from 2018-jan to 2018-dec
C5: Spread (bp) over swap rate | I5: Spread (bp) over swap rate
B6: Rating | C6: 6M | D6: 2Y | E6: 5Y | F6: 10Y | G6: 20Y | I6: 6M | J6: 2Y | K6: 5Y | L6: 10Y | M6: 20Y
B7: CC1 | C7: 15.04957562 | D7: 16.0633669 | E7: 21.59652263 | F7: 37.0160157 | G7: 66.98198511 | I7: 15 | J7: 15.78861111 | K7: 30.61545139 | L7: 55.46486111 | M7: 73.29819444
B8: AAA | C8: 15 | D8: 15 | E8: 15.61195513 | F8: 22.81370384 | G8: 46.06546212 | I8: 15 | J8: 15 | K8: 15 | L8: 17.57666667 | M8: 17.57666667
B9: AA+ | C9: 15 | D9: 15.1237653 | E9: 17.66928759 | F9: 32.59657805 | G9: 60.98852989 | I9: 15 | J9: 15 | K9: 26.41458333 | L9: 46.785 | M9: 60.36
B10: AA | C10: 15 | D10: 15.24753059 | E10: 22.64102839 | F10: 42.37945226 | G10: 75.91159766 | I10: 15 | J10: 15 | K10: 37.82916667 | L10: 75.99333333 | M10: 103.1433333
B11: AA- | C11: 15.1983025 | D11: 18.88217171 | E11: 30.46381942 | F11: 50.27432865 | G11: 84.96235078 | I11: 15 | J11: 18.15444444 | K11: 43.21805556 | L11: 81.50444444 | M11: 112.1127778
B12: CC2 | C12: 27.4868834 | D12: 33.68202698 | E12: 48.69661814 | F12: 68.55055741 | G12: 105.5115465 | I12: 16.23097222 | J12: 26.47481481 | K12: 56.49861111 | L12: 96.42574074 | M12: 133.3794444
B13: A+ | C13: 20.14664486 | D13: 24.94786225 | E13: 38.28661046 | F13: 58.16920505 | G13: 94.0131039 | I13: 15 | J13: 21.30888889 | K13: 48.60694444 | L13: 87.01555556 | M13: 121.0822222
B14: A | C14: 25.09498723 | D14: 31.01355279 | E14: 46.10940149 | F14: 66.06408144 | G14: 103.063857 | I14: 15 | J14: 24.46333333 | K14: 53.99583333 | L14: 92.52666667 | M14: 130.0516667
B15: A- | C15: 37.2190181 | D15: 45.08466589 | E15: 61.69384247 | F15: 81.41838575 | G15: 119.4576787 | I15: 18.69291667 | J15: 33.65222222 | K15: 66.89305556 | L15: 109.735 | M15: 149.0044444
B16: CC3 | C16: 67.71323892 | D16: 80.54088837 | E16: 100.4651388 | F16: 122.666295 | G16: 160.7837372 | I16: 34.25425926 | J16: 61.04759259 | K16: 106.0189815 | L16: 159.1711111 | M16: 204.1248148
B17: BBB+ | C17: 52.05160786 | D17: 62.38275173 | E17: 79.40372269 | F17: 99.09921939 | G17: 137.2661677 | I17: 22.38583333 | J17: 42.84111111 | K17: 79.79027778 | L17: 126.9433333 | M17: 167.9572222
B18: BBB | C18: 64.14307794 | D18: 75.71987166 | E18: 93.867727 | F18: 115.4845941 | G18: 154.2735269 | I18: 26.07875 | J18: 52.03 | K18: 92.6875 | L18: 144.1516667 | M18: 186.91
B19: BBB- | C19: 86.94503095 | D19: 103.5200417 | E19: 128.1239666 | F19: 153.4150716 | G19: 190.811517 | I19: 54.29819444 | J19: 88.27166667 | K19: 145.5791667 | L19: 206.4183333 | M19: 257.5072222
B20: CC4 | C20: 165.3010414 | D20: 190.0178847 | E20: 223.0056972 | F20: 257.4616285 | G20: 293.8422178 | I20: 96.62736111 | J20: 142.6341667 | K20: 224.9166667 | L20: 299.8183333 | M20: 363.4030556
B21: BB+ | C21: 139.1823713 | D21: 161.1852704 | E21: 191.3784537 | F21: 222.7794429 | G21: 259.4986509 | I21: 82.51763889 | J21: 124.5133333 | K21: 198.4708333 | L21: 268.685 | M21: 328.1044444
B22: BB | C22: 191.4197116 | D22: 218.850499 | E22: 254.6329408 | F22: 292.1438142 | G22: 328.1857847 | I22: 110.7370833 | J22: 160.755 | K22: 251.3625 | L22: 330.9516667 | M22: 398.7016667
B23: CC5 | C23: 280.4754366 | D23: 320.1469201 | E23: 366.1329946 | F23: 397.9669955 | G23: 434.1887637 | I23: 146.5981944 | J23: 213.0744444 | K23: 309.0013889 | L23: 398.9030556 | M23: 492.8683333
B24: BB- | C24: 225.2700531 | D24: 257.6266602 | E24: 297.7551046 | F24: 332.3918793 | G24: 368.9654138 | I24: 125.0815278 | J24: 181.6827778 | K24: 274.4180556 | L24: 358.1322222 | M24: 436.3683333
B25: B+ | C25: 259.1203946 | D25: 296.4028215 | E25: 340.8772684 | F25: 372.6399444 | G25: 409.7450428 | I25: 139.4259722 | J25: 202.6105556 | K25: 297.4736111 | L25: 385.3127778 | M25: 474.035
B26: B | C26: 292.9707361 | D26: 335.1789827 | E26: 383.9994321 | F26: 412.8880096 | G26: 450.5246718 | I26: 153.7704167 | J26: 223.5383333 | K26: 320.5291667 | L26: 412.4933333 | M26: 511.7016667
B27: B- | C27: 344.5405628 | D27: 391.3792159 | E27: 441.9001734 | F27: 473.9481488 | G27: 507.5199264 | I27: 168.1148611 | J27: 244.4661111 | K27: 343.5847222 | L27: 439.6738889 | M27: 549.3683333
B29: 2017
C31: USD: Average period from 1993-jan to 2017-dec | I31: USD: Average period from 2017-jan to 2017-dec
C32: Spread (bp) over swap rate | I32: Spread (bp) over swap rate
B33: Rating | C33: 6M | D33: 2Y | E33: 5Y | F33: 10Y | G33: 20Y | I33: 6M | J33: 2Y | K33: 5Y | L33: 10Y | M33: 20Y
B34: CC1 | C34: 15.05155865 | D34: 16.07435713 | E34: 21.23576548 | F34: 36.27806188 | G34: 66.72933674 | I34: 15 | J34: 15.584375 | K34: 29.53256944 | L34: 66.74298611 | M34: 94.71520833
B35: AAA | C35: 15 | D35: 15 | E35: 15.63643333 | F35: 23.02318533 | G35: 47.20501394 | I35: 15 | J35: 15 | K35: 15.39333333 | L35: 39.80583333 | M35: 39.80583333
B36: AA+ | C36: 15 | D36: 15.12871591 | E36: 17.31947576 | F36: 32.02904117 | G36: 61.01367109 | I36: 15 | J36: 15 | K36: 25.5475 | L36: 60.44333333 | M36: 82.165
B37: AA | C37: 15 | D37: 15.25743182 | E37: 22.03350286 | F37: 41.03489701 | G37: 74.82232823 | I37: 15 | J37: 15 | K37: 35.70166667 | L37: 81.08083333 | M37: 124.5241667
B38: AA- | C38: 15.2062346 | D38: 18.9112808 | E38: 29.95364998 | F38: 49.02512402 | G38: 83.8763337 | I38: 15 | J38: 17.3375 | K38: 41.48777778 | L38: 85.64194444 | M38: 132.3658333
B39: CC2 | C39: 27.93711984 | D39: 33.97031546 | E39: 48.38453842 | F39: 67.43555008 | G39: 104.3968306 | I39: 15.58305556 | J39: 24.17407407 | K39: 55.06092593 | L39: 98.4687963 | M39: 151.4575
B40: A+ | C40: 20.35251066 | D40: 25.09342119 | E40: 37.8737971 | F40: 57.01535103 | G40: 92.93033916 | I40: 15 | J40: 19.675 | K40: 47.27388889 | L40: 90.20305556 | M40: 140.2075
B41: A | C41: 25.49878671 | D41: 31.27556157 | E41: 45.79394421 | F41: 65.00557803 | G41: 101.9843446 | I41: 15 | J41: 22.0125 | K41: 53.06 | L41: 94.76416667 | M41: 148.0491667
B42: A- | C42: 37.96006216 | D42: 45.54196363 | E42: 61.48587394 | F42: 80.28572118 | G42: 118.2758081 | I42: 16.74916667 | J42: 30.83472222 | K42: 64.84888889 | L42: 110.4391667 | M42: 166.1158333
B43: CC3 | C43: 69.05159811 | D43: 81.3206202 | E43: 100.2429851 | F43: 121.2061024 | G43: 159.0500941 | I43: 25.50148148 | J43: 54.81157407 | K43: 99.31555556 | L43: 155.7012037 | M43: 218.8223148
B44: BBB+ | C44: 53.23823884 | D44: 63.16441735 | E44: 79.38826049 | F44: 97.98545484 | G44: 136.0385255 | I44: 18.49833333 | J44: 39.65694444 | K44: 76.63777778 | L44: 126.1141667 | M44: 184.1825
B45: BBB | C45: 65.66565106 | D45: 76.66746652 | E45: 93.91493608 | F45: 114.3379112 | G45: 152.9680679 | I45: 20.2475 | J45: 48.47916667 | K45: 88.42666667 | L45: 141.7891667 | M45: 202.2491667
B46: BBB- | C46: 88.25090442 | D46: 104.1299767 | E46: 127.4257586 | F46: 151.2949411 | G46: 188.1436888 | I46: 37.75861111 | J46: 76.29861111 | K46: 132.8822222 | L46: 199.2002778 | M46: 270.0352778
B47: CC4 | C47: 168.0479886 | D47: 191.9132334 | E47: 222.9292585 | F47: 255.7673603 | G47: 291.0597843 | I47: 64.02527778 | J47: 118.0277778 | K47: 199.5655556 | L47: 285.3169444 | M47: 371.7144444
B48: BB+ | C48: 141.4489606 | D48: 162.6521479 | E48: 191.0947585 | F48: 220.9432206 | G48: 256.7544191 | I48: 55.26972222 | J48: 104.1180556 | K48: 177.3377778 | L48: 256.6113889 | M48: 337.8213889
B49: BB | C49: 194.6470167 | D49: 221.174319 | E49: 254.7637584 | F49: 290.5915001 | G49: 325.3651494 | I49: 72.78083333 | J49: 131.9375 | K49: 221.7933333 | L49: 314.0225 | M49: 405.6075
B50: CC5 | C50: 285.8305263 | D50: 324.4298191 | E50: 368.4182589 | F50: 397.9295531 | G50: 431.8415809 | I50: 83.82944444 | J50: 180.8888889 | K50: 287.6683333 | L50: 374.3975 | M50: 477.545
B51: BB- | C51: 229.2775941 | D51: 260.6644155 | E51: 298.6885865 | F51: 331.3622656 | G51: 366.269297 | I51: 77.20027778 | J51: 151.5180556 | K51: 248.1433333 | L51: 338.1725 | M51: 434.3825
B52: B+ | C52: 263.9081715 | D52: 300.1545121 | E52: 342.6134146 | F52: 372.1330311 | G52: 407.1734445 | I52: 81.61972222 | J52: 171.0986111 | K52: 274.4933333 | L52: 362.3225 | M52: 463.1575
B53: B | C53: 298.5387489 | D53: 339.6446086 | E53: 386.5382428 | F53: 412.9037966 | G53: 448.077592 | I53: 86.03916667 | J53: 190.6791667 | K53: 300.8433333 | L53: 386.4725 | M53: 491.9325
B54: B- | C54: 351.5975908 | D54: 397.2557401 | E54: 445.8327915 | F54: 475.3191191 | G54: 505.8459901 | I54: 90.45861111 | J54: 210.2597222 | K54: 327.1933333 | L54: 410.6225 | M54: 520.7075
B56: 2016
C58: USD: Average period from 1993-jan to 2016-dec | I58: USD: Average period from 2016-jan to 2016-dec
C59: Spread (bp) over swap rate | I59: Spread (bp) over swap rate
B60: Rating | C60: 6M | D60: 2Y | E60: 5Y | F60: 10Y | G60: 20Y | I60: 6M | J60: 2Y | K60: 5Y | L60: 10Y | M60: 20Y
B61: CC1 | C61: 15.05370693 | D61: 16.09477305 | E61: 20.89006532 | F61: 35.00869004 | G61: 65.56325876 | I61: 15 | J61: 18.99270833 | K61: 49.50743056 | L61: 86.091875 | M61: 123.3515972
B62: AAA | C62: 15 | D62: 15 | E62: 15.6465625 | F62: 22.32390833 | G62: 47.51331313 | I62: 15 | J62: 15 | K62: 30.5175 | L62: 49.84916667 | M62: 49.84916667
B63: AA+ | C63: 15 | D63: 15.13407907 | E63: 16.97664141 | F63: 30.84511233 | G63: 60.13236571 | I63: 15 | J63: 16.81916667 | K63: 44.32166667 | L63: 77.68666667 | M63: 106.7916667
B64: AA | C64: 15 | D64: 15.26815814 | E64: 21.46399603 | F64: 39.36631633 | G64: 72.7514183 | I64: 15 | J64: 18.63833333 | K64: 58.12583333 | L64: 105.5241667 | M64: 163.7341667
B65: AA- | C65: 15.2148277 | D65: 18.976855 | E65: 29.47306132 | F65: 47.49942317 | G65: 81.85593788 | I65: 15 | J65: 25.51333333 | K65: 65.06472222 | L65: 111.3075 | M65: 173.0313889
B66: CC2 | C66: 28.45187252 | D66: 34.37849219 | E66: 48.1063556 | F66: 66.14249815 | G66: 102.4359694 | I66: 15.73090741 | J66: 41.78925926 | K66: 82.5887963 | L66: 127.4825 | M66: 195.4184259
B67: A+ | C67: 20.57553193 | D67: 25.31918873 | E67: 37.48212661 | F67: 55.63253 | G67: 90.96045746 | I67: 15 | J67: 32.38833333 | K67: 72.00361111 | L67: 117.0908333 | M67: 182.3286111
B68: A | C68: 25.93623616 | D68: 31.66152247 | E68: 45.49119189 | F68: 63.76563684 | G68: 100.064977 | I68: 15 | J68: 39.26333333 | K68: 78.9425 | L68: 122.8741667 | M68: 191.6258333
B69: A- | C69: 38.84384947 | D69: 46.15476536 | E69: 61.34574832 | F69: 79.02932762 | G69: 116.2824737 | I69: 17.19272222 | J69: 53.71611111 | K69: 96.82027778 | L69: 142.4825 | M69: 212.3008333
B70: CC3 | C70: 70.8661863 | D70: 82.42516379 | E70: 100.281628 | F70: 119.7688065 | G70: 156.5595849 | I70: 29.01855556 | J70: 91.59944444 | K70: 147.5434259 | L70: 201.3121296 | M70: 274.6091667
B71: BBB+ | C71: 54.6857349 | D71: 64.14389539 | E71: 79.50286393 | F71: 96.81342518 | G71: 134.0325266 | I71: 19.38544444 | J71: 68.16888889 | K71: 114.6980556 | L71: 162.0908333 | M71: 232.9758333
B72: BBB | C72: 67.55807402 | D72: 77.84197902 | E72: 94.14361397 | F72: 113.1941089 | G72: 150.9146888 | I72: 21.57816667 | J72: 82.62166667 | K72: 132.5758333 | L72: 181.6991667 | M72: 253.6508333
B73: BBB- | C73: 90.35474997 | D73: 105.289617 | E73: 127.198406 | F73: 149.2988854 | G73: 184.7315392 | I73: 46.09205556 | J73: 124.0077778 | K73: 195.3563889 | L73: 260.1463889 | M73: 337.2008333
B74: CC4 | C74: 172.3822682 | D74: 194.9917941 | E74: 223.9027461 | F74: 254.5361277 | G74: 287.6991734 | I74: 82.86288889 | J74: 186.0869444 | K74: 289.5272222 | L74: 377.8172222 | M74: 462.5258333
B75: BB+ | C75: 145.0397622 | D75: 165.0910684 | E75: 191.667966 | F75: 219.4570469 | G75: 253.3766287 | I75: 70.60594444 | J75: 165.3938889 | K75: 258.1369444 | L75: 338.5936111 | M75: 420.7508333
B76: BB | C76: 199.7247743 | D76: 224.8925198 | E76: 256.1375261 | F76: 289.6152084 | G76: 322.0217182 | I76: 95.11983333 | J76: 206.78 | K76: 320.9175 | L76: 417.0408333 | M76: 504.3008333
B77: CC5 | C77: 294.2472381 | D77: 330.4106912 | E77: 371.7828391 | F77: 398.9100553 | G77: 429.9372718 | I77: 162.8976111 | J77: 295.5994444 | K77: 398.3758333 | L77: 471.1936111 | M77: 552.5786111
B78: BB- | C78: 235.6141489 | D78: 265.2121805 | E78: 300.7946387 | F78: 331.0785058 | G78: 363.4312468 | I78: 122.2309444 | J78: 242.3077778 | K78: 351.9008333 | L78: 438.7019444 | M78: 523.6119444
B79: B+ | C79: 271.5035235 | D79: 305.5318413 | E79: 345.4517514 | F79: 372.5418032 | G79: 404.8407755 | I79: 149.3420556 | J79: 277.8355556 | K79: 382.8841667 | L79: 460.3630556 | M79: 542.9230556
B80: B | C80: 307.3928981 | D80: 345.851502 | E80: 390.108864 | F80: 414.0051007 | G80: 446.2503042 | I80: 176.4531667 | J80: 313.3633333 | K80: 413.8675 | L80: 482.0241667 | M80: 562.2341667
B81: B- | C81: 362.4783817 | D81: 405.0472409 | E81: 450.7761022 | F81: 478.0148116 | G81: 505.2267605 | I81: 203.5642778 | J81: 348.8911111 | K81: 444.8508333 | L81: 503.6852778 | M81: 581.5452778
B83: 2015
C85: USD: Average period from 1993-jan to 2015-dec | I85: USD: Average period from 2015-jan to 2015-dec
C86: Spread (bp) over swap rate | I86: Spread (bp) over swap rate
B87: Rating | C87: 6M | D87: 2Y | E87: 5Y | F87: 10Y | G87: 20Y | I87: 6M | J87: 2Y | K87: 5Y | L87: 10Y | M87: 20Y
B88: CC1 | C88: 15.05604201 | D88: 15.96877587 | E88: 19.64583205 | F88: 32.787682 | G88: 63.0507223 | I88: 15 | J88: 18.2578125 | K88: 38.5 | L88: 65.86347222 | M88: 100.5016667
B89: AAA | C89: 15 | D89: 15 | E89: 15 | F89: 21.12715797 | G89: 47.41175428 | I89: 15 | J89: 15 | K89: 15 | L89: 21.10166667 | M89: 21.10166667
B90: AA+ | C90: 15 | D90: 15.06081439 | E90: 15.78772727 | F90: 28.80852301 | G90: 58.10370046 | I90: 15 | J90: 16.33791667 | K90: 32.33 | L90: 55.06833333 | M90: 82.84833333
B91: AA | C91: 15 | D91: 15.12162879 | E91: 19.87000311 | F91: 36.48988806 | G91: 68.79564663 | I91: 15 | J91: 17.67583333 | K91: 49.66 | L91: 89.035 | M91: 144.595
B92: AA- | C92: 15.22416804 | D92: 18.69266029 | E92: 27.9255978 | F92: 44.72515896 | G92: 77.89178784 | I92: 15 | J92: 24.0175 | K92: 57.01 | L92: 98.24888889 | M92: 153.4616667
B93: CC2 | C93: 29.00495796 | D93: 34.05628492 | E93: 46.60711905 | F93: 63.47554155 | G93: 98.39325391 | I93: 19.39074074 | J93: 39.4887963 | K93: 75.01833333 | L93: 120.1794444 | M93: 175.5931481
B94: A+ | C94: 20.81794636 | D94: 25.01183462 | E94: 35.9811925 | F94: 52.96042986 | G94: 86.98792904 | I94: 15 | J94: 30.35916667 | K94: 64.36 | L94: 107.4627778 | M94: 162.3283333
B95: A | C95: 26.41172469 | D95: 31.33100895 | E95: 44.03678719 | F95: 61.19570076 | G95: 96.08407025 | I95: 15 | J95: 36.70083333 | K95: 71.71 | L95: 116.6766667 | M95: 171.195
B96: A- | C96: 39.78520283 | D96: 45.8260112 | E96: 59.80337747 | F96: 76.27049404 | G96: 112.1077624 | I96: 28.17222222 | J96: 51.40638889 | K96: 88.985 | L96: 136.3988889 | M96: 193.2561111
B97: CC3 | C97: 72.6856485 | D97: 82.02628202 | E97: 98.22676717 | F97: 116.2234446 | G97: 151.4269944 | I97: 58.44444444 | J97: 90.1712037 | K97: 139.122963 | L97: 192.5766667 | M97: 253.5681481
B98: BBB+ | C98: 56.22053014 | D98: 63.96889567 | E98: 77.97263821 | F98: 93.975277 | G98: 129.7306437 | I98: 41.34444444 | J98: 66.11194444 | K98: 106.26 | L98: 156.1211111 | M98: 215.3172222
B99: BBB | C99: 69.55720043 | D99: 77.63416651 | E99: 92.47264792 | F99: 110.2156281 | G99: 146.4478999 | I99: 54.51666667 | J99: 80.8175 | K99: 123.535 | L99: 175.8433333 | M99: 237.3783333
B100: BBB- | C100: 92.27921494 | D100: 104.4757839 | E100: 124.2350154 | F100: 144.4794287 | G100: 178.1024395 | I100: 79.47222222 | J100: 123.5841667 | K100: 187.5738889 | L100: 245.7655556 | M100: 308.0088889
B101: CC4 | C101: 176.2744152 | D101: 195.3789615 | E101: 221.049508 | F101: 249.1760801 | G101: 280.0980143 | I101: 116.9055556 | J101: 187.7341667 | K101: 283.6322222 | L101: 350.6488889 | M101: 413.9547222
B102: BB+ | C102: 148.2760151 | D102: 165.0779023 | E102: 188.7780105 | F102: 214.2771963 | G102: 246.0994894 | I102: 104.4277778 | J102: 166.3508333 | K102: 251.6127778 | L102: 315.6877778 | M102: 378.6394444
B103: BB | C103: 204.2728153 | D103: 225.6800207 | E103: 253.3210055 | F103: 284.0749638 | G103: 314.0965393 | I103: 129.3833333 | J103: 209.1175 | K103: 315.6516667 | L103: 385.61 | M103: 449.27
B104: CC5 | C104: 299.9580914 | D104: 331.9242237 | E104: 370.6266219 | F104: 395.767292 | G104: 424.6050396 | I104: 172.5916667 | J104: 281.8536111 | K104: 389.8947222 | L104: 447.3947222 | M104: 528.0894444
B105: BB- | C105: 240.5438535 | D105: 266.2080241 | E105: 298.5726303 | F105: 326.3992259 | G105: 356.4668687 | I105: 146.6666667 | J105: 238.2119444 | K105: 345.3488889 | L105: 410.3238889 | M105: 480.7977778
B106: B+ | C106: 276.8148917 | D106: 306.7360276 | E106: 343.8242551 | F106: 368.7234879 | G106: 398.8371981 | I106: 163.95 | J106: 267.3063889 | K106: 375.0461111 | L106: 435.0377778 | M106: 512.3255556
B107: B | C107: 313.0859299 | D107: 347.2640311 | E107: 389.0758798 | F107: 411.04775 | G107: 441.2075275 | I107: 181.2333333 | J107: 296.4008333 | K107: 404.7433333 | L107: 459.7516667 | M107: 543.8533333
B108: B- | C108: 369.3876905 | D108: 407.4888117 | E108: 451.0337226 | F108: 476.8987044 | G108: 501.9085641 | I108: 198.5166667 | J108: 325.4952778 | K108: 434.4405556 | L108: 484.4655556 | M108: 575.3811111
B110: 2014
C112: USD: Average period from 1993-jan to 2014-dec | I112: USD: Average period from 2014-jan to 2014-dec
C113: Spread (bp) over swap rate | I113: Spread (bp) over swap rate
B114: Rating | C114: 6M | D114: 2Y | E114: 5Y | F114: 10Y | G114: 20Y | I114: 6M | J114: 2Y | K114: 5Y | L114: 10Y | M114: 20Y
B115: CC1 | C115: 15 | D115: 15.79979201 | E115: 18.9334014 | F115: 31.02755223 | G115: 62.24043834 | I115: 15 | J115: 17.01666667 | K115: 19.91788194 | L115: 39.59756944 | M115: 64.9671875
B116: AAA | C116: 15 | D116: 15 | E116: 15 | F116: 21.12837184 | G116: 49.36100436 | I116: 15 | J116: 15 | K116: 15 | L116: 15 | M116: 15
B117: AA+ | C117: 15 | D117: 15 | E117: 15 | F117: 27.42645857 | G117: 57.97186757 | I117: 15 | J117: 15.7 | K117: 17.62541667 | L117: 32.73083333 | M117: 53.32208333
B118: AA | C118: 15 | D118: 15 | E118: 18.98986033 | F118: 33.72454529 | G118: 66.58273077 | I118: 15 | J118: 16.4 | K118: 20.25083333 | L118: 50.46166667 | M118: 91.64416667
B119: AA- | C119: 15 | D119: 18.19916803 | E119: 26.74374527 | F119: 41.83083322 | G119: 75.04615068 | I119: 15 | J119: 20.96666667 | K119: 26.79527778 | L119: 60.19777778 | M119: 99.9025
B120: CC2 | C120: 28.41554905 | D120: 32.94858819 | E120: 44.99997606 | F120: 60.20475167 | G120: 94.22682107 | I120: 17.37074074 | J120: 32.22685185 | K120: 42.19342593 | L120: 81.64777778 | M120: 120.1015741
B121: A+ | C121: 20.17377341 | D121: 24.12225447 | E121: 34.49763021 | F121: 49.93712116 | G121: 83.50957059 | I121: 15 | J121: 25.53333333 | K121: 33.33972222 | L121: 69.93388889 | M121: 108.1608333
B122: A | C122: 25.88928409 | D122: 30.04534091 | E122: 42.25151515 | F122: 58.04340909 | G122: 91.9729905 | I122: 15 | J122: 30.1 | K122: 39.88416667 | L122: 79.67 | M122: 116.4191667
B123: A- | C123: 39.18358965 | D123: 44.67816919 | E123: 58.25078283 | F123: 72.63372475 | G123: 107.1979021 | I123: 22.11222222 | J123: 41.04722222 | K123: 53.35638889 | L123: 95.33944444 | M123: 135.7247222
B124: CC3 | C124: 72.73574453 | D124: 81.48890152 | E124: 96.46231902 | F124: 112.6536616 | G124: 144.873445 | I124: 42.31962963 | J124: 72.19722222 | K124: 94.37490741 | L124: 139.3033333 | M124: 188.4830556
B125: BBB+ | C125: 56.01406944 | D125: 63.22137626 | E125: 76.23747475 | F125: 90.36691919 | G125: 124.9287986 | I125: 29.22444444 | J125: 51.99444444 | K125: 66.82861111 | L125: 111.0088889 | M125: 155.0302778
B126: BBB | C126: 69.99299621 | D126: 77.66246212 | E126: 91.38291667 | F126: 107.6686364 | G126: 141.0232935 | I126: 36.33666667 | J126: 62.94166667 | K126: 80.30083333 | L126: 126.6783333 | M126: 174.3358333
B127: BBB- | C127: 92.20016793 | D127: 103.5828662 | E127: 121.7665657 | F127: 139.9254293 | G127: 168.668243 | I127: 61.39777778 | J127: 101.6555556 | K127: 135.9952778 | L127: 180.2227778 | M127: 236.0830556
B128: CC4 | C128: 179.8460676 | D128: 195.5305177 | E128: 218.4056187 | F128: 243.6142266 | G128: 271.61919 | I128: 98.98944444 | J128: 159.7263889 | K128: 219.5369444 | L128: 260.5394444 | M128: 328.7038889
B129: BB+ | C129: 150.6307677 | D129: 164.8813005 | E129: 186.192601 | F129: 209.0512942 | G129: 237.3022077 | I129: 86.45888889 | J129: 140.3694444 | K129: 191.6897222 | L129: 233.7672222 | M129: 297.8302778
B130: BB | C130: 209.0613674 | D130: 226.1797348 | E130: 250.6186364 | F130: 278.1771591 | G130: 305.9361723 | I130: 111.52 | J130: 179.0833333 | K130: 247.3841667 | L130: 287.3116667 | M130: 359.5775
B131: CC5 | C131: 306.2212254 | D131: 332.9073433 | E131: 366.1820627 | F131: 387.9009933 | G131: 416.1677265 | I131: 135.0724291 | J131: 236.0673852 | K131: 339.2786432 | L131: 349.9189687 | M131: 433.354642
B132: BB- | C132: 248.4333434 | D132: 269.5680721 | E132: 297.9876228 | F132: 322.6489915 | G132: 350.5841411 | I132: 117.0283333 | J132: 196.4694444 | K132: 277.7786111 | L132: 306.8727778 | M132: 383.0136111
B133: B+ | C133: 287.8053194 | D133: 312.9564094 | E133: 345.3566093 | F133: 367.1208238 | G133: 395.2321098 | I133: 122.5366667 | J133: 213.8555556 | K133: 308.1730556 | L133: 326.4338889 | M133: 406.4497222
B134: B | C134: 327.1772954 | D134: 356.3447467 | E134: 392.7255958 | F134: 411.5926562 | G134: 439.8800785 | I134: 128.045 | J134: 231.2416667 | K134: 338.5675 | L134: 345.995 | M134: 429.8858333
B135: B- | C135: 361.4689434 | D135: 392.760145 | E135: 428.6584228 | F135: 450.2415016 | G135: 478.9745766 | I135: 172.6797163 | J135: 302.7028743 | K135: 432.595406 | L135: 420.374208 | M135: 514.0694015
B137: 2013
C139: USD: Average period from 1993-jan to 2013-dec | I139: USD: Average period from 2013-jan to 2013-dec
C140: Spread (bp) over swap rate | I140: Spread (bp) over swap rate
B141: Rating | C141: 6M | D141: 2Y | E141: 5Y | F141: 10Y | G141: 20Y | I141: 6M | J141: 2Y | K141: 5Y | L141: 10Y | M141: 20Y
B142: CC1 | C142: 6.904951939 | D142: 9.631139439 | E142: 16.88862329 | F142: 30.61945617 | G142: 62.11059315 | I142: 17.46354286 | J142: 24.69595953 | K142: 47.61027226 | L142: 51.36244076 | M142: 105.9374354
B143: AAA | C143: 1.5584124 | D143: 1.5584124 | E143: 8.278987213 | F143: 21.42019907 | G143: 50.99724267 | I143: 17.93234349 | J143: 17.93234349 | K143: 41.43390543 | L143: 44.19793282 | M143: 91.92430419
B144: AA+ | C144: 3.184141793 | D144: 6.819058459 | E144: 13.60440061 | F144: 27.17386929 | G144: 58.19328586 | I144: 23.97964369 | J144: 23.97964369 | K144: 46.33424959 | L144: 48.06590934 | M144: 103.0029744
B145: AA | C145: 8.444787852 | D145: 12.07970452 | E145: 18.929814 | F145: 32.92753951 | G145: 65.38932906 | I145: 1.097277225 | J145: 30.02694389 | K145: 51.23459375 | L145: 51.93388586 | M145: 114.0816445
B146: AA- | C146: 14.43246571 | D146: 18.06738238 | E146: 26.74129134 | F146: 40.95621682 | G146: 73.862515 | I146: 26.84490704 | J146: 26.84490704 | K146: 51.43834028 | L146: 61.25203502 | M146: 114.7408186
B147: CC2 | C147: 28.9414923 | D147: 32.98295659 | E147: 45.13362131 | F147: 59.18365518 | G147: 92.99468997 | I147: 19.81059562 | J147: 26.60345673 | K147: 59.64791782 | L147: 81.0836725 | M147: 118.5152753
B148: A+ | C148: 20.42014357 | D148: 24.05506024 | E148: 34.55276869 | F148: 48.98489412 | G148: 82.33570093 | I148: 23.66287019 | J148: 23.66287019 | K148: 51.6420868 | L148: 70.57018418 | M148: 115.3999926
B149: A | C149: 26.40782143 | D149: 30.0427381 | E149: 42.36424603 | F149: 57.01357143 | G149: 90.80888687 | I149: 20.48083333 | J149: 20.48083333 | K149: 51.84583333 | L149: 79.88833333 | M149: 116.0591667
B150: A- | C150: 39.9965119 | D150: 44.85107143 | E150: 58.48384921 | F150: 71.5525 | G150: 105.8394821 | I150: 15.28808333 | J150: 35.66666667 | K150: 75.45583333 | L150: 92.7925 | M150: 124.0866667
B151: CC3 | C151: 74.18413095 | D151: 81.93136243 | E151: 96.56171958 | F151: 111.3846296 | G151: 142.7967969 | I151: 30.72783333 | J151: 83.035 | K151: 126.0569444 | L151: 158.3777778 | M151: 161.5041667
B152: BBB+ | C152: 57.28976587 | D152: 63.75599206 | E152: 76.68551587 | F152: 89.38396825 | G152: 123.4953948 | I152: 10.09533333 | J152: 52.80583333 | K152: 87.41333333 | L152: 114.225 | M152: 150.3883333
B153: BBB | C153: 71.59567857 | D153: 78.36345238 | E153: 91.91063492 | F153: 106.7634127 | G153: 139.4369821 | I153: 31.66366667 | J153: 82.89666667 | K153: 121.4308333 | L153: 159.9166667 | M153: 161.5616667
B154: BBB- | C154: 93.66694841 | D154: 103.6746429 | E154: 121.0890079 | F154: 138.0065079 | G154: 165.4580139 | I154: 50.4245 | J154: 113.4025 | K154: 169.3266667 | L154: 200.9916667 | M154: 172.5625
B155: CC4 | C155: 183.6963829 | D155: 197.2354762 | E155: 218.351746 | F155: 242.8082639 | G155: 268.900871 | I155: 123.582 | J155: 159.4875 | K155: 231.2960417 | L155: 250.8235417 | M155: 285.28875
B156: BB+ | C156: 153.6865714 | D156: 166.0485317 | E156: 185.9308333 | F156: 207.8743452 | G156: 234.4199186 | I156: 99.19616667 | J156: 144.1258333 | K156: 210.6395833 | L156: 234.2129167 | M156: 247.7133333
B157: BB | C157: 213.7061944 | D157: 228.4224206 | E157: 250.7726587 | F157: 277.7421825 | G157: 303.3818234 | I157: 147.9678333 | J157: 174.8491667 | K157: 251.9525 | L157: 267.4341667 | M157: 322.8641667
B158: CC5 | C158: 318.4483423 | D158: 342.19005 | E158: 371.6095986 | F158: 395.1142013 | G158: 420.7538421 | I158: 322.355839 | J158: 344.2018688 | K158: 397.3494759 | L158: 396.3889124 | M158: 451.8189124
B159: BB- | C159: 256.6436601 | D159: 275.2881814 | E159: 300.9414131 | F159: 325.9954916 | G159: 351.6351324 | I159: 208.7410273 | J159: 239.0881426 | K159: 308.6282579 | L159: 318.9711455 | M159: 374.4011455
B160: B+ | C160: 299.5811257 | D160: 322.1539422 | E160: 351.1101674 | F160: 374.2488006 | G160: 399.8884415 | I160: 269.5142212 | J160: 303.3271185 | K160: 365.3040157 | L160: 370.5081243 | M160: 425.9381243
B161: B | C161: 342.5185913 | D161: 369.0197029 | E161: 401.2789218 | F161: 422.5021097 | G161: 448.1417505 | I161: 330.2874151 | J161: 367.5660943 | K161: 421.9797736 | L161: 422.0451031 | M161: 477.4751031
B162: B- | C162: 375.0499921 | D162: 402.2983734 | E162: 433.1078923 | F162: 457.7104031 | G162: 483.350044 | I162: 480.8806923 | J162: 466.8261199 | K162: 493.4858566 | L162: 474.0312765 | M162: 529.4612765
B164: 2012
C166: USD: Average period from 1993-jan to 2012-dec | I166: USD: Average period from 2012-jan to 2012-dec
C167: Spread (bp) over swap rate | I167: Spread (bp) over swap rate
B168: Rating | C168: 6M | D168: 2Y | E168: 5Y | F168: 10Y | G168: 20Y | I168: 6M | J168: 2Y | K168: 5Y | L168: 10Y | M168: 20Y
B169: CC1 | C169: 7.100264059 | D169: 8.877898434 | E169: 15.35254084 | F169: 29.58230694 | G169: 59.15322339 | I169: 8.681093685 | J169: 8.681093685 | K169: 21.82831683 | L169: 76.75537496 | M169: 107.4439866
B170: AAA | C170: 0.739715845 | D170: 0.739715845 | E170: 6.621241303 | F170: 20.28131238 | G170: 48.18486195 | I170: 3.600983567 | J170: 3.600983567 | K170: 22.80232605 | L170: 66.60041433 | M170: 92.51116752
B171: AA+ | C171: 3.590850031 | D171: 5.961029198 | E171: 11.96790816 | F171: 26.12926729 | G171: 55.18677379 | I171: 7.491417284 | J171: 7.491417284 | K171: 19.6373298 | L171: 74.09201243 | M171: 103.3823211
B172: AA | C172: 8.812163383 | D172: 11.18234255 | E172: 17.31457501 | F172: 31.97722219 | G172: 62.18868564 | I172: 11.381851 | J172: 11.381851 | K172: 16.47233354 | L172: 81.58361052 | M172: 114.2534747
B173: AA- | C173: 15.25832698 | D173: 17.62850614 | E173: 25.5064389 | F173: 39.94142591 | G173: 71.05257217 | I173: 12.25012289 | J173: 12.25012289 | K173: 28.40127791 | L173: 84.74546257 | M173: 119.6289831
B174: CC2 | C174: 30.66366908 | D174: 33.30193158 | E174: 44.40790648 | F174: 58.08865432 | G174: 90.95263306 | I174: 14.14094641 | J174: 18.2747427 | K174: 55.81451854 | L174: 95.36354932 | M174: 131.4101083
B175: A+ | C175: 21.70449057 | D175: 24.07466974 | E175: 33.69830278 | F175: 47.90562962 | G175: 79.91645871 | I175: 13.11839478 | J175: 13.11839478 | K175: 40.33022229 | L175: 87.90731462 | M175: 125.0044916
B176: A | C176: 28.15065417 | D176: 30.52083333 | E176: 41.89016667 | F176: 55.86983333 | G176: 88.78034524 | I176: 13.98666667 | J176: 13.98666667 | K176: 52.25916667 | L176: 91.06916667 | M176: 130.38
B177: A- | C177: 42.1358625 | D177: 45.31029167 | E177: 57.63525 | F177: 70.4905 | G177: 104.1610952 | I177: 15.31777778 | J177: 27.71916667 | K177: 74.85416667 | L177: 107.1141667 | M177: 138.8458333
B178: CC3 | C178: 76.35694583 | D178: 81.87618056 | E178: 95.08695833 | F178: 109.0349722 | G178: 141.0954008 | I178: 23.75546296 | J178: 82.61805556 | K178: 136.8797222 | L178: 171.25 | M178: 189.9505556
B179: BBB+ | C179: 59.6494875 | D179: 64.3035 | E179: 76.149125 | F179: 88.14191667 | G179: 121.3847202 | I179: 16.64888889 | J179: 55.7175 | K179: 98.3525 | L179: 128.9625 | M179: 164.1808333
B180: BBB | C180: 73.59227917 | D180: 78.13679167 | E180: 90.434625 | F180: 104.10575 | G180: 137.5647202 | I180: 17.98 | J180: 81.03 | K180: 130.745 | L180: 173.7766667 | M180: 190.4275
B181: BBB- | C181: 95.82907083 | D181: 103.18825 | E181: 118.677125 | F181: 134.85725 | G181: 164.3367619 | I181: 36.6375 | J181: 111.1066667 | K181: 181.5416667 | L181: 211.0108333 | M181: 215.2433333
B182: CC4 | C182: 186.7021021 | D182: 199.122875 | E182: 217.7045312 | F182: 242.4075 | G182: 267.3154494 | I182: 205.040625 | J182: 242.3816667 | K182: 291.4397917 | L182: 318.0645833 | M182: 339.8114583
B183: BB+ | C183: 156.4110917 | D183: 167.1446667 | E183: 184.6953958 | F183: 206.5574167 | G183: 232.9892202 | I183: 148.90625 | J183: 198.6233333 | K183: 254.8070833 | L183: 282.38 | M183: 298.28875
B184: BB | C184: 216.9931125 | D184: 231.1010833 | E184: 250.7136667 | F184: 278.2575833 | G184: 301.6416786 | I184: 261.175 | J184: 286.14 | K184: 328.0725 | L184: 353.7491667 | M184: 381.3341667
B185: CC5 | C185: 322.2276674 | D185: 345.3169505 | E185: 374.3496375 | F185: 397.905138 | G185: 419.5628209 | I185: 320.716061 | J185: 371.2700512 | K185: 438.6503485 | L185: 476.5015055 | M185: 497.7747361
B186: BB- | C186: 256.9882097 | D186: 274.747 | E186: 298.4660417 | F186: 323.6216944 | G186: 347.0057897 | I186: 273.9905556 | J186: 312.2375 | K186: 365.3591667 | L186: 407.3066667 | M186: 434.8916667
B187: B+ | C187: 296.9833069 | D187: 318.3929167 | E187: 346.2184167 | F187: 368.9858056 | G187: 392.3699008 | I187: 286.8061111 | J187: 338.335 | K187: 402.6458333 | L187: 460.8641667 | M187: 488.4491667
B188: B | C188: 336.9784042 | D188: 362.0388333 | E188: 393.9707917 | F188: 414.3499167 | G188: 437.7340119 | I188: 299.6216667 | J188: 364.4325 | K188: 439.9325 | L188: 514.4216667 | M188: 542.0066667
B189: B- | C189: 397.9607489 | D189: 426.0890519 | E189: 458.7433002 | F189: 484.6631354 | G189: 501.1415811 | I189: 422.4459107 | J189: 470.0752049 | K189: 546.663894 | L189: 523.413522 | M189: 525.7514443
B191: 2011
C193: USD: Average period from 1993-jan to 2011-dec | I193: USD: Average period from 2011-jan to 2011-dec
C194: Spread (bp) over swap rate | I194: Spread (bp) over swap rate
B195: Rating | C195: 6M | D195: 2Y | E195: 5Y | F195: 10Y | G195: 20Y | I195: 6M | J195: 2Y | K195: 5Y | L195: 10Y | M195: 20Y
B196: CC1 | C196: 8.856198465 | D196: 9.952538377 | E196: 14.77495066 | F196: 26.77925439 | G196: 55.27589892 | I196: 0.07108333333 | J196: 13.36135417 | K196: 31.92927083 | L196: 75.66364583 | M196: 113.5932292
B197: AAA | C197: 4.082530702 | D197: 5.880482456 | E197: 5.769605263 | F197: 17.84346491 | G197: 44.65448444 | I197: 0.07108333333 | J197: 6.985 | K197: 22.855 | L197: 61.31666667 | M197: 101.3125
B198: AA+ | C198: 4.082530702 | D198: 5.880482456 | E198: 11.56425439 | F198: 23.60491228 | G198: 51.45275199 | I198: 0.07108333333 | J198: 11.25416667 | K198: 28.24666667 | L198: 71.19791667 | M198: 109.6375
B199: AA | C199: 10.67345175 | D199: 11.17184211 | E199: 17.35890351 | F199: 29.36635965 | G199: 58.25101953 | I199: 0.07108333333 | J199: 15.52333333 | K199: 33.63833333 | L199: 81.07916667 | M199: 117.9625
B200: AA- | C200: 16.5862807 | D200: 16.87734649 | E200: 24.40703947 | F200: 36.3022807 | G200: 66.74533971 | I200: 0.07108333333 | J200: 19.68291667 | K200: 42.97708333 | L200: 89.06083333 | M200: 125.4604167
B201: CC2 | C201: 33.01694591 | D201: 33.40334795 | E201: 43.17619883 | F201: 55.2727924 | G201: 87.2571014 | I201: 15.07788889 | J201: 35.35722222 | K201: 68.84694444 | L201: 107.8369444 | M201: 143.0444444
B202: A+ | C202: 22.49910965 | D202: 22.58285088 | E202: 31.45517544 | F202: 43.23820175 | G202: 75.23965988 | I202: 3.393166667 | J202: 23.8425 | K202: 52.31583333 | L202: 97.0425 | M202: 132.9583333
B203: A | C203: 31.19248684 | D203: 31.39105263 | E203: 41.34442982 | F203: 54.01723684 | G203: 85.39347567 | I203: 11.489 | J203: 32.50416667 | K203: 62.68333333 | L203: 104.9933333 | M203: 139.3366667
B204: A- | C204: 45.35924123 | D204: 46.23614035 | E204: 56.72899123 | F204: 68.5629386 | G204: 101.1381687 | I204: 30.3515 | J204: 49.725 | K204: 91.54166667 | L204: 121.475 | M204: 156.8383333
B205: CC3 | C205: 79.48736988 | D205: 81.8371345 | E205: 92.88733918 | F205: 105.7604971 | G205: 137.3266628 | I205: 86.43038889 | J205: 111.3872222 | K205: 151.1316667 | L205: 171.3563889 | M205: 196.3191667
B206: BBB+ | C206: 62.99845175 | D206: 64.75539474 | E206: 74.98052632 | F206: 85.99346491 | G206: 117.9348792 | I206: 48.7515 | J206: 69.36666667 | K206: 110.6808333 | L206: 138.4475 | M206: 167.9258333
B207: BBB | C207: 76.51924123 | D207: 77.98451754 | E207: 88.31302632 | F207: 100.4388596 | G207: 133.5850546 | I207: 93.20566667 | J207: 115.5783333 | K207: 145.3808333 | L207: 162.5733333 | M207: 190.8616667
B208: BBB- | C208: 98.94441667 | D208: 102.7714912 | E208: 115.3684649 | F208: 130.8491667 | G208: 160.4600546 | I208: 117.334 | J208: 149.2166667 | K208: 197.3333333 | L208: 213.0483333 | M208: 230.17
B209: CC4 | C209: 197.1226623 | D209: 208.5730044 | E209: 223.621886 | F209: 247.3992105 | G209: 271.1100108 | I209: 232.89525 | J209: 276.3816667 | K209: 305.8045833 | L209: 336.2391667 | M209: 344.4029167
B210: BB+ | C210: 179.5775746 | D210: 188.9417105 | E210: 200.6016228 | F210: 220.5140789 | G210: 245.9700985 | I210: 197.8123333 | J210: 247.5408333 | K210: 275.2283333 | L210: 302.7116667 | M210: 315.935
B211: BB | C211: 214.66775 | D211: 228.2042982 | E211: 246.6421491 | F211: 274.2843421 | G211: 296.249923 | I211: 267.9781667 | J211: 305.2225 | K211: 336.3808333 | L211: 369.7666667 | M211: 372.8708333
B212: CC5 | C212: 320.2916754 | D212: 342.4767763 | E212: 371.1154825 | F212: 390.5932566 | G212: 412.5855042 | I212: 328.8825417 | J212: 375.9825 | K212: 428.6085417 | L212: 491.3495833 | M212: 484.7089583
B213: BB- | C213: 246.3733202 | D213: 263.2716228 | E213: 285.5602193 | F213: 310.8584211 | G213: 335.1159757 | I213: 284.0306667 | J213: 325.6116667 | K213: 358.1925 | L213: 402.6141667 | M213: 400.3191667
B214: B+ | C214: 285.8114342 | D214: 306.4309211 | E214: 331.5842105 | F214: 347.436886 | G214: 372.8956687 | I214: 300.6465 | J214: 341.0933333 | K214: 384.7166667 | L214: 432.6608333 | M214: 428.3725
B215: B | C215: 338.9445482 | D215: 361.9128509 | E215: 391.5517544 | F215: 409.0829825 | G215: 431.583695 | I215: 341.1715 | J215: 385.675 | K215: 457.9983333 | L215: 525.6433333 | M215: 525.8075
B216: B- | C216: 410.0373991 | D216: 438.2917105 | E216: 475.7657456 | F216: 494.9947368 | G216: 510.7466774 | I216: 389.6815 | J216: 451.55 | K216: 513.5266667 | L216: 604.48 | M216: 584.3366667

Sheet _cf (hidden)
B2: repayment freq | C2: 2 | E2: discount rate | F2: =+#REF! ->  | H2: npv | I2: =+SUM(N10:N22) -> 
B3: disb | C3: =+#REF! ->  | D3: months | E3: loan margin | F3: 100 | H3: upfront | I3: =+ROUND(I2/C7,6) -> 
B4: rep | C4: =+ROUND(#REF!*$C$2,0)/$C$2 ->  | D4: years | E4: margin rate
B5: maturity | C5: =+C3+C4*12 ->  | D5: months | E5: =+" - 100%" -> - 100% | F5: =+#REF! -> 
B6: maturity in yrs | C6: =+C5/12 -> 
B7: loan amt | C7: 100000000 | E7: =+" - "&TEXT(#REF!,"00%") ->  | F7: =+ROUND(F5*#REF!,0) -> 
A9: # | B9: t | C9: drawdown | D9: repayment | E9: outstanding amount | K9: amt outstanding | L9: repayment | M9: margin payment | N9: npv
A10: 0 | B10: 0 | C10: =+IF(A10<=$C$3,$C$7/(1+$C$3),0) ->  | D10: =+IF(OR(A10<=$C$3,A10>$C$5),0,IF(MOD(A10-$C$3-12/$C$2,6)=0,$C$7/($C$4*$C$2),0)) ->  | E10: =+C10 ->  | I10: Drawdown time | J10: =+DMARDrawDownTime(C3) ->  | K10: =+C7 -> 100000000 | L10: =+IF(AND(J10>$C$3/12,J10<=$C$6),$C$7/($C$2*$C$4),0) ->  | M10: 0 | N10: =+M10*(1+$F$2+$F$5/10000)^-$J10 -> 
A11: 1 | B11: =+A11/12 -> 0.08333333333 | E11: =+C11+E10-D11 ->  | I11: First cpn payment | J11: =+DMARFirstPaymentTime(C3) ->  | K11: =+K10-L11 ->  | L11: =+IF(AND(J11>$C$3/12,J11<=$C$6),$C$7/($C$2*$C$4),0) ->  | M11: =+K10*$F$7*(J11-J10)/10000 -> 
A12: 2 | B12: =+A12/12 -> 0.1666666667 | E12: =+C12+E11-D12 ->  | J12: =+J11+1/2 ->  | K12: =+K11-L12 ->  | M12: =+K11*$F$7*(J12-J11)/10000 -> 
A13: 3 | B13: 0.25 | J13: =+J12+1/2 -> 
A14: 4 | B14: 0.3333333333
A15: 5 | B15: 0.4166666667
A16: 6 | B16: 0.5
A17: 7 | B17: 0.5833333333
A18: 8 | B18: 0.6666666667
A19: 9 | B19: 0.75
A20: 10 | B20: 0.8333333333
A21: 11 | B21: 0.9166666667
A22: 12 | B22: 1
A23: 13 | B23: 1.083333333
A24: 14 | B24: 1.166666667
A25: 15 | B25: 1.25
A26: 16 | B26: 1.333333333
A27: 17 | B27: 1.416666667
A28: 18 | B28: 1.5 | E28: =+C28+E27-D28 -> 
A29: 19 | B29: 1.583333333
A30: 20 | B30: 1.666666667
A31: 21 | B31: 1.75
A32: 22 | B32: 1.833333333
A33: 23 | B33: 1.916666667
A34: 24 | B34: 2
A35: 25 | B35: 2.083333333
A36: 26 | B36: 2.166666667
A37: 27 | B37: 2.25
A38: 28 | B38: 2.333333333
A39: 29 | B39: 2.416666667
A40: 30 | B40: 2.5
A41: 31 | B41: 2.583333333
A42: 32 | B42: 2.666666667
A43: 33 | B43: 2.75
A44: 34 | B44: 2.833333333
A45: 35 | B45: 2.916666667
A46: 36 | B46: 3
A47: 37 | B47: 3.083333333
A48: 38 | B48: 3.166666667
A49: 39 | B49: 3.25
A50: 40 | B50: 3.333333333
A51: 41 | B51: 3.416666667
A52: 42 | B52: 3.5
A53: 43 | B53: 3.583333333
A54: 44 | B54: 3.666666667
A55: 45 | B55: 3.75
A56: 46 | B56: 3.833333333
A57: 47 | B57: 3.916666667
A58: 48 | B58: 4
A59: 49 | B59: 4.083333333
A60: 50 | B60: 4.166666667
A61: 51 | B61: 4.25
A62: 52 | B62: 4.333333333
A63: 53 | B63: 4.416666667
A64: 54 | B64: 4.5
A65: 55 | B65: 4.583333333
A66: 56 | B66: 4.666666667
A67: 57 | B67: 4.75
A68: 58 | B68: 4.833333333
A69: 59 | B69: 4.916666667
A70: 60 | B70: 5
A71: 61 | B71: 5.083333333
A72: 62 | B72: 5.166666667
A73: 63 | B73: 5.25
A74: 64 | B74: 5.333333333 | C74: =+IF(A74<=$C$3,$C$7/(1+$C$3),0) ->  | D74: =+IF(OR(A74<=$C$3,A74>$C$5),0,IF(MOD(A74-$C$3-12/$C$2,6)=0,$C$7/($C$4*$C$2),0)) -> 
A75: 65 | B75: 5.416666667
A76: 66 | B76: =+A76/12 -> 5.5 | E76: =+C76+E75-D76 -> 
A77: 67 | B77: 5.583333333
A78: 68 | B78: 5.666666667
A79: 69 | B79: 5.75
A80: 70 | B80: 5.833333333
A81: 71 | B81: 5.916666667
A82: 72 | B82: 6
A83: 73 | B83: 6.083333333
A84: 74 | B84: 6.166666667
A85: 75 | B85: 6.25
A86: 76 | B86: 6.333333333
A87: 77 | B87: 6.416666667
A88: 78 | B88: 6.5
A89: 79 | B89: 6.583333333
A90: 80 | B90: 6.666666667
A91: 81 | B91: 6.75
A92: 82 | B92: 6.833333333
A93: 83 | B93: 6.916666667
A94: 84 | B94: 7
A95: 85 | B95: 7.083333333
A96: 86 | B96: 7.166666667
A97: 87 | B97: 7.25
A98: 88 | B98: 7.333333333
A99: 89 | B99: 7.416666667
A100: 90 | B100: 7.5
A101: 91 | B101: 7.583333333
A102: 92 | B102: 7.666666667
A103: 93 | B103: 7.75
A104: 94 | B104: 7.833333333
A105: 95 | B105: 7.916666667
A106: 96 | B106: 8
A107: 97 | B107: 8.083333333
A108: 98 | B108: 8.166666667
A109: 99 | B109: 8.25
A110: 100 | B110: 8.333333333
A111: 101 | B111: 8.416666667
A112: 102 | B112: 8.5
A113: 103 | B113: 8.583333333
A114: 104 | B114: 8.666666667
A115: 105 | B115: 8.75
A116: 106 | B116: 8.833333333
A117: 107 | B117: 8.916666667
A118: 108 | B118: 9
A119: 109 | B119: 9.083333333
A120: 110 | B120: 9.166666667
A121: 111 | B121: 9.25
A122: 112 | B122: 9.333333333
A123: 113 | B123: 9.416666667
A124: 114 | B124: 9.5
A125: 115 | B125: 9.583333333
A126: 116 | B126: 9.666666667
A127: 117 | B127: 9.75
A128: 118 | B128: 9.833333333
A129: 119 | B129: 9.916666667
A130: 120 | B130: 10
A131: 121 | B131: 10.08333333
A132: 122 | B132: 10.16666667
A133: 123 | B133: 10.25
A134: 124 | B134: 10.33333333
A135: 125 | B135: 10.41666667
A136: 126 | B136: 10.5
A137: 127 | B137: 10.58333333
A138: 128 | B138: 10.66666667 | C138: =+IF(A138<=$C$3,$C$7/(1+$C$3),0) ->  | D138: =+IF(OR(A138<=$C$3,A138>$C$5),0,IF(MOD(A138-$C$3-12/$C$2,6)=0,$C$7/($C$4*$C$2),0)) -> 
A139: 129 | B139: 10.75
A140: 130 | B140: =+A140/12 -> 10.83333333 | E140: =+C140+E139-D140 -> 
A141: 131 | B141: 10.91666667
A142: 132 | B142: 11
A143: 133 | B143: 11.08333333
A144: 134 | B144: 11.16666667
A145: 135 | B145: 11.25
A146: 136 | B146: 11.33333333
A147: 137 | B147: 11.41666667
A148: 138 | B148: 11.5
A149: 139 | B149: 11.58333333
A150: 140 | B150: 11.66666667
A151: 141 | B151: 11.75
A152: 142 | B152: 11.83333333
A153: 143 | B153: 11.91666667
A154: 144 | B154: 12
A155: 145 | B155: 12.08333333
A156: 146 | B156: 12.16666667
A157: 147 | B157: 12.25
A158: 148 | B158: 12.33333333
A159: 149 | B159: 12.41666667
A160: 150 | B160: 12.5
A161: 151 | B161: 12.58333333
A162: 152 | B162: 12.66666667
A163: 153 | B163: 12.75
A164: 154 | B164: 12.83333333
A165: 155 | B165: 12.91666667
A166: 156 | B166: 13
A167: 157 | B167: 13.08333333
A168: 158 | B168: 13.16666667
A169: 159 | B169: 13.25
A170: 160 | B170: 13.33333333
A171: 161 | B171: 13.41666667
A172: 162 | B172: 13.5
A173: 163 | B173: 13.58333333
A174: 164 | B174: 13.66666667
A175: 165 | B175: 13.75
A176: 166 | B176: 13.83333333
A177: 167 | B177: 13.91666667
A178: 168 | B178: 14
A179: 169 | B179: 14.08333333
A180: 170 | B180: 14.16666667
A181: 171 | B181: 14.25
A182: 172 | B182: 14.33333333
A183: 173 | B183: 14.41666667
A184: 174 | B184: 14.5
A185: 175 | B185: 14.58333333
A186: 176 | B186: 14.66666667
A187: 177 | B187: 14.75
A188: 178 | B188: 14.83333333
A189: 179 | B189: 14.91666667
A190: 180 | B190: 15
A191: 181 | B191: 15.08333333
A192: 182 | B192: 15.16666667
A193: 183 | B193: 15.25
A194: 184 | B194: 15.33333333
A195: 185 | B195: 15.41666667
A196: 186 | B196: 15.5
A197: 187 | B197: 15.58333333
A198: 188 | B198: 15.66666667
A199: 189 | B199: 15.75
A200: 190 | B200: 15.83333333
A201: 191 | B201: 15.91666667
A202: 192 | B202: 16 | C202: =+IF(A202<=$C$3,$C$7/(1+$C$3),0) ->  | D202: =+IF(OR(A202<=$C$3,A202>$C$5),0,IF(MOD(A202-$C$3-12/$C$2,6)=0,$C$7/($C$4*$C$2),0)) -> 
... 1008 more rows

Sheet Derivation of TCMB-BAP rates (hidden)
B1: ADR with S&P, Moody's and Fitch Cumulated Default Rates
B3: 5-year Average Default Rates
B4: Moody's | C4: S&P | D4: Fitch | F4: Average | G4: Monotonic
A6: AAA | B6: 0.066 | C6: 0.35 | D6: 0.67 | E6: =A6 -> AAA | F6: =AVERAGE(B6:D6) -> 0.362 | G6: =F6 -> 0.362 | H6: =G6/5*$B$26*(1+$B$27) -> 0.04525 | I6: =100*H6 -> 4.525
A7: AA+ | B7: 0.098 | C7: 0.16 | E7: =A7 -> AA+ | F7: 0.129 | G7: =IF(F7<G6,G6,F7) -> 0.362 | H7: =G7/5*$B$26*(1+$B$27) -> 0.04525 | I7: =100*H7 -> 4.525
A8: AA | B8: 0.352 | C8: 0.36 | E8: AA | F8: 0.356 | G8: 0.362 | H8: 0.04525 | I8: 4.525
A9: AA- | B9: 0.373 | C9: 0.33 | D9: 0.1 | E9: AA- | F9: 0.2676666667 | G9: 0.362 | H9: 0.04525 | I9: 4.525
A10: A+ | B10: 0.835 | C10: 0.45 | D10: 0.24 | E10: A+ | F10: 0.5083333333 | G10: 0.5083333333 | H10: 0.06354166667 | I10: 6.354166667
A11: A | B11: 0.75 | C11: 0.49 | D11: 0.85 | E11: A | F11: 0.6966666667 | G11: 0.6966666667 | H11: 0.08708333333 | I11: 8.708333333
A12: A- | B12: 0.834 | C12: 0.57 | D12: 0.37 | E12: A- | F12: 0.5913333333 | G12: 0.6966666667 | H12: 0.08708333333 | I12: 8.708333333
A13: BBB+ | B13: 1.133 | C13: 1.03 | D13: 0.73 | E13: BBB+ | F13: 0.9643333333 | G13: 0.9643333333 | H13: 0.1205416667 | I13: 12.05416667
A14: BBB | B14: 1.439 | C14: 1.42 | D14: 1.53 | E14: BBB | F14: 1.463 | G14: 1.463 | H14: 0.182875 | I14: 18.2875
A15: BBB- | B15: 2.114 | C15: 2.84 | D15: 2.47 | E15: BBB- | F15: 2.474666667 | G15: 2.474666667 | H15: 0.3093333333 | I15: 30.93333333
A16: BB+ | B16: 5.306 | C16: 3.86 | D16: 5.05 | E16: BB+ | F16: 4.738666667 | G16: 4.738666667 | H16: 0.5923333333 | I16: 59.23333333
A17: BB | B17: 6.159 | C17: 6.52 | D17: 5.55 | E17: BB | F17: 6.076333333 | G17: 6.076333333 | H17: 0.7595416667 | I17: 75.95416667 | K17: Sources, TCMB update 2019
A18: BB- | B18: 13.167 | C18: 9.66 | D18: 5.61 | E18: BB- | F18: 9.479 | G18: 9.479 | H18: 1.184875 | I18: 118.4875 | K18: Rating Agency | L18: Document title | M18: Period
A19: B+ | B19: 16.729 | C19: 14.53 | D19: 8.09 | E19: B+ | F19: 13.11633333 | G19: 13.11633333 | H19: 1.639541667 | I19: 163.9541667 | K19: Fitch | L19: Global Corporate Finance 2017 Transition and Default Study (page 7) | M19: 1990 – 2017
A20: B | B20: 20.874 | C20: 17.89 | D20: 11.59 | E20: B | F20: 16.78466667 | G20: 16.78466667 | H20: 2.098083333 | I20: 209.8083333 | K20: Moody’s | L20: Annual Default Study: Corporate Default and Recovery Rates, 1920-2017 (exhibit 35) | M20: 1983 – 2017
A21: B- | B21: 27.228 | C21: 26.18 | D21: 8.72 | E21: B- | F21: 20.70933333 | G21: 20.70933333 | H21: 2.588666667 | I21: =100*H21 -> 258.8666667 | K21: Standard & Poor’s | L21: 2017 Annual Global Corporate Default Study And Rating Transitions (Table 26) | M21: 1981 – 2017
A24: Rating | B24: BBB
A25: Point of Ref. | B25: =+'model options'!D11 -> 5 | D25: ==> | F25: Act. Premium | G25: =VLOOKUP(B24,A6:G21,7,FALSE)*100*B26/B25*(1+B27) -> 18.2875
A26: LGD | B26: =+'model options'!D9 -> 0.5 | F26: Premium w/ floor | G26: =MAX(G25,15) -> 18.2875
A27: Loading Factor | B27: =+'model options'!D10 -> 0.25

Sheet BBG (hidden)
B2: 2018-01-01 | F2: minimum premie | G2: =+'model options'!D3 -> 15 | H2: bps | W2: * exponential extrapolation to B-, retired as of 2016
B3: 2018-12-31 | F3: average tables | R3: Discounting method | S3: Tenor | T3: Curves | X3: =+G4 -> 6M | Y3: =+H4 -> 2 | Z3: =+I4 -> 5 | AA3: =+J4 -> 10 | AB3: =+K4 -> 20
G4: 6M | H4: 2 | I4: 5 | J4: 10 | K4: 20 | R4: BRCS | S4: 0.5 | T4: L | V4: 1 | W4: AAA | X4: =+LN(G6) -> 0.8510052652 | Y4: 1.003079862 | Z4: 1.079599349 | AA4: 1.136095382
B5: Bloomberg ID control | F5: Swap | G5: =+BBG!C21 -> 2.530795833 | H5: =+BBG!D21 -> 2.756783333 | I5: =+BBG!E21 -> 2.856041667 | J5: =+BBG!F21 -> 2.938816667 | K5: =+BBG!G21 -> 3.0064 | R5: DMAR | S5: 2 | T5: BAP | V5: 3 | W5: AA | X5: =+LN(G7) -> 0.8915539516 | Y5: =+LN(H7) -> 1.042805902 | Z5: 1.173822827 | AA5: 1.307994925 | AB5: 1.395708244
B6: Curve Ids | C6: Rating | D6: Header | F6: AAA | G6: =+BBG!H21 -> 2.342 | H6: =+BBG!I21 -> 2.726666667 | I6: =+BBG!J21 -> 2.9435 | J6: =+BBG!K21 -> 3.114583333 | S6: 5 | T6: MAP | V6: 6 | W6: A | X6: =+LN(G8) -> 0.9484997409 | Y6: =+LN(H8) -> 1.099084399 | Z6: 1.222598268 | AA6: 1.351724483 | AB6: 1.460222258
B7: BVSC0203 Index | C7: AAA | D7: BVCSEU | F7: AA | G7: =+BBG!M21 -> 2.438916667 | H7: =+BBG!N21 -> 2.837166667 | I7: =+BBG!O21 -> 3.234333333 | J7: =+BBG!P21 -> 3.69875 | K7: =+BBG!Q21 -> 4.037833333 | S7: 10 | T7: W | V7: 9 | W7: BBB | X7: 1.026608938 | Y7: 1.186953799 | Z7: 1.330495317 | AA7: 1.477124825 | AB7: 1.584222663
B8: BVSC0073 Index | C8: AA | D8: IGUUDC | F8: A | G8: =+BBG!R21 -> 2.581833333 | H8: =+BBG!S21 -> 3.001416667 | I8: =+BBG!T21 -> 3.396 | J8: =+BBG!U21 -> 3.864083333 | K8: =+BBG!V21 -> 4.306916667 | S8: 20 | V8: 12 | W8: BB | X8: =+LN(G10) -> 1.291479892 | Y8: 1.473465448 | Z8: 1.680765833 | AA8: 1.832314762 | AB8: 1.94496923
B9: BVSC0074 Index | C9: A | D9: IGUUAC | F9: BBB | G9: =+BBG!W21 -> 2.791583333 | H9: =+BBG!X21 -> 3.277083333 | I9: =+BBG!Y21 -> 3.782916667 | J9: =+BBG!Z21 -> 4.380333333 | K9: =+BBG!AA21 -> 4.8755 | V9: 15 | W9: B | X9: 1.403274381 | Y9: =+LN(H11) -> 1.607870017 | Z9: 1.801929798 | AA9: 1.954976072 | AB9: 2.094750837
B10: BVSC0215 Index | C10: BBB | D10: BVCSUH | F10: BB | G10: =+BBG!AB21 -> 3.638166667 | H10: =+BBG!AC21 -> 4.364333333 | I10: =+BBG!AD21 -> 5.369666667 | J10: =+BBG!AE21 -> 6.248333333 | K10: =+BBG!AF21 -> 6.993416667 | V10: 16 | W10: B- | X10: =+X11*$V$10+X12 -> 1.491564699 | Y10: =+Y11*$V$10+Y12 -> 1.7033739 | Z10: =+Z11*$V$10+Z12 -> 1.918686637 | AA10: =+AA11*$V$10+AA12 -> 2.073372717 | AB10: =+AB11*$V$10+AB12 -> 2.214999693
B11: BVSC0217 Index | C11: BB | D11: BVCSUC | F11: B | G11: =+BBG!AG21 -> 4.0685 | H11: =+BBG!AH21 -> 4.992166667 | I11: =+BBG!AI21 -> 6.061333333 | J11: =+BBG!AJ21 -> 7.06375 | K11: =+BBG!AK21 -> 8.123416667 | W11: gradient | X11: =+SLOPE(X7:X9,$V$7:$V$9) -> 0.06277757388 | Y11: =+SLOPE(Y7:Y9,$V$7:$V$9) -> 0.07015270302 | Z11: =+SLOPE(Z7:Z9,$V$7:$V$9) -> 0.07857241347 | AA11: =+SLOPE(AA7:AA9,$V$7:$V$9) -> 0.07964187449 | AB11: =+SLOPE(AB7:AB9,$V$7:$V$9) -> 0.08508802902
B12: BVSC0237 Index | C12: B | D12: BVCSUF | F12: AAA | G12: =+MAX((G6-G$5)*100,$G$2) -> 15 | H12: =+MAX((H6-H$5)*100,$G$2) -> 15 | I12: 15 | J12: =+MAX((J6-J$5)*100,$G$2) -> 17.57666667 | K12: =+J12 -> 17.57666667 | W12: intercept | X12: =+INTERCEPT(X7:X9,$V$7:$V$9) -> 0.487123517 | Y12: =+INTERCEPT(Y7:Y9,$V$7:$V$9) -> 0.5809306518 | Z12: =+INTERCEPT(Z7:Z9,$V$7:$V$9) -> 0.6615280211 | AA12: =+INTERCEPT(AA7:AA9,$V$7:$V$9) -> 0.7991027256 | AB12: =+INTERCEPT(AB7:AB9,$V$7:$V$9) -> 0.8535912287
F13: AA | G13: =+MAX((G7-G$5)*100,$G$2) -> 15 | H13: 15 | I13: 37.82916667 | J13: 75.99333333 | K13: =+MAX((K7-K$5)*100,$G$2) -> 103.1433333 | W13: yield | X13: =+EXP(X10) -> 4.444043673 | Y13: =+EXP(Y10) -> 5.492447134 | Z13: =+EXP(Z10) -> 6.812005953 | AA13: 7.951596431 | AB13: 9.1614063
B14: =+'model options'!D4 -> Linear | C14: B- etrapolation | F14: A | G14: =+MAX((G8-G$5)*100,$G$2) -> 15 | H14: 24.46333333 | I14: 53.99583333 | J14: 92.52666667 | K14: 130.0516667
F15: BBB | G15: =+MAX((G9-G$5)*100,$G$2) -> 26.07875 | H15: 52.03 | I15: 92.6875 | J15: 144.1516667 | K15: 186.91
F16: BB | G16: =+MAX((G10-G$5)*100,$G$2) -> 110.7370833 | H16: 160.755 | I16: 251.3625 | J16: 330.9516667 | K16: 398.7016667
F17: B | G17: =+MAX((G11-G$5)*100,$G$2) -> 153.7704167 | H17: 223.5383333 | I17: 320.5291667 | J17: 412.4933333 | K17: 511.7016667
F18: B- | G18: =+IF($B$14="Linear",G17+(G17-G16)/3,(X13-G5)*100) -> 168.1148611 | H18: =+IF($B$14="Linear",H17+(H17-H16)/3,(Y13-H5)*100) -> 244.4661111 | I18: =+IF($B$14="Linear",I17+(I17-I16)/3,(Z13-I5)*100) -> 343.5847222 | J18: 439.6738889 | K18: =+IF($B$14="Linear",K17+(K17-K16)/3,(AB13-K5)*100) -> 549.3683333
B21: 12m avg | C21: =+AVERAGE(C25:C36) -> 2.530795833 | D21: =+AVERAGE(D25:D36) -> 2.756783333 | E21: =+AVERAGE(E25:E36) -> 2.856041667 | F21: 2.938816667 | G21: 3.0064 | H21: 2.342 | I21: 2.726666667 | J21: 2.9435 | K21: 3.114583333 | M21: =+AVERAGE(M25:M36) -> 2.438916667 | N21: 2.837166667 | O21: 3.234333333 | P21: 3.69875 | Q21: 4.037833333 | R21: 2.581833333 | S21: 3.001416667 | T21: 3.396 | U21: 3.864083333 | V21: 4.306916667 | W21: 2.791583333 | X21: 3.277083333 | Y21: 3.782916667 | Z21: 4.380333333 | AA21: 4.8755 | AB21: 3.638166667 | AC21: 4.364333333 | AD21: 5.369666667 | AE21: 6.248333333 | AF21: 6.993416667 | AG21: 4.0685 | AH21: 4.992166667 | AI21: 6.061333333 | AJ21: 7.06375 | AK21: =+AVERAGE(AK25:AK36) -> 8.123416667
B22: Obj | H22: AAA | I22: AAA | J22: AAA | K22: AAA | L22: AAA | M22: AA | N22: AA | O22: AA | P22: AA | Q22: AA | R22: A | S22: A | T22: A | U22: A | V22: A | W22: BBB | X22: BBB | Y22: BBB | Z22: BBB | AA22: BBB | AB22: BB | AC22: BB | AD22: BB | AE22: BB | AF22: BB | AG22: B | AH22: B | AI22: B | AJ22: B | AK22: B
B23: Term | H23: 6M | I23: 2 | J23: 5 | K23: 10 | L23: 20 | M23: 6M | N23: 2 | O23: 5 | P23: 10 | Q23: 20 | R23: 6M | S23: 2 | T23: 5 | U23: 10 | V23: 20 | W23: 6M | X23: 2 | Y23: 5 | Z23: 10 | AA23: 20 | AB23: 6M | AC23: 2 | AD23: 5 | AE23: 10 | AF23: 20 | AG23: 6M | AH23: 2 | AI23: 5 | AJ23: 10 | AK23: 20
B24: BBG id | C24: US0006M Index | D24: USSWAP2 Curncy | E24: USSWAP5 Curncy | F24: USSWAP10 Curncy | G24: USSWAP20 Curncy | H24: BVCSEU6M Index | I24: BVCSEU02 Index | J24: BVCSEU05 Index | K24: BVCSEU10 Index | L24: BVCSEU20 Index | M24: IGUUDC6M Index | N24: IGUUDC02 Index | O24: IGUUDC05 Index | P24: IGUUDC10 Index | Q24: IGUUDC20 Index | R24: IGUUAC6M Index | S24: IGUUAC02 Index | T24: IGUUAC05 Index | U24: IGUUAC10 Index | V24: IGUUAC20 Index | W24: BVCSUH6M Index | X24: BVCSUH02 Index | Y24: BVCSUH05 Index | Z24: BVCSUH10 Index | AA24: BVCSUH20 Index | AB24: BVCSUC6M Index | AC24: BVCSUC02 Index | AD24: BVCSUC05 Index | AE24: BVCSUC10 Index | AF24: BVCSUC20 Index | AG24: BVCSUF6M Index | AH24: BVCSUF02 Index | AI24: BVCSUF05 Index | AJ24: BVCSUF10 Index | AK24: BVCSUF20 Index
B25: 2018-01-31 | C25: 1.96625 | D25: 2.335 | E25: 2.6048 | F25: 2.7586 | G25: 2.8548 | H25: 1.82 | I25: 2.328 | J25: 2.699 | K25: 2.969 | L25: 3.133 | M25: 1.931 | N25: 2.347 | O25: 2.843 | P25: 3.397 | Q25: 3.705 | R25: 2.003 | S25: 2.466 | T25: 2.969 | U25: 3.502 | V25: 3.919 | W25: 2.152 | X25: 2.68 | Y25: 3.268 | Z25: 3.904 | AA25: 4.382 | AB25: 3.024 | AC25: 3.663 | AD25: 4.602 | AE25: 5.554 | AF25: 6.539 | AG25: 3.165 | AH25: 4.176 | AI25: 5.203 | AJ25: 6.236 | AK25: 7.583
B26: 2018-02-28 | C26: 2.22375 | D26: 2.5455 | E26: 2.7701 | F26: 2.8987 | G26: 2.9868 | H26: 2.044 | I26: 2.468 | J26: 2.842 | K26: 3.133 | L26: 3.321 | M26: 2.19 | N26: 2.569 | O26: 3.054 | P26: 3.621 | Q26: 3.938 | R26: 2.304 | S26: 2.699 | T26: 3.174 | U26: 3.701 | V26: 4.156 | W26: 2.491 | X26: 2.933 | Y26: 3.49 | Z26: 4.123 | AA26: 4.657 | AB26: 3.195 | AC26: 3.902 | AD26: 4.92 | AE26: 5.882 | AF26: 6.902 | AG26: 3.215 | AH26: 4.297 | AI26: 5.573 | AJ26: 6.669 | AK26: 8.123
B27: 2018-03-30 | C27: 2.4524 | D27: 2.5815 | E27: 2.708 | F27: 2.7902 | G27: 2.8485 | H27: 2.12 | I27: 2.494 | J27: 2.793 | K27: 2.979 | L27: 3.141 | M27: 2.326 | N27: 2.659 | O27: 3.077 | P27: 3.58 | Q27: 3.882 | R27: 2.485 | S27: 2.822 | T27: 3.221 | U27: 3.68 | V27: 4.092 | W27: 2.698 | X27: 3.086 | Y27: 3.564 | Z27: 4.147 | AA27: 4.618 | AB27: 3.419 | AC27: 4.101 | AD27: 5.089 | AE27: 6.033 | AF27: 6.932 | AG27: 3.439 | AH27: 4.519 | AI27: 5.849 | AJ27: 6.949 | AK27: 8.294
B28: 2018-04-30 | C28: 2.51175 | D28: 2.7471 | E28: 2.9089 | F28: 2.9759 | G28: 3.0305 | H28: 2.251 | I28: 2.708 | J28: 3.008 | K28: 3.174 | L28: 3.265 | M28: 2.366 | N28: 2.78 | O28: 3.259 | P28: 3.764 | Q28: 4.047 | R28: 2.497 | S28: 2.953 | T28: 3.421 | U28: 3.894 | V28: 4.26 | W28: 2.677 | X28: 3.206 | Y28: 3.764 | Z28: 4.365 | AA28: 4.787 | AB28: 3.581 | AC28: 4.241 | AD28: 5.185 | AE28: 6.106 | AF28: 6.942 | AG28: 3.673 | AH28: 4.578 | AI28: 5.785 | AJ28: 6.901 | AK28: 8.149
B29: 2018-05-31 | C29: 2.47375 | D29: 2.681 | E29: 2.8102 | F29: 2.8864 | G29: 2.9426 | H29: 2.258 | I29: 2.656 | J29: 2.928 | K29: 3.078 | L29: 3.178 | M29: 2.344 | N29: 2.736 | O29: 3.171 | P29: 3.657 | Q29: 3.975 | R29: 2.481 | S29: 2.906 | T29: 3.351 | U29: 3.849 | V29: 4.23 | W29: 2.699 | X29: 3.175 | Y29: 3.723 | Z29: 4.351 | AA29: 4.792 | AB29: 3.546 | AC29: 4.262 | AD29: 5.335 | AE29: 6.283 | AF29: 6.998 | AG29: 4.003 | AH29: 4.904 | AI29: 5.959 | AJ29: 7.006 | AK29: 8.199
B30: 2018-06-29 | C30: 2.50125 | D30: 2.789 | E30: 2.8785 | F30: 2.9124 | G30: 2.9415 | H30: 2.327 | I30: 2.741 | J30: 2.967 | K30: 3.081 | L30: 3.138 | M30: 2.451 | N30: 2.862 | O30: 3.281 | P30: 3.738 | Q30: 4.056 | R30: 2.6 | S30: 3.038 | T30: 3.453 | U30: 3.914 | V30: 4.323 | W30: 2.824 | X30: 3.311 | Y30: 3.853 | Z30: 4.465 | AA30: 4.919 | AB30: 3.602 | AC30: 4.341 | AD30: 5.429 | AE30: 6.301 | AF30: 7.002 | AG30: 4.358 | AH30: 5.145 | AI30: 6.009 | AJ30: 7.004 | AK30: 8.06
B31: 2018-07-31 | C31: 2.5305 | D31: 2.876 | E31: 2.9703 | F31: 3.0241 | G31: 3.0635 | H31: 2.4 | I31: 2.857 | J31: 3.049 | K31: 3.159 | L31: 3.225 | M31: 2.44 | N31: 2.895 | O31: 3.285 | P31: 3.696 | Q31: 3.998 | R31: 2.587 | S31: 3.088 | T31: 3.481 | U31: 3.91 | V31: 4.324 | W31: 2.765 | X31: 3.349 | Y31: 3.865 | Z31: 4.402 | AA31: 4.853 | AB31: 3.587 | AC31: 4.361 | AD31: 5.368 | AE31: 6.217 | AF31: 6.852 | AG31: 4.167 | AH31: 5.024 | AI31: 5.945 | AJ31: 6.911 | AK31: 7.858
B32: 2018-08-31 | C32: 2.53563 | D32: 2.8217 | E32: 2.8711 | F32: 2.9177 | G32: 2.9671 | H32: 2.43 | I32: 2.812 | J32: 2.951 | K32: 3.062 | L32: 3.174 | M32: 2.42 | N32: 2.852 | O32: 3.206 | P32: 3.633 | Q32: 3.993 | R32: 2.571 | S32: 3.031 | T32: 3.385 | U32: 3.826 | V32: 4.29 | W32: 2.769 | X32: 3.305 | Y32: 3.792 | Z32: 4.356 | AA32: 4.857 | AB32: 3.475 | AC32: 4.227 | AD32: 5.225 | AE32: 6.06 | AF32: 6.654 | AG32: 3.937 | AH32: 4.805 | AI32: 5.828 | AJ32: 6.782 | AK32: 7.659
B33: 2018-09-28 | C33: 2.60388 | D33: 2.9799 | E33: 3.0543 | F33: 3.1041 | G33: 3.145 | H33: 2.544 | I33: 2.977 | J33: 3.131 | K33: 3.258 | L33: 3.36 | M33: 2.526 | N33: 2.999 | O33: 3.367 | P33: 3.77 | Q33: 4.092 | R33: 2.672 | S33: 3.164 | T33: 3.541 | U33: 3.981 | V33: 4.402 | W33: 2.855 | X33: 3.418 | Y33: 3.926 | Z33: 4.481 | AA33: 4.938 | AB33: 3.552 | AC33: 4.316 | AD33: 5.31 | AE33: 6.14 | AF33: 6.754 | AG33: 3.887 | AH33: 4.747 | AI33: 5.807 | AJ33: 6.801 | AK33: 7.716
B34: 2018-10-31 | C34: 2.80013 | D34: 3.0726 | E34: 3.1305 | F34: 3.2131 | G34: 3.2892 | H34: 2.649 | I34: 3.049 | J34: 3.181 | K34: 3.348 | L34: 3.563 | M34: 2.706 | N34: 3.173 | O34: 3.519 | P34: 3.958 | Q34: 4.356 | R34: 2.853 | S34: 3.323 | T34: 3.672 | U34: 4.139 | V34: 4.634 | W34: 3.065 | X34: 3.589 | Y34: 4.074 | Z34: 4.692 | AA34: 5.243 | AB34: 4.012 | AC34: 4.787 | AD34: 5.79 | AE34: 6.606 | AF34: 7.208 | AG34: 4.83 | AH34: 5.544 | AI34: 6.49 | AJ34: 7.395 | AK34: 8.19
B35: 2018-11-30 | C35: 2.89463 | D35: 2.987 | E35: 2.9852 | F35: 3.0633 | G35: 3.1631 | H35: 2.688 | I35: 2.975 | J35: 3.053 | K35: 3.221 | L35: 3.527 | M35: 2.811 | N35: 3.2 | O35: 3.512 | P35: 3.917 | Q35: 4.32 | R35: 2.989 | S35: 3.367 | T35: 3.661 | U35: 4.103 | V35: 4.637 | W35: 3.261 | X35: 3.709 | Y35: 4.123 | Z35: 4.736 | AA35: 5.306 | AB35: 4.202 | AC35: 4.939 | AD35: 5.947 | AE35: 6.764 | AF35: 7.423 | AG35: 4.734 | AH35: 5.757 | AI35: 6.862 | AJ35: 7.768 | AK35: 8.546
B36: 2018-12-31 | C36: 2.87563 | D36: 2.6651 | E36: 2.5806 | F36: 2.7213 | G36: 2.8442 | H36: 2.573 | I36: 2.655 | J36: 2.72 | K36: 2.913 | L36: 3.309 | M36: 2.756 | N36: 2.974 | O36: 3.238 | P36: 3.654 | Q36: 4.092 | R36: 2.94 | S36: 3.16 | T36: 3.423 | U36: 3.87 | V36: 4.416 | W36: 3.243 | X36: 3.564 | Y36: 3.953 | Z36: 4.542 | AA36: 5.154 | AB36: 4.463 | AC36: 5.232 | AD36: 6.236 | AE36: 7.034 | AF36: 7.715 | AG36: 5.414 | AH36: 6.41 | AI36: 7.426 | AJ36: 8.343 | AK36: 9.104
